﻿Body Name,Body,Service Area Catergorisation,Service Division Catergorisation,Responsible Unit,Expenses Type,Detailed Expenses Type,Expenses Code,Date,Transaction Number,Amount,Capital / Revenue,Supplier Name,Supplier ID
North East Lincolnshire Council,http://statistics.data.gov.uk/id/local-authority/00FC),Economy And Growth,Regeneration,Clee Hlf Townscape Heritage,Cap Infrastr-Prof Fees,Cap Infrastr-Prof Fees,YC103,30/06/2021,678950,950,CAPITAL,MASON CLARK ASSOCIATES,100793
North East Lincolnshire Council,http://statistics.data.gov.uk/id/local-authority/00FC),Economy And Growth,Regeneration,Shiip Scheme,Cap Infrastr-Build Enh Wrk,Cap Infrastr-Build Enh Wrk,YC102,01/06/2021,674903,783,CAPITAL,J MCCANN & CO LTD,100841
North East Lincolnshire Council,http://statistics.data.gov.uk/id/local-authority/00FC),Economy And Growth,Regeneration,Shiip Scheme,Cap Infrastr-Build Enh Wrk,Cap Infrastr-Build Enh Wrk,YC102,11/06/2021,676858,2205.94,CAPITAL,J MCCANN & CO LTD,100841
North East Lincolnshire Council,http://statistics.data.gov.uk/id/local-authority/00FC),Economy And Growth,Regeneration,Shiip Scheme,Cap Infrastr-Prof Fees,Cap Infrastr-Prof Fees,YC103,16/06/2021,677693,2000,CAPITAL,JONES LANG LASALLE LIMITED,138438
North East Lincolnshire Council,http://statistics.data.gov.uk/id/local-authority/00FC),Economy And Growth,Regeneration,Shiip Scheme,Cap Infrastr-Prof Fees,Cap Infrastr-Prof Fees,YC103,17/06/2021,677997,1704.68,CAPITAL,RL STEPHENSON,149130
North East Lincolnshire Council,http://statistics.data.gov.uk/id/local-authority/00FC),Economy And Growth,Regeneration,Unlocking The Potential,Cap Infrastr-Build Enh Wrk,Cap Infrastr-Build Enh Wrk,YC102,24/06/2021,678543,1817.35,CAPITAL,BLACKROW ENGINEERING  LTD,111748
North East Lincolnshire Council,http://statistics.data.gov.uk/id/local-authority/00FC),Economy And Growth,Regeneration,Unlocking The Potential,Cap Infrastr-Build Enh Wrk,Cap Infrastr-Build Enh Wrk,YC102,03/06/2021,675529,13320,CAPITAL,ONEWAY TM LIMITED,128602
North East Lincolnshire Council,http://statistics.data.gov.uk/id/local-authority/00FC),Economy And Growth,Regeneration,Unlocking The Potential,Cap Infrastr-Build Enh Wrk,Cap Infrastr-Build Enh Wrk,YC102,03/06/2021,675438,5395.5,CAPITAL,J MCCANN & CO LTD,100841
North East Lincolnshire Council,http://statistics.data.gov.uk/id/local-authority/00FC),Economy And Growth,Regeneration,Unlocking The Potential,Cap Infrastr-Build Enh Wrk,Cap Infrastr-Build Enh Wrk,YC102,17/06/2021,672573,21356.21,CAPITAL,J MCCANN & CO LTD,100841
North East Lincolnshire Council,http://statistics.data.gov.uk/id/local-authority/00FC),Economy And Growth,Regeneration,Unlocking The Potential,Cap Infrastr-Build Enh Wrk,Cap Infrastr-Build Enh Wrk,YC102,17/06/2021,674902,434.75,CAPITAL,J MCCANN & CO LTD,100841
North East Lincolnshire Council,http://statistics.data.gov.uk/id/local-authority/00FC),Economy And Growth,Regeneration,Unlocking The Potential,Cap Infrastr-Build Enh Wrk,Cap Infrastr-Build Enh Wrk,YC102,17/06/2021,675439,3107.61,CAPITAL,J MCCANN & CO LTD,100841
North East Lincolnshire Council,http://statistics.data.gov.uk/id/local-authority/00FC),Economy And Growth,Regeneration,Unlocking The Potential,Cap Infrastr-Prof Fees,Cap Infrastr-Prof Fees,YC103,28/06/2021,679009,7000,CAPITAL,OUR BIG PICTURE LTD,134087
North East Lincolnshire Council,http://statistics.data.gov.uk/id/local-authority/00FC),Economy And Growth,Regeneration,Unlocking The Potential,Cap Infrastr-Prof Fees,Cap Infrastr-Prof Fees,YC103,28/06/2021,678244,415.3,CAPITAL,CGC ECOLOGY LTD,142378
North East Lincolnshire Council,http://statistics.data.gov.uk/id/local-authority/00FC),Economy And Growth,Regeneration,Unlocking The Potential,Cap Infrastr-Prof Fees,Cap Infrastr-Prof Fees,YC103,28/06/2021,679010,750,CAPITAL,OUR BIG PICTURE LTD,134087
North East Lincolnshire Council,http://statistics.data.gov.uk/id/local-authority/00FC),Economy And Growth,Regeneration,Unlocking The Potential,Cap Infrastr-Build Enh Wrk,Cap Infrastr-Build Enh Wrk,YC102,25/06/2021,678898,440,CAPITAL,ONEWAY TM LIMITED,128602
North East Lincolnshire Council,http://statistics.data.gov.uk/id/local-authority/00FC),Economy And Growth,Regeneration,Unlocking The Potential,Cap Infrastr-Build Enh Wrk,Cap Infrastr-Build Enh Wrk,YC102,25/06/2021,678899,1320,CAPITAL,ONEWAY TM LIMITED,128602
North East Lincolnshire Council,http://statistics.data.gov.uk/id/local-authority/00FC),Economy And Growth,Regeneration,Unlocking The Potential,Cap Infrastr-Build Enh Wrk,Cap Infrastr-Build Enh Wrk,YC102,10/06/2021,672600,12159.19,CAPITAL,C R REYNOLDS (CONSTRUCTION) LTD,103021
North East Lincolnshire Council,http://statistics.data.gov.uk/id/local-authority/00FC),Economy And Growth,Regeneration,Cleethorpes Public Art,Cap Infrastr-Prof Fees,Cap Infrastr-Prof Fees,YC103,28/06/2021,679005,1695,CAPITAL,BECKETT RANKINE,127288
North East Lincolnshire Council,http://statistics.data.gov.uk/id/local-authority/00FC),Economy And Growth,Regeneration,Cleethorpes Public Art,Cap Infrastr-Prof Fees,Cap Infrastr-Prof Fees,YC103,17/06/2021,677974,2072,CAPITAL,ENGIE SERVICES LTD,133267
North East Lincolnshire Council,http://statistics.data.gov.uk/id/local-authority/00FC),Economy And Growth,Regeneration,Town Deal Investment,Cap Land/Build-Build Enh Wrk,Cap Land/Build-Build Enh Wrk,YA102,10/06/2021,676802,166201.33,CAPITAL,TOPCON CONSTRUCTION LTD,108462
North East Lincolnshire Council,http://statistics.data.gov.uk/id/local-authority/00FC),Economy And Growth,Regeneration,Central Clee Regeneration,Cap Infrastr-Build Enh Wrk,Cap Infrastr-Build Enh Wrk,YC102,17/06/2021,661633,448.08,CAPITAL,J MCCANN & CO LTD,100841
North East Lincolnshire Council,http://statistics.data.gov.uk/id/local-authority/00FC),Economy And Growth,Regeneration,Central Clee Regeneration,Cap Infrastr-Build Enh Wrk,Cap Infrastr-Build Enh Wrk,YC102,23/06/2021,676801,102127.67,CAPITAL,PBS CONSTRUCTION (NORTH EAST) LTD,127459
North East Lincolnshire Council,http://statistics.data.gov.uk/id/local-authority/00FC),Economy And Growth,Regeneration,Europarc Fez,Cap Land/Build-Build Enh Wrk,Cap Land/Build-Build Enh Wrk,YA102,18/06/2021,678080,68184,CAPITAL,WYKELAND GROUP LTD,101729
North East Lincolnshire Council,http://statistics.data.gov.uk/id/local-authority/00FC),Economy And Growth,Regeneration,Stallingborough Aemu,Cap Land/Build-Build Enh Wrk,Cap Land/Build-Build Enh Wrk,YA102,25/06/2021,678890,2585.48,CAPITAL,GEO HOULTON & SONS LTD,102697
North East Lincolnshire Council,http://statistics.data.gov.uk/id/local-authority/00FC),Economy And Growth,Regeneration,Stallingborough Aemu,Cap Land/Build-Build Enh Wrk,Cap Land/Build-Build Enh Wrk,YA102,25/06/2021,678889,1922.65,CAPITAL,GEO HOULTON & SONS LTD,102697
North East Lincolnshire Council,http://statistics.data.gov.uk/id/local-authority/00FC),Economy And Growth,Regeneration,Stallingborough Aemu,Cap Land/Build-Build Enh Wrk,Cap Land/Build-Build Enh Wrk,YA102,29/06/2021,679395,23005.87,CAPITAL,GEO HOULTON & SONS LTD,102697
North East Lincolnshire Council,http://statistics.data.gov.uk/id/local-authority/00FC),Economy And Growth,Regeneration,Cdf - Open For Culture,Cap Land/Build-Prof Fees,Cap Land/Build-Prof Fees,YA103,03/06/2021,674904,4755,CAPITAL,DONALD INSALL ASSOCIATES LTD,146092
North East Lincolnshire Council,http://statistics.data.gov.uk/id/local-authority/00FC),Economy And Growth,Regeneration,Cdf - Open For Culture,Cap Land/Build-Build Enh Wrk,Cap Land/Build-Build Enh Wrk,YA102,11/06/2021,676855,18364,CAPITAL,BLACKROW ENGINEERING  LTD,111748
North East Lincolnshire Council,http://statistics.data.gov.uk/id/local-authority/00FC),Economy And Growth,Regeneration,Cdf - Open For Culture,Cap Land/Build-Build Enh Wrk,Cap Land/Build-Build Enh Wrk,YA102,11/06/2021,676854,5623.2,CAPITAL,BLACKROW ENGINEERING  LTD,111748
North East Lincolnshire Council,http://statistics.data.gov.uk/id/local-authority/00FC),Economy And Growth,Regeneration,Cdf - Open For Culture,Cap Land/Build-Prof Fees,Cap Land/Build-Prof Fees,YA103,01/06/2021,674810,700,CAPITAL,CUT LTD,105425
North East Lincolnshire Council,http://statistics.data.gov.uk/id/local-authority/00FC),Economy And Growth,Regeneration,Cdf - Open For Culture,Cap Land/Build-Prof Fees,Cap Land/Build-Prof Fees,YA103,28/06/2021,678940,1400,CAPITAL,ELECTRIC ANGEL DESIGN LLP,146973
North East Lincolnshire Council,http://statistics.data.gov.uk/id/local-authority/00FC),Economy And Growth,Regeneration,Future High Street Funds,Cap Land/Build-Prof Fees,Cap Land/Build-Prof Fees,YA103,10/06/2021,676628,8600,CAPITAL,MONTAGU EVANS LLP,145979
North East Lincolnshire Council,http://statistics.data.gov.uk/id/local-authority/00FC),Economy And Growth,Housing Highways And Transport,Local Transport Plan Schemes,Cap Infrastr-Build Enh Wrk,Cap Infrastr-Build Enh Wrk,YC102,21/06/2021,678093,5000,CAPITAL,COMMONPLACE DIGITAL LTD,148020
North East Lincolnshire Council,http://statistics.data.gov.uk/id/local-authority/00FC),Economy And Growth,Housing Highways And Transport,Local Transport Plan Schemes,Cap Infrastr-Build Enh Wrk,Cap Infrastr-Build Enh Wrk,YC102,03/06/2021,675416,4769.64,CAPITAL,EC SURFACING LTD,125951
North East Lincolnshire Council,http://statistics.data.gov.uk/id/local-authority/00FC),Economy And Growth,Housing Highways And Transport,Local Transport Plan Schemes,Cap Infrastr-Build Enh Wrk,Cap Infrastr-Build Enh Wrk,YC102,07/06/2021,675778,350,CAPITAL,J MCCANN & CO LTD,100841
North East Lincolnshire Council,http://statistics.data.gov.uk/id/local-authority/00FC),Economy And Growth,Housing Highways And Transport,Local Transport Plan Schemes,Cap Infrastr-Build Enh Wrk,Cap Infrastr-Build Enh Wrk,YC102,23/06/2021,677999,525,CAPITAL,JAPANESE KNOTWEED SOLUTIONS LTD,127717
North East Lincolnshire Council,http://statistics.data.gov.uk/id/local-authority/00FC),Economy And Growth,Housing Highways And Transport,Local Transport Plan Schemes,Cap Infrastr-Build Enh Wrk,Cap Infrastr-Build Enh Wrk,YC102,24/06/2021,678744,6978,CAPITAL,SOUTHAM SERVICES (LINCS) LTD,140951
North East Lincolnshire Council,http://statistics.data.gov.uk/id/local-authority/00FC),Economy And Growth,Housing Highways And Transport,Local Transport Plan Schemes,Cap Land/Build-Build Enh Wrk,Cap Land/Build-Build Enh Wrk,YA102,29/06/2021,678824,1169.97,CAPITAL,NORTHERN POWERGRID (YORKSHIRE) PLC,108328
North East Lincolnshire Council,http://statistics.data.gov.uk/id/local-authority/00FC),Economy And Growth,Housing Highways And Transport,Local Transport Plan Schemes,Cap Infrastr-Build Enh Wrk,Cap Infrastr-Build Enh Wrk,YC102,01/06/2021,670736,1090,CAPITAL,INTELLIGENT DATA COLLECTION LTD,137877
North East Lincolnshire Council,http://statistics.data.gov.uk/id/local-authority/00FC),Economy And Growth,Housing Highways And Transport,Local Transport Plan Schemes,Cap Infrastr-Build Enh Wrk,Cap Infrastr-Build Enh Wrk,YC102,22/06/2021,677996,750,CAPITAL,SEVENAIRS CONSULTING LTD,141944
North East Lincolnshire Council,http://statistics.data.gov.uk/id/local-authority/00FC),Economy And Growth,Housing Highways And Transport,Local Transport Plan Schemes,Cap Infrastr-Prof Fees,Cap Infrastr-Prof Fees,YC103,11/06/2021,676856,5490,CAPITAL,PELL FRISCHMANN CONSULTANTS LTD,100880
North East Lincolnshire Council,http://statistics.data.gov.uk/id/local-authority/00FC),Economy And Growth,Housing Highways And Transport,Local Transport Plan Schemes,Cap Infrastr-Prof Fees,Cap Infrastr-Prof Fees,YC103,21/06/2021,677744,1450,CAPITAL,NATIONWIDE DATA COLLECTION,127290
North East Lincolnshire Council,http://statistics.data.gov.uk/id/local-authority/00FC),Economy And Growth,Housing Highways And Transport,Local Transport Plan Schemes,Cap Land/Build-Build Enh Wrk,Cap Land/Build-Build Enh Wrk,YA102,16/06/2021,677168,1020,CAPITAL,ROOM 9 MEDIA LTD,125701
North East Lincolnshire Council,http://statistics.data.gov.uk/id/local-authority/00FC),Economy And Growth,Housing Highways And Transport,Local Transport Plan Schemes,Cap Infrastr-Build Enh Wrk,Cap Infrastr-Build Enh Wrk,YC102,29/06/2021,679382,830,CAPITAL,HUMBERSIDE MATERIALS LABORATORY LTD,122103
North East Lincolnshire Council,http://statistics.data.gov.uk/id/local-authority/00FC),Economy And Growth,Housing Highways And Transport,Local Transport Plan Schemes,Cap Infrastr-Build Enh Wrk,Cap Infrastr-Build Enh Wrk,YC102,17/06/2021,677826,100556.37,CAPITAL,SPECIALIST SURFACING LIMITED,100579
North East Lincolnshire Council,http://statistics.data.gov.uk/id/local-authority/00FC),Economy And Growth,Housing Highways And Transport,Local Transport Plan Schemes,Cap Infrastr-Build Enh Wrk,Cap Infrastr-Build Enh Wrk,YC102,15/06/2021,676871,2295,CAPITAL,CLS CIVIL ENGINEERING LTD,146425
North East Lincolnshire Council,http://statistics.data.gov.uk/id/local-authority/00FC),Economy And Growth,Housing Highways And Transport,Housing Assist Grants And Loan,Cap Grants To O/Side Sources,Cap Grants To O/Side Sources,YJ101,28/06/2021,678958,10176,CAPITAL,ETON-LINCS LIMITED,101510
North East Lincolnshire Council,http://statistics.data.gov.uk/id/local-authority/00FC),Economy And Growth,Housing Highways And Transport,Housing Assist Grants And Loan,Cap Grants To O/Side Sources,Cap Grants To O/Side Sources,YJ101,28/06/2021,678952,7014,CAPITAL,ETON-LINCS LIMITED,101510
North East Lincolnshire Council,http://statistics.data.gov.uk/id/local-authority/00FC),Economy And Growth,Housing Highways And Transport,Housing Assist Grants And Loan,Cap Grants To O/Side Sources,Cap Grants To O/Side Sources,YJ101,28/06/2021,678957,4770,CAPITAL,ETON-LINCS LIMITED,101510
North East Lincolnshire Council,http://statistics.data.gov.uk/id/local-authority/00FC),Economy And Growth,Housing Highways And Transport,Housing Assist Grants And Loan,Cap Grants To O/Side Sources,Cap Grants To O/Side Sources,YJ101,28/06/2021,678953,9976.8,CAPITAL,ETON-LINCS LIMITED,101510
North East Lincolnshire Council,http://statistics.data.gov.uk/id/local-authority/00FC),Economy And Growth,Housing Highways And Transport,Housing Assist Grants And Loan,Cap Grants To O/Side Sources,Cap Grants To O/Side Sources,YJ101,28/06/2021,678956,6688.8,CAPITAL,ETON-LINCS LIMITED,101510
North East Lincolnshire Council,http://statistics.data.gov.uk/id/local-authority/00FC),Economy And Growth,Housing Highways And Transport,Housing Assist Grants And Loan,Cap Grants To O/Side Sources,Cap Grants To O/Side Sources,YJ101,08/06/2021,675820,6464.46,CAPITAL,VIC HANSEN BUILDING & JOINERY LTD,103981
North East Lincolnshire Council,http://statistics.data.gov.uk/id/local-authority/00FC),Economy And Growth,Housing Highways And Transport,Housing Assist Grants And Loan,Cap Grants To O/Side Sources,Cap Grants To O/Side Sources,YJ101,28/06/2021,678944,2234.53,CAPITAL,ROLEC ENERGY LTD,148830
North East Lincolnshire Council,http://statistics.data.gov.uk/id/local-authority/00FC),Economy And Growth,Housing Highways And Transport,Housing Assist Grants And Loan,Cap Grants To O/Side Sources,Cap Grants To O/Side Sources,YJ101,08/06/2021,675837,6285.72,CAPITAL,EAST MARSH CONSTRUCTION CIC,146757
North East Lincolnshire Council,http://statistics.data.gov.uk/id/local-authority/00FC),Economy And Growth,Housing Highways And Transport,Gllep Junction Improvement,Cap Infrastr-Build Enh Wrk,Cap Infrastr-Build Enh Wrk,YC102,24/06/2021,678836,53137.67,CAPITAL,ENGIE SERVICES LTD,133267
North East Lincolnshire Council,http://statistics.data.gov.uk/id/local-authority/00FC),Economy And Growth,Housing Highways And Transport,Gllep Junction Improvement,Cap Infrastr-Build Enh Wrk,Cap Infrastr-Build Enh Wrk,YC102,25/06/2021,678866,4372.59,CAPITAL,VIRGIN MEDIA LTD,101831
North East Lincolnshire Council,http://statistics.data.gov.uk/id/local-authority/00FC),Economy And Growth,Housing Highways And Transport,Gllep Junction Improvement,Cap Infrastr-Build Enh Wrk,Cap Infrastr-Build Enh Wrk,YC102,09/06/2021,667964,4195.14,CAPITAL,NORTHERN POWERGRID (YORKSHIRE) PLC,108328
North East Lincolnshire Council,http://statistics.data.gov.uk/id/local-authority/00FC),Economy And Growth,Housing Highways And Transport,Gllep Junction Improvement,Cap Infrastr-Build Enh Wrk,Cap Infrastr-Build Enh Wrk,YC102,17/06/2021,670583,851.93,CAPITAL,J MCCANN & CO LTD,100841
North East Lincolnshire Council,http://statistics.data.gov.uk/id/local-authority/00FC),Economy And Growth,Housing Highways And Transport,Gllep Junction Improvement,Cap Infrastr-Build Enh Wrk,Cap Infrastr-Build Enh Wrk,YC102,17/06/2021,670584,696.59,CAPITAL,J MCCANN & CO LTD,100841
North East Lincolnshire Council,http://statistics.data.gov.uk/id/local-authority/00FC),Economy And Growth,Housing Highways And Transport,Gllep Junction Improvement,Cap Infrastr-Build Enh Wrk,Cap Infrastr-Build Enh Wrk,YC102,18/06/2021,657161,11919.77,CAPITAL,J MCCANN & CO LTD,100841
North East Lincolnshire Council,http://statistics.data.gov.uk/id/local-authority/00FC),Economy And Growth,Housing Highways And Transport,Gllep Junction Improvement,Cap Infrastr-Build Enh Wrk,Cap Infrastr-Build Enh Wrk,YC102,18/06/2021,674901,658,CAPITAL,J MCCANN & CO LTD,100841
North East Lincolnshire Council,http://statistics.data.gov.uk/id/local-authority/00FC),Economy And Growth,Housing Highways And Transport,Gllep Junction Improvement,Cap Infrastr-Build Enh Wrk,Cap Infrastr-Build Enh Wrk,YC102,29/06/2021,679115,1450,CAPITAL,LOCAL TRANSPORT PROJECTS LTD,121248
North East Lincolnshire Council,http://statistics.data.gov.uk/id/local-authority/00FC),Economy And Growth,Housing Highways And Transport,Gllep Junction Improvement,Cap Infrastr-Build Enh Wrk,Cap Infrastr-Build Enh Wrk,YC102,17/06/2021,675440,10373.18,CAPITAL,J MCCANN & CO LTD,100841
North East Lincolnshire Council,http://statistics.data.gov.uk/id/local-authority/00FC),Economy And Growth,Housing Highways And Transport,Gllep Junction Improvement,Cap Infrastr-Build Enh Wrk,Cap Infrastr-Build Enh Wrk,YC102,02/06/2021,670227,1782,CAPITAL,GAP GROUP LTD,103371
North East Lincolnshire Council,http://statistics.data.gov.uk/id/local-authority/00FC),Economy And Growth,Housing Highways And Transport,Gllep Junction Improvement,Cap Infrastr-Build Enh Wrk,Cap Infrastr-Build Enh Wrk,YC102,03/06/2021,675196,850.2,CAPITAL,GAP GROUP LTD,103371
North East Lincolnshire Council,http://statistics.data.gov.uk/id/local-authority/00FC),Economy And Growth,Housing Highways And Transport,A18 Laceby To Ludborough,Cap Land/Build-Build Enh Wrk,Cap Land/Build-Build Enh Wrk,YA102,28/06/2021,678975,35299.37,CAPITAL,C R REYNOLDS (CONSTRUCTION) LTD,103021
North East Lincolnshire Council,http://statistics.data.gov.uk/id/local-authority/00FC),Economy And Growth,Housing Highways And Transport,A18 Laceby To Ludborough,Cap Infrastr-Build Enh Wrk,Cap Infrastr-Build Enh Wrk,YC102,29/06/2021,679116,3592,CAPITAL,LOCAL TRANSPORT PROJECTS LTD,121248
North East Lincolnshire Council,http://statistics.data.gov.uk/id/local-authority/00FC),Economy And Growth,Housing Highways And Transport,Willingham / Peaks Drainage,Cap Land/Build-Prof Fees,Cap Land/Build-Prof Fees,YA103,08/06/2021,672077,31530.3,CAPITAL,SUBSCAN UDS LTD,148635
North East Lincolnshire Council,http://statistics.data.gov.uk/id/local-authority/00FC),Economy And Growth,Housing Highways And Transport,Accelerated Cons Funding,Cap Infrastr-Build Enh Wrk,Cap Infrastr-Build Enh Wrk,YC102,03/06/2021,673590,5007,CAPITAL,FIRST CONNECT UTILITY SOLUTIONS LTD,146619
North East Lincolnshire Council,http://statistics.data.gov.uk/id/local-authority/00FC),Economy And Growth,Housing Highways And Transport,Accelerated Cons Funding,Cap Infrastr-Build Enh Wrk,Cap Infrastr-Build Enh Wrk,YC102,29/06/2021,679098,1225,CAPITAL,HUMBERSIDE MATERIALS LABORATORY LTD,122103
North East Lincolnshire Council,http://statistics.data.gov.uk/id/local-authority/00FC),Economy And Growth,Housing Highways And Transport,Accelerated Cons Funding,Cap Infrastr-Build Enh Wrk,Cap Infrastr-Build Enh Wrk,YC102,15/06/2021,677239,4549.92,CAPITAL,VIRGIN MEDIA LTD,101831
North East Lincolnshire Council,http://statistics.data.gov.uk/id/local-authority/00FC),Economy And Growth,Housing Highways And Transport,Accelerated Cons Funding,Cap Infrastr-Prof Fees,Cap Infrastr-Prof Fees,YC103,03/06/2021,675254,25000,CAPITAL,ENGIE SERVICES LTD,133267
North East Lincolnshire Council,http://statistics.data.gov.uk/id/local-authority/00FC),Economy And Growth,Housing Highways And Transport,Accelerated Cons Funding,Cap Infrastr-Prof Fees,Cap Infrastr-Prof Fees,YC103,18/06/2021,675256,26843.33,CAPITAL,ENGIE SERVICES LTD,133267
North East Lincolnshire Council,http://statistics.data.gov.uk/id/local-authority/00FC),Economy And Growth,Housing Highways And Transport,Accelerated Cons Funding,Cap Land/Build-Build Enh Wrk,Cap Land/Build-Build Enh Wrk,YA102,18/06/2021,676504,516.65,CAPITAL,CGC ECOLOGY LTD,142378
North East Lincolnshire Council,http://statistics.data.gov.uk/id/local-authority/00FC),Economy And Growth,Housing Highways And Transport,Accelerated Cons Funding,Cap Land/Build-Prof Fees,Cap Land/Build-Prof Fees,YA103,21/06/2021,677815,4455,CAPITAL,ENGIE SERVICES LTD,133267
North East Lincolnshire Council,http://statistics.data.gov.uk/id/local-authority/00FC),Economy And Growth,Housing Highways And Transport,Accelerated Cons Funding,Cap Land/Build-Prof Fees,Cap Land/Build-Prof Fees,YA103,21/06/2021,677816,3000,CAPITAL,ENGIE SERVICES LTD,133267
North East Lincolnshire Council,http://statistics.data.gov.uk/id/local-authority/00FC),Economy And Growth,Housing Highways And Transport,Estate Road No. 2,Cap Infrastr-Build Enh Wrk,Cap Infrastr-Build Enh Wrk,YC102,03/06/2021,675424,25752.7,CAPITAL,ENGIE SERVICES LTD,133267
North East Lincolnshire Council,http://statistics.data.gov.uk/id/local-authority/00FC),Economy And Growth,Housing Highways And Transport,Corporation Rd Bridge Refurb,Cap Infrastr-Build Enh Wrk,Cap Infrastr-Build Enh Wrk,YC102,07/06/2021,675773,12408.93,CAPITAL,ENGIE SERVICES LTD,133267
North East Lincolnshire Council,http://statistics.data.gov.uk/id/local-authority/00FC),Economy And Growth,Housing Highways And Transport,Grimsby-Immingham Ext Cycleway,Cap Infrastr-Build Enh Wrk,Cap Infrastr-Build Enh Wrk,YC102,01/06/2021,674812,40189.5,CAPITAL,ONEWAY TM LIMITED,128602
North East Lincolnshire Council,http://statistics.data.gov.uk/id/local-authority/00FC),Economy And Growth,Housing Highways And Transport,Grimsby-Immingham Ext Cycleway,Cap Infrastr-Build Enh Wrk,Cap Infrastr-Build Enh Wrk,YC102,08/06/2021,675437,43728.9,CAPITAL,J MCCANN & CO LTD,100841
North East Lincolnshire Council,http://statistics.data.gov.uk/id/local-authority/00FC),Economy And Growth,Housing Highways And Transport,Grimsby-Immingham Ext Cycleway,Cap Infrastr-Build Enh Wrk,Cap Infrastr-Build Enh Wrk,YC102,10/06/2021,676822,32811.06,CAPITAL,J MCCANN & CO LTD,100841
North East Lincolnshire Council,http://statistics.data.gov.uk/id/local-authority/00FC),Economy And Growth,Housing Highways And Transport,Grimsby-Immingham Ext Cycleway,Cap Infrastr-Build Enh Wrk,Cap Infrastr-Build Enh Wrk,YC102,18/06/2021,678085,2914.29,CAPITAL,ENGIE SERVICES LTD,133267
North East Lincolnshire Council,http://statistics.data.gov.uk/id/local-authority/00FC),Economy And Growth,Housing Highways And Transport,Grimsby-Immingham Ext Cycleway,Cap Infrastr-Build Enh Wrk,Cap Infrastr-Build Enh Wrk,YC102,18/06/2021,678086,4778.95,CAPITAL,ENGIE SERVICES LTD,133267
North East Lincolnshire Council,http://statistics.data.gov.uk/id/local-authority/00FC),Economy And Growth,Housing Highways And Transport,Green Homes Lad Phase 2,Cap Land/Build-Build Enh Wrk,Cap Land/Build-Build Enh Wrk,YA102,29/06/2021,679383,72218.75,CAPITAL,ENGIE SERVICES LTD,133267
North East Lincolnshire Council,http://statistics.data.gov.uk/id/local-authority/00FC),Resources,Law Governance And Assets,Backlog Maintenance,Cap Land/Build-Build Enh Wrk,Cap Land/Build-Build Enh Wrk,YA102,14/06/2021,676686,5000,CAPITAL,ENGIE SERVICES LTD,133267
North East Lincolnshire Council,http://statistics.data.gov.uk/id/local-authority/00FC),Resources,Law Governance And Assets,Backlog Maintenance,Cap Land/Build-Build Enh Wrk,Cap Land/Build-Build Enh Wrk,YA102,02/06/2021,674930,846.08,CAPITAL,MOBILE MINI UK LTD,105081
North East Lincolnshire Council,http://statistics.data.gov.uk/id/local-authority/00FC),Resources,Law Governance And Assets,Backlog Maintenance,Cap Land/Build-Build Enh Wrk,Cap Land/Build-Build Enh Wrk,YA102,30/06/2021,679091,846.08,CAPITAL,MOBILE MINI UK LTD,105081
North East Lincolnshire Council,http://statistics.data.gov.uk/id/local-authority/00FC),Resources,Law Governance And Assets,Backlog Maintenance,Cap Land/Build-Build Enh Wrk,Cap Land/Build-Build Enh Wrk,YA102,14/06/2021,676685,500,CAPITAL,ENGIE SERVICES LTD,133267
North East Lincolnshire Council,http://statistics.data.gov.uk/id/local-authority/00FC),Resources,Law Governance And Assets,Backlog Maintenance,Cap Land/Build-Build Enh Wrk,Cap Land/Build-Build Enh Wrk,YA102,10/06/2021,676591,320,CAPITAL,DANFO (UK) LIMITED,142148
North East Lincolnshire Council,http://statistics.data.gov.uk/id/local-authority/00FC),Resources,Law Governance And Assets,Backlog Maintenance,Cap Land/Build-Build Enh Wrk,Cap Land/Build-Build Enh Wrk,YA102,10/06/2021,676683,1000,CAPITAL,ENGIE SERVICES LTD,133267
North East Lincolnshire Council,http://statistics.data.gov.uk/id/local-authority/00FC),Resources,Law Governance And Assets,Backlog Maintenance,Cap Land/Build-Build Enh Wrk,Cap Land/Build-Build Enh Wrk,YA102,04/06/2021,675591,4818,CAPITAL,KES BUILDING MAINTENANCE LIMITED,100786
North East Lincolnshire Council,http://statistics.data.gov.uk/id/local-authority/00FC),Resources,Law Governance And Assets,Backlog Maintenance,Cap Land/Build-Build Enh Wrk,Cap Land/Build-Build Enh Wrk,YA102,10/06/2021,676681,250,CAPITAL,ENGIE SERVICES LTD,133267
North East Lincolnshire Council,http://statistics.data.gov.uk/id/local-authority/00FC),Resources,Law Governance And Assets,Backlog Maintenance,Cap Land/Build-Build Enh Wrk,Cap Land/Build-Build Enh Wrk,YA102,10/06/2021,676680,500,CAPITAL,ENGIE SERVICES LTD,133267
North East Lincolnshire Council,http://statistics.data.gov.uk/id/local-authority/00FC),Resources,Law Governance And Assets,Backlog Maintenance,Cap Land/Build-Build Enh Wrk,Cap Land/Build-Build Enh Wrk,YA102,10/06/2021,676682,250,CAPITAL,ENGIE SERVICES LTD,133267
North East Lincolnshire Council,http://statistics.data.gov.uk/id/local-authority/00FC),Resources,Law Governance And Assets,Backlog Maintenance,Cap Land/Build-Build Enh Wrk,Cap Land/Build-Build Enh Wrk,YA102,10/06/2021,676679,250,CAPITAL,ENGIE SERVICES LTD,133267
North East Lincolnshire Council,http://statistics.data.gov.uk/id/local-authority/00FC),Resources,Law Governance And Assets,Backlog Maintenance,Cap Land/Build-Prof Fees,Cap Land/Build-Prof Fees,YA103,15/06/2021,677208,500,CAPITAL,ENGIE SERVICES LTD,133267
North East Lincolnshire Council,http://statistics.data.gov.uk/id/local-authority/00FC),Resources,Law Governance And Assets,Playing Pitch Reprovision,Cap Land/Build-Prof Fees,Cap Land/Build-Prof Fees,YA103,22/06/2021,677095,2000,CAPITAL,ENGIE SERVICES LTD,133267
North East Lincolnshire Council,http://statistics.data.gov.uk/id/local-authority/00FC),Resources,Law Governance And Assets,Playing Pitch Reprovision,Cap Land/Build-Prof Fees,Cap Land/Build-Prof Fees,YA103,10/06/2021,676677,2000,CAPITAL,ENGIE SERVICES LTD,133267
North East Lincolnshire Council,http://statistics.data.gov.uk/id/local-authority/00FC),Resources,Law Governance And Assets,Poplar Road Bus Unit Expansion,Cap Land/Build-Build Enh Wrk,Cap Land/Build-Build Enh Wrk,YA102,07/06/2021,675578,4095,CAPITAL,CLS CIVIL ENGINEERING LTD,146425
North East Lincolnshire Council,http://statistics.data.gov.uk/id/local-authority/00FC),Resources,Law Governance And Assets,Poplar Road Bus Unit Expansion,Cap Land/Build-Prof Fees,Cap Land/Build-Prof Fees,YA103,15/06/2021,677207,7000,CAPITAL,ENGIE SERVICES LTD,133267
North East Lincolnshire Council,http://statistics.data.gov.uk/id/local-authority/00FC),Resources,Law Governance And Assets,Business Centre Improvements,Cap Land/Build-Prof Fees,Cap Land/Build-Prof Fees,YA103,15/06/2021,677216,3000,CAPITAL,ENGIE SERVICES LTD,133267
North East Lincolnshire Council,http://statistics.data.gov.uk/id/local-authority/00FC),Resources,Policy Strategy And Resources,Ict Refresh,Cap Land/Build-Build Enh Wrk,Cap Land/Build-Build Enh Wrk,YA102,17/06/2021,668939,12275.16,CAPITAL,DELL COMPUTER CORPORATION LTD,100892
North East Lincolnshire Council,http://statistics.data.gov.uk/id/local-authority/00FC),Resources,Policy Strategy And Resources,Ict Refresh,Cap Land/Build-Build Enh Wrk,Cap Land/Build-Build Enh Wrk,YA102,17/06/2021,668941,12275.16,CAPITAL,DELL COMPUTER CORPORATION LTD,100892
North East Lincolnshire Council,http://statistics.data.gov.uk/id/local-authority/00FC),Resources,Policy Strategy And Resources,Ict Refresh,Cap Land/Build-Build Enh Wrk,Cap Land/Build-Build Enh Wrk,YA102,17/06/2021,672145,35360.62,CAPITAL,DELL COMPUTER CORPORATION LTD,100892
North East Lincolnshire Council,http://statistics.data.gov.uk/id/local-authority/00FC),Resources,Policy Strategy And Resources,Ict Refresh,Cap Land/Build-Build Enh Wrk,Cap Land/Build-Build Enh Wrk,YA102,17/06/2021,672152,35360.62,CAPITAL,DELL COMPUTER CORPORATION LTD,100892
North East Lincolnshire Council,http://statistics.data.gov.uk/id/local-authority/00FC),Resources,Policy Strategy And Resources,Ict Refresh,Cap Land/Build-Build Enh Wrk,Cap Land/Build-Build Enh Wrk,YA102,15/06/2021,676972,1200,CAPITAL,TOTAL COMPUTER NETWORKS LTD,141310
North East Lincolnshire Council,http://statistics.data.gov.uk/id/local-authority/00FC),Resources,Policy Strategy And Resources,Ict Refresh,Cap Land/Build-Build Enh Wrk,Cap Land/Build-Build Enh Wrk,YA102,15/06/2021,676972,290,CAPITAL,TOTAL COMPUTER NETWORKS LTD,141310
North East Lincolnshire Council,http://statistics.data.gov.uk/id/local-authority/00FC),Resources,Policy Strategy And Resources,Ict Refresh,Cap Land/Build-Build Enh Wrk,Cap Land/Build-Build Enh Wrk,YA102,15/06/2021,676972,1850,CAPITAL,TOTAL COMPUTER NETWORKS LTD,141310
North East Lincolnshire Council,http://statistics.data.gov.uk/id/local-authority/00FC),Resources,Policy Strategy And Resources,Ict Refresh,Cap Land/Build-Build Enh Wrk,Cap Land/Build-Build Enh Wrk,YA102,17/06/2021,677183,260,CAPITAL,TOTAL COMPUTER NETWORKS LTD,141310
North East Lincolnshire Council,http://statistics.data.gov.uk/id/local-authority/00FC),Resources,Policy Strategy And Resources,Ict Refresh,Cap Land/Build-Build Enh Wrk,Cap Land/Build-Build Enh Wrk,YA102,14/06/2021,676867,830,CAPITAL,TOTAL COMPUTER NETWORKS LTD,141310
North East Lincolnshire Council,http://statistics.data.gov.uk/id/local-authority/00FC),Resources,Policy Strategy And Resources,Ict Refresh,Cap Land/Build-Build Enh Wrk,Cap Land/Build-Build Enh Wrk,YA102,25/06/2021,678154,2200,CAPITAL,TOTAL COMPUTER NETWORKS LTD,141310
North East Lincolnshire Council,http://statistics.data.gov.uk/id/local-authority/00FC),Resources,Policy Strategy And Resources,Ict Refresh,Cap Land/Build-Build Enh Wrk,Cap Land/Build-Build Enh Wrk,YA102,25/06/2021,678154,60500,CAPITAL,TOTAL COMPUTER NETWORKS LTD,141310
North East Lincolnshire Council,http://statistics.data.gov.uk/id/local-authority/00FC),Resources,Policy Strategy And Resources,Ict Refresh,Cap Land/Build-Build Enh Wrk,Cap Land/Build-Build Enh Wrk,YA102,21/06/2021,678004,480,CAPITAL,XMA LIMITED,100699
North East Lincolnshire Council,http://statistics.data.gov.uk/id/local-authority/00FC),Resources,Policy Strategy And Resources,Ict Refresh,Cap Land/Build-Build Enh Wrk,Cap Land/Build-Build Enh Wrk,YA102,21/06/2021,678130,904.93,CAPITAL,XMA LIMITED,100699
North East Lincolnshire Council,http://statistics.data.gov.uk/id/local-authority/00FC),Resources,Policy Strategy And Resources,Ict Refresh,Cap Land/Build-Build Enh Wrk,Cap Land/Build-Build Enh Wrk,YA102,29/06/2021,679363,350,CAPITAL,TOTAL COMPUTER NETWORKS LTD,141310
North East Lincolnshire Council,http://statistics.data.gov.uk/id/local-authority/00FC),Resources,Policy Strategy And Resources,Ict Refresh,Cap Intangible Assets,Cap Intangible Assets,YH101,02/06/2021,673781,967.92,CAPITAL,SOFTWAREONE UK LTD,146137
North East Lincolnshire Council,http://statistics.data.gov.uk/id/local-authority/00FC),Resources,Policy Strategy And Resources,Ict Refresh,Cap Intangible Assets,Cap Intangible Assets,YH101,02/06/2021,673781,12262.08,CAPITAL,SOFTWAREONE UK LTD,146137
North East Lincolnshire Council,http://statistics.data.gov.uk/id/local-authority/00FC),Environment,Environment,Fleet Replacement Programme,Cap Veh Plt Eqp-Purchase,Cap Veh Plt Eqp-Purchase,YB101,22/06/2021,678259,14550,CAPITAL,READY RENT A CAR,100557
North East Lincolnshire Council,http://statistics.data.gov.uk/id/local-authority/00FC),Environment,Environment,Fleet Replacement Programme,Cap Veh Plt Eqp-Purchase,Cap Veh Plt Eqp-Purchase,YB101,21/06/2021,678146,15325,CAPITAL,RON BROOKS LTD,149178
North East Lincolnshire Council,http://statistics.data.gov.uk/id/local-authority/00FC),Environment,Environment,Fleet Replacement Programme,Cap Veh Plt Eqp-Purchase,Cap Veh Plt Eqp-Purchase,YB101,17/06/2021,674941,1309.96,CAPITAL,BAUER RADIO LTD,122350
North East Lincolnshire Council,http://statistics.data.gov.uk/id/local-authority/00FC),Environment,Environment,Smart Energy For Business,Cap Land/Build-Build Enh Wrk,Cap Land/Build-Build Enh Wrk,YA102,24/06/2021,678579,9844,CAPITAL,CARR GRANGE JOINERY LTD,148079
North East Lincolnshire Council,http://statistics.data.gov.uk/id/local-authority/00FC),Environment,Environment,Smart Energy For Business,Cap Land/Build-Build Enh Wrk,Cap Land/Build-Build Enh Wrk,YA102,24/06/2021,678578,11445,CAPITAL,ZONE FITNESS (SLEAFORD) LTD,149199
North East Lincolnshire Council,http://statistics.data.gov.uk/id/local-authority/00FC),Environment,Environment,Smart Energy For Business,Cap Land/Build-Build Enh Wrk,Cap Land/Build-Build Enh Wrk,YA102,24/06/2021,678713,19873.93,CAPITAL,LOVELLS (PETERBOROUGH) LTD,148748
North East Lincolnshire Council,http://statistics.data.gov.uk/id/local-authority/00FC),Environment,Environment,Smart Energy For Business,Cap Land/Build-Build Enh Wrk,Cap Land/Build-Build Enh Wrk,YA102,16/06/2021,677695,49058.23,CAPITAL,RAMCO (UK) LTD,148565
North East Lincolnshire Council,http://statistics.data.gov.uk/id/local-authority/00FC),Environment,Environment,Smart Energy For Business,Cap Land/Build-Build Enh Wrk,Cap Land/Build-Build Enh Wrk,YA102,01/06/2021,674647,8480,CAPITAL,ENDOTEC LIMITED,127422
North East Lincolnshire Council,http://statistics.data.gov.uk/id/local-authority/00FC),Environment,Environment,Smart Energy For Business,Cap Land/Build-Build Enh Wrk,Cap Land/Build-Build Enh Wrk,YA102,01/06/2021,674850,3124.19,CAPITAL,SANDRINGHAM ROAD PHARMACY LTD,104024
North East Lincolnshire Council,http://statistics.data.gov.uk/id/local-authority/00FC),Environment,Environment,Smart Energy For Business,Cap Land/Build-Build Enh Wrk,Cap Land/Build-Build Enh Wrk,YA102,08/06/2021,675726,74298.42,CAPITAL,GRANTHAM TENNIS CLUB LIMITED,148999
North East Lincolnshire Council,http://statistics.data.gov.uk/id/local-authority/00FC),Environment,Environment,Smart Energy For Business,Cap Land/Build-Build Enh Wrk,Cap Land/Build-Build Enh Wrk,YA102,10/06/2021,676565,41925.27,CAPITAL,GANSTEAD PARK GOLF CLUB LTD,148447
North East Lincolnshire Council,http://statistics.data.gov.uk/id/local-authority/00FC),Environment,Environment,Smart Energy For Business,Cap Land/Build-Build Enh Wrk,Cap Land/Build-Build Enh Wrk,YA102,10/06/2021,676566,11536,CAPITAL,COUNTRYSIDE ART LTD,108315
North East Lincolnshire Council,http://statistics.data.gov.uk/id/local-authority/00FC),Environment,Environment,Smart Energy For Business,Cap Land/Build-Build Enh Wrk,Cap Land/Build-Build Enh Wrk,YA102,16/06/2021,677694,46680.73,CAPITAL,E-FACTOR GROUP LTD,122549
North East Lincolnshire Council,http://statistics.data.gov.uk/id/local-authority/00FC),Environment,Environment,Smart Energy For Business,Cap Land/Build-Build Enh Wrk,Cap Land/Build-Build Enh Wrk,YA102,29/06/2021,678919,2640,CAPITAL,DODDINGTON FARMS LLP,147690
North East Lincolnshire Council,http://statistics.data.gov.uk/id/local-authority/00FC),Environment,Environment,Smart Energy For Business,Cap Land/Build-Build Enh Wrk,Cap Land/Build-Build Enh Wrk,YA102,16/06/2021,677696,500,CAPITAL,SOUTH BANK MARINE,148927
North East Lincolnshire Council,http://statistics.data.gov.uk/id/local-authority/00FC),Environment,Environment,Enhancement Bereavement Serv,Cap Land/Build-Build Enh Wrk,Cap Land/Build-Build Enh Wrk,YA102,24/06/2021,678743,2208.61,CAPITAL,TOPCON CONSTRUCTION LTD,108462
North East Lincolnshire Council,http://statistics.data.gov.uk/id/local-authority/00FC),Environment,Environment,Enhancement Bereavement Serv,Cap Land/Build-Build Enh Wrk,Cap Land/Build-Build Enh Wrk,YA102,28/06/2021,679008,2000,CAPITAL,ENGIE SERVICES LTD,133267
North East Lincolnshire Council,http://statistics.data.gov.uk/id/local-authority/00FC),Environment,Environment,Enhancement Bereavement Serv,Cap Land/Build-Build Enh Wrk,Cap Land/Build-Build Enh Wrk,YA102,22/06/2021,678262,1202.08,CAPITAL,ENGIE SERVICES LTD,133267
North East Lincolnshire Council,http://statistics.data.gov.uk/id/local-authority/00FC),Environment,Environment,Depot Rationalisation,Cap Land/Build-Purchase,Cap Land/Build-Purchase,YA101,17/06/2021,678016,7500,CAPITAL,ENGIE SERVICES LTD,133267
North East Lincolnshire Council,http://statistics.data.gov.uk/id/local-authority/00FC),Environment,Environment,Depot Rationalisation,Cap Land/Build-Purchase,Cap Land/Build-Purchase,YA101,17/06/2021,678017,7500,CAPITAL,ENGIE SERVICES LTD,133267
North East Lincolnshire Council,http://statistics.data.gov.uk/id/local-authority/00FC),Environment,Environment,Scartho Cem Lodge/Waiting Rm,Cap Veh Plt Eqp-Build Enh Wrk,Cap Veh Plt Eqp-Build Enh Wrk,YB102,29/06/2021,678817,2683.2,CAPITAL,K&I SCAFFOLDING & ACCESS LTD,149097
North East Lincolnshire Council,http://statistics.data.gov.uk/id/local-authority/00FC),Environment,Environment,Resort Management,Cap Land/Build-Build Enh Wrk,Cap Land/Build-Build Enh Wrk,YA102,24/06/2021,678133,556.88,CAPITAL,MOBILE MINI UK LTD,105081
North East Lincolnshire Council,http://statistics.data.gov.uk/id/local-authority/00FC),Environment,Environment,Resort Management,Cap Land/Build-Build Enh Wrk,Cap Land/Build-Build Enh Wrk,YA102,15/06/2021,677099,3306,CAPITAL,LINCS ELECTRICAL SERVICES LTD,102044
North East Lincolnshire Council,http://statistics.data.gov.uk/id/local-authority/00FC),Environment,Environment,Resort Management,Cap Land/Build-Build Enh Wrk,Cap Land/Build-Build Enh Wrk,YA102,15/06/2021,677098,584.51,CAPITAL,LINCS ELECTRICAL SERVICES LTD,102044
North East Lincolnshire Council,http://statistics.data.gov.uk/id/local-authority/00FC),Environment,Environment,Public Sector Decarbonisation,Cap Land/Build-Build Enh Wrk,Cap Land/Build-Build Enh Wrk,YA102,17/06/2021,677828,39138.45,CAPITAL,TOPCON BUILDING LTD,144162
North East Lincolnshire Council,http://statistics.data.gov.uk/id/local-authority/00FC),Adult Services,Adult Services,Hps-Disabled Fac. Grants,Cap Grants To O/Side Sources,Cap Grants To O/Side Sources,YJ101,09/06/2021,675229,4906.66,CAPITAL,ABLE 4 ENTERPRISE LTD,120159
North East Lincolnshire Council,http://statistics.data.gov.uk/id/local-authority/00FC),Adult Services,Adult Services,Hps-Disabled Fac. Grants,Cap Grants To O/Side Sources,Cap Grants To O/Side Sources,YJ101,25/06/2021,678819,11181.83,CAPITAL,KES BUILDING MAINTENANCE LIMITED,100786
North East Lincolnshire Council,http://statistics.data.gov.uk/id/local-authority/00FC),Adult Services,Adult Services,Hps-Disabled Fac. Grants,Cap Grants To O/Side Sources,Cap Grants To O/Side Sources,YJ101,21/06/2021,678012,13091.92,CAPITAL,HOBSON & PORTER,101010
North East Lincolnshire Council,http://statistics.data.gov.uk/id/local-authority/00FC),Adult Services,Adult Services,Hps-Disabled Fac. Grants,Cap Grants To O/Side Sources,Cap Grants To O/Side Sources,YJ101,15/06/2021,677232,2821.9,CAPITAL,DOLPHIN MOBILITY EAST MIDLANDS LTD,101317
North East Lincolnshire Council,http://statistics.data.gov.uk/id/local-authority/00FC),Adult Services,Adult Services,Hps-Disabled Fac. Grants,Cap Grants To O/Side Sources,Cap Grants To O/Side Sources,YJ101,08/06/2021,675273,1185.2,CAPITAL,ENGIE SERVICES LTD,133267
North East Lincolnshire Council,http://statistics.data.gov.uk/id/local-authority/00FC),Adult Services,Adult Services,Hps-Disabled Fac. Grants,Cap Grants To O/Side Sources,Cap Grants To O/Side Sources,YJ101,04/06/2021,675234,4180,CAPITAL,OBAM LIFT SERVICES LTD,112666
North East Lincolnshire Council,http://statistics.data.gov.uk/id/local-authority/00FC),Adult Services,Adult Services,Hps-Disabled Fac. Grants,Cap Grants To O/Side Sources,Cap Grants To O/Side Sources,YJ101,23/06/2021,677804,4170,CAPITAL,CLOSOMAT LTD,100849
North East Lincolnshire Council,http://statistics.data.gov.uk/id/local-authority/00FC),Adult Services,Adult Services,Hps-Disabled Fac. Grants,Cap Grants To O/Side Sources,Cap Grants To O/Side Sources,YJ101,03/06/2021,675274,1133,CAPITAL,ENGIE SERVICES LTD,133267
North East Lincolnshire Council,http://statistics.data.gov.uk/id/local-authority/00FC),Adult Services,Adult Services,Hps-Disabled Fac. Grants,Cap Grants To O/Side Sources,Cap Grants To O/Side Sources,YJ101,03/06/2021,675570,4242,CAPITAL,CLOSOMAT LTD,100849
North East Lincolnshire Council,http://statistics.data.gov.uk/id/local-authority/00FC),Adult Services,Adult Services,Hps-Disabled Fac. Grants,Cap Grants To O/Side Sources,Cap Grants To O/Side Sources,YJ101,03/06/2021,675384,2255,CAPITAL,ENGIE SERVICES LTD,133267
North East Lincolnshire Council,http://statistics.data.gov.uk/id/local-authority/00FC),Adult Services,Adult Services,Hps-Disabled Fac. Grants,Cap Grants To O/Side Sources,Cap Grants To O/Side Sources,YJ101,03/06/2021,675279,4377,CAPITAL,CLOSOMAT LTD,100849
North East Lincolnshire Council,http://statistics.data.gov.uk/id/local-authority/00FC),Adult Services,Adult Services,Hps-Disabled Fac. Grants,Cap Grants To O/Side Sources,Cap Grants To O/Side Sources,YJ101,28/06/2021,678911,9947.32,CAPITAL,TSPRO LTD,146603
North East Lincolnshire Council,http://statistics.data.gov.uk/id/local-authority/00FC),Adult Services,Adult Services,Hps-Disabled Fac. Grants,Cap Grants To O/Side Sources,Cap Grants To O/Side Sources,YJ101,21/06/2021,678132,10228.71,CAPITAL,ABLE 4 ENTERPRISE LTD,120159
North East Lincolnshire Council,http://statistics.data.gov.uk/id/local-authority/00FC),Adult Services,Adult Services,Hps-Disabled Fac. Grants,Cap Grants To O/Side Sources,Cap Grants To O/Side Sources,YJ101,08/06/2021,675257,11936.03,CAPITAL,ABLE 4 ENTERPRISE LTD,120159
North East Lincolnshire Council,http://statistics.data.gov.uk/id/local-authority/00FC),Adult Services,Adult Services,Hps-Disabled Fac. Grants,Cap Grants To O/Side Sources,Cap Grants To O/Side Sources,YJ101,29/06/2021,679094,9644.67,CAPITAL,TSPRO LTD,146603
North East Lincolnshire Council,http://statistics.data.gov.uk/id/local-authority/00FC),Adult Services,Adult Services,Hps-Disabled Fac. Grants,Cap Grants To O/Side Sources,Cap Grants To O/Side Sources,YJ101,28/06/2021,678998,13126.66,CAPITAL,TSPRO LTD,146603
North East Lincolnshire Council,http://statistics.data.gov.uk/id/local-authority/00FC),Adult Services,Adult Services,Hps-Disabled Fac. Grants,Cap Grants To O/Side Sources,Cap Grants To O/Side Sources,YJ101,28/06/2021,678904,4665,CAPITAL,OBAM LIFT SERVICES LTD,112666
North East Lincolnshire Council,http://statistics.data.gov.uk/id/local-authority/00FC),Adult Services,Adult Services,Hps-Disabled Fac. Grants,Cap Grants To O/Side Sources,Cap Grants To O/Side Sources,YJ101,22/06/2021,678245,1759.55,CAPITAL,DOLPHIN MOBILITY EAST MIDLANDS LTD,101317
North East Lincolnshire Council,http://statistics.data.gov.uk/id/local-authority/00FC),Adult Services,Adult Services,Hps-Disabled Fac. Grants,Cap Grants To O/Side Sources,Cap Grants To O/Side Sources,YJ101,08/06/2021,675821,8039.7,CAPITAL,JC POMFRET CONSTRUCTION LTD,136453
North East Lincolnshire Council,http://statistics.data.gov.uk/id/local-authority/00FC),Adult Services,Adult Services,Hps-Disabled Fac. Grants,Cap Grants To O/Side Sources,Cap Grants To O/Side Sources,YJ101,04/06/2021,675259,6348.12,CAPITAL,JC POMFRET CONSTRUCTION LTD,136453
North East Lincolnshire Council,http://statistics.data.gov.uk/id/local-authority/00FC),Adult Services,Adult Services,Hps-Disabled Fac. Grants,Cap Grants To O/Side Sources,Cap Grants To O/Side Sources,YJ101,21/06/2021,678211,4962,CAPITAL,E S RUDKIN LTD,100632
North East Lincolnshire Council,http://statistics.data.gov.uk/id/local-authority/00FC),Adult Services,Adult Services,Hps-Disabled Fac. Grants,Cap Grants To O/Side Sources,Cap Grants To O/Side Sources,YJ101,21/06/2021,678227,7244.51,CAPITAL,JC POMFRET CONSTRUCTION LTD,136453
North East Lincolnshire Council,http://statistics.data.gov.uk/id/local-authority/00FC),Adult Services,Adult Services,Hps-Disabled Fac. Grants,Cap Grants To O/Side Sources,Cap Grants To O/Side Sources,YJ101,08/06/2021,675924,4448.73,CAPITAL,N LINCS & GOOLE HOSPITALS NHS FOUNDATION TRUS,111074
North East Lincolnshire Council,http://statistics.data.gov.uk/id/local-authority/00FC),Childrens Services,Education And Inclusion,Access And Education Services,Contract Hire-Operating Leases,Vehicles - Contract Hire,JC101,07/06/2021,675685,1100,REVENUE,REDACTED PERSONAL INFORMATION,REDACTED PERSONAL INFORMATION
North East Lincolnshire Council,http://statistics.data.gov.uk/id/local-authority/00FC),Childrens Services,Education And Inclusion,Access And Education Services,Contract Hire-Operating Leases,Vehicles - Contract Hire,JC101,08/06/2021,675927,692.5,REVENUE,LINKS TAXIS,100546
North East Lincolnshire Council,http://statistics.data.gov.uk/id/local-authority/00FC),Childrens Services,Education And Inclusion,Access And Education Services,Contract Hire-Operating Leases,Vehicles - Contract Hire,JC101,03/06/2021,675200,1354.25,REVENUE,LINKS TAXIS,100546
North East Lincolnshire Council,http://statistics.data.gov.uk/id/local-authority/00FC),Childrens Services,Education And Inclusion,Access And Education Services,Contract Hire-Operating Leases,Vehicles - Contract Hire,JC101,03/06/2021,675191,972,REVENUE,LINKS TAXIS,100546
North East Lincolnshire Council,http://statistics.data.gov.uk/id/local-authority/00FC),Childrens Services,Education And Inclusion,Access And Education Services,Contract Hire-Operating Leases,Vehicles - Contract Hire,JC101,03/06/2021,675193,684,REVENUE,LINKS TAXIS,100546
North East Lincolnshire Council,http://statistics.data.gov.uk/id/local-authority/00FC),Childrens Services,Education And Inclusion,Access And Education Services,Contract Hire-Operating Leases,Vehicles - Contract Hire,JC101,01/06/2021,674698,288.2,REVENUE,GRIMSBY MINIBUSES LTD,121524
North East Lincolnshire Council,http://statistics.data.gov.uk/id/local-authority/00FC),Childrens Services,Education And Inclusion,Access And Education Services,Contract Hire-Operating Leases,Vehicles - Contract Hire,JC101,08/06/2021,676493,265.6,REVENUE,GRIMSBY MINIBUSES LTD,121524
North East Lincolnshire Council,http://statistics.data.gov.uk/id/local-authority/00FC),Childrens Services,Education And Inclusion,Access And Education Services,Contract Hire-Operating Leases,Vehicles - Contract Hire,JC101,21/06/2021,678176,2336,REVENUE,LINKS TAXIS,100546
North East Lincolnshire Council,http://statistics.data.gov.uk/id/local-authority/00FC),Childrens Services,Education And Inclusion,Access And Education Services,Contract Hire-Operating Leases,Vehicles - Contract Hire,JC101,03/06/2021,675179,656.5,REVENUE,LINKS TAXIS,100546
North East Lincolnshire Council,http://statistics.data.gov.uk/id/local-authority/00FC),Childrens Services,Education And Inclusion,Access And Education Services,Contract Hire-Operating Leases,Vehicles - Contract Hire,JC101,03/06/2021,675215,370,REVENUE,COXONS CARS LIMITED,100578
North East Lincolnshire Council,http://statistics.data.gov.uk/id/local-authority/00FC),Childrens Services,Education And Inclusion,Access And Education Services,Contract Hire-Operating Leases,Vehicles - Contract Hire,JC101,03/06/2021,675214,380,REVENUE,COXONS CARS LIMITED,100578
North East Lincolnshire Council,http://statistics.data.gov.uk/id/local-authority/00FC),Childrens Services,Education And Inclusion,Access And Education Services,Contract Hire-Operating Leases,Vehicles - Contract Hire,JC101,21/06/2021,678182,1433.5,REVENUE,LINKS TAXIS,100546
North East Lincolnshire Council,http://statistics.data.gov.uk/id/local-authority/00FC),Childrens Services,Education And Inclusion,Access And Education Services,Contract Hire-Operating Leases,Vehicles - Contract Hire,JC101,30/06/2021,678905,332,REVENUE,GRAYSONS SCHOOL BUSES LTD,147408
North East Lincolnshire Council,http://statistics.data.gov.uk/id/local-authority/00FC),Childrens Services,Education And Inclusion,Access And Education Services,Contract Hire-Operating Leases,Vehicles - Contract Hire,JC101,03/06/2021,675188,956.8,REVENUE,LINKS TAXIS,100546
North East Lincolnshire Council,http://statistics.data.gov.uk/id/local-authority/00FC),Childrens Services,Education And Inclusion,Access And Education Services,Contract Hire-Operating Leases,Vehicles - Contract Hire,JC101,03/06/2021,675183,494,REVENUE,LINKS TAXIS,100546
North East Lincolnshire Council,http://statistics.data.gov.uk/id/local-authority/00FC),Childrens Services,Education And Inclusion,Access And Education Services,Private Contractors,Concessionary Fares,PH104,21/06/2021,678179,3473.5,REVENUE,STAGECOACH SERVICES,101404
North East Lincolnshire Council,http://statistics.data.gov.uk/id/local-authority/00FC),Childrens Services,Education And Inclusion,Access And Education Services,Private Contractors,Concessionary Fares,PH104,21/06/2021,678180,394,REVENUE,STAGECOACH SERVICES,101404
North East Lincolnshire Council,http://statistics.data.gov.uk/id/local-authority/00FC),Childrens Services,Education And Inclusion,Access And Education Services,Contract Hire-Operating Leases,Vehicles - Contract Hire,JC101,03/06/2021,675203,1173.35,REVENUE,LINKS TAXIS,100546
North East Lincolnshire Council,http://statistics.data.gov.uk/id/local-authority/00FC),Childrens Services,Education And Inclusion,Access And Education Services,Contract Hire-Operating Leases,Vehicles - Contract Hire,JC101,03/06/2021,675204,1178,REVENUE,LINKS TAXIS,100546
North East Lincolnshire Council,http://statistics.data.gov.uk/id/local-authority/00FC),Childrens Services,Education And Inclusion,Access And Education Services,Contract Hire-Operating Leases,Vehicles - Contract Hire,JC101,03/06/2021,675195,1102,REVENUE,LINKS TAXIS,100546
North East Lincolnshire Council,http://statistics.data.gov.uk/id/local-authority/00FC),Childrens Services,Education And Inclusion,Access And Education Services,Contract Hire-Operating Leases,Vehicles - Contract Hire,JC101,04/06/2021,675612,3135,REVENUE,AMVALE LIMITED,101030
North East Lincolnshire Council,http://statistics.data.gov.uk/id/local-authority/00FC),Childrens Services,Education And Inclusion,Access And Education Services,Contract Hire-Operating Leases,Vehicles - Contract Hire,JC101,04/06/2021,675613,3325,REVENUE,AMVALE LIMITED,101030
North East Lincolnshire Council,http://statistics.data.gov.uk/id/local-authority/00FC),Childrens Services,Education And Inclusion,Access And Education Services,Contract Hire-Operating Leases,Vehicles - Contract Hire,JC101,04/06/2021,675614,3135,REVENUE,AMVALE LIMITED,101030
North East Lincolnshire Council,http://statistics.data.gov.uk/id/local-authority/00FC),Childrens Services,Education And Inclusion,Access And Education Services,Contract Hire-Operating Leases,Vehicles - Contract Hire,JC101,04/06/2021,675615,2945,REVENUE,AMVALE LIMITED,101030
North East Lincolnshire Council,http://statistics.data.gov.uk/id/local-authority/00FC),Childrens Services,Education And Inclusion,Access And Education Services,Contract Hire-Operating Leases,Vehicles - Contract Hire,JC101,04/06/2021,675611,2185,REVENUE,AMVALE MEDICAL TRANSPORT LTD,130777
North East Lincolnshire Council,http://statistics.data.gov.uk/id/local-authority/00FC),Childrens Services,Education And Inclusion,Access And Education Services,Contract Hire-Operating Leases,Vehicles - Contract Hire,JC101,04/06/2021,675616,3610,REVENUE,AMVALE LIMITED,101030
North East Lincolnshire Council,http://statistics.data.gov.uk/id/local-authority/00FC),Childrens Services,Education And Inclusion,Access And Education Services,Contract Hire-Operating Leases,Vehicles - Contract Hire,JC101,03/06/2021,675194,1102,REVENUE,LINKS TAXIS,100546
North East Lincolnshire Council,http://statistics.data.gov.uk/id/local-authority/00FC),Childrens Services,Education And Inclusion,Access And Education Services,Contract Hire-Operating Leases,Vehicles - Contract Hire,JC101,03/06/2021,675211,532,REVENUE,COXONS CARS LIMITED,100578
North East Lincolnshire Council,http://statistics.data.gov.uk/id/local-authority/00FC),Childrens Services,Education And Inclusion,Access And Education Services,Contract Hire-Operating Leases,Vehicles - Contract Hire,JC101,21/06/2021,677806,608,REVENUE,SMT (LINCS) ENTERPRISES LTD,141297
North East Lincolnshire Council,http://statistics.data.gov.uk/id/local-authority/00FC),Childrens Services,Education And Inclusion,Access And Education Services,Contract Hire-Operating Leases,Vehicles - Contract Hire,JC101,21/06/2021,677813,494,REVENUE,SMT (LINCS) ENTERPRISES LTD,141297
North East Lincolnshire Council,http://statistics.data.gov.uk/id/local-authority/00FC),Childrens Services,Education And Inclusion,Access And Education Services,Contract Hire-Operating Leases,Vehicles - Contract Hire,JC101,21/06/2021,677800,731.5,REVENUE,SMT (LINCS) ENTERPRISES LTD,141297
North East Lincolnshire Council,http://statistics.data.gov.uk/id/local-authority/00FC),Childrens Services,Education And Inclusion,Access And Education Services,Contract Hire-Operating Leases,Vehicles - Contract Hire,JC101,21/06/2021,677803,1072,REVENUE,SMT (LINCS) ENTERPRISES LTD,141297
North East Lincolnshire Council,http://statistics.data.gov.uk/id/local-authority/00FC),Childrens Services,Education And Inclusion,Access And Education Services,Contract Hire-Operating Leases,Vehicles - Contract Hire,JC101,21/06/2021,677805,1027.9,REVENUE,SMT (LINCS) ENTERPRISES LTD,141297
North East Lincolnshire Council,http://statistics.data.gov.uk/id/local-authority/00FC),Childrens Services,Education And Inclusion,Access And Education Services,Contract Hire-Operating Leases,Vehicles - Contract Hire,JC101,01/06/2021,674942,744,REVENUE,DRS TAXI SERVICE,141083
North East Lincolnshire Council,http://statistics.data.gov.uk/id/local-authority/00FC),Childrens Services,Education And Inclusion,Access And Education Services,Contract Hire-Operating Leases,Vehicles - Contract Hire,JC101,21/06/2021,677802,760,REVENUE,SMT (LINCS) ENTERPRISES LTD,141297
North East Lincolnshire Council,http://statistics.data.gov.uk/id/local-authority/00FC),Childrens Services,Education And Inclusion,Access And Education Services,Contract Hire-Operating Leases,Vehicles - Contract Hire,JC101,17/06/2021,677796,551,REVENUE,SMT (LINCS) ENTERPRISES LTD,141297
North East Lincolnshire Council,http://statistics.data.gov.uk/id/local-authority/00FC),Childrens Services,Education And Inclusion,Access And Education Services,Contract Hire-Operating Leases,Vehicles - Contract Hire,JC101,21/06/2021,677798,551,REVENUE,SMT (LINCS) ENTERPRISES LTD,141297
North East Lincolnshire Council,http://statistics.data.gov.uk/id/local-authority/00FC),Childrens Services,Education And Inclusion,Access And Education Services,Contract Hire-Operating Leases,Vehicles - Contract Hire,JC101,21/06/2021,678092,829.35,REVENUE,SMT (LINCS) ENTERPRISES LTD,141297
North East Lincolnshire Council,http://statistics.data.gov.uk/id/local-authority/00FC),Childrens Services,Education And Inclusion,Access And Education Services,Contract Hire-Operating Leases,Vehicles - Contract Hire,JC101,04/06/2021,675606,2261,REVENUE,AMVALE MEDICAL TRANSPORT LTD,130777
North East Lincolnshire Council,http://statistics.data.gov.uk/id/local-authority/00FC),Childrens Services,Education And Inclusion,Access And Education Services,Contract Hire-Operating Leases,Vehicles - Contract Hire,JC101,08/06/2021,675935,1293.6,REVENUE,LINKS TAXIS,100546
North East Lincolnshire Council,http://statistics.data.gov.uk/id/local-authority/00FC),Childrens Services,Education And Inclusion,Access And Education Services,Contract Hire-Operating Leases,Vehicles - Contract Hire,JC101,04/06/2021,675601,1848,REVENUE,AMVALE MEDICAL TRANSPORT LTD,130777
North East Lincolnshire Council,http://statistics.data.gov.uk/id/local-authority/00FC),Childrens Services,Education And Inclusion,Access And Education Services,Contract Hire-Operating Leases,Vehicles - Contract Hire,JC101,04/06/2021,675603,2451,REVENUE,AMVALE MEDICAL TRANSPORT LTD,130777
North East Lincolnshire Council,http://statistics.data.gov.uk/id/local-authority/00FC),Childrens Services,Education And Inclusion,Access And Education Services,Contract Hire-Operating Leases,Vehicles - Contract Hire,JC101,04/06/2021,675602,5700,REVENUE,AMVALE MEDICAL TRANSPORT LTD,130777
North East Lincolnshire Council,http://statistics.data.gov.uk/id/local-authority/00FC),Childrens Services,Education And Inclusion,Access And Education Services,Contract Hire-Operating Leases,Vehicles - Contract Hire,JC101,04/06/2021,675607,3686,REVENUE,AMVALE MEDICAL TRANSPORT LTD,130777
North East Lincolnshire Council,http://statistics.data.gov.uk/id/local-authority/00FC),Childrens Services,Education And Inclusion,Access And Education Services,Contract Hire-Operating Leases,Vehicles - Contract Hire,JC101,04/06/2021,675609,4085,REVENUE,AMVALE MEDICAL TRANSPORT LTD,130777
North East Lincolnshire Council,http://statistics.data.gov.uk/id/local-authority/00FC),Childrens Services,Education And Inclusion,Access And Education Services,Contract Hire-Operating Leases,Vehicles - Contract Hire,JC101,04/06/2021,675610,2261,REVENUE,AMVALE MEDICAL TRANSPORT LTD,130777
North East Lincolnshire Council,http://statistics.data.gov.uk/id/local-authority/00FC),Childrens Services,Education And Inclusion,Access And Education Services,Contract Hire-Operating Leases,Vehicles - Contract Hire,JC101,04/06/2021,675608,4123,REVENUE,AMVALE MEDICAL TRANSPORT LTD,130777
North East Lincolnshire Council,http://statistics.data.gov.uk/id/local-authority/00FC),Childrens Services,Education And Inclusion,Access And Education Services,Contract Hire-Operating Leases,Vehicles - Contract Hire,JC101,07/06/2021,675680,1900,REVENUE,REDACTED PERSONAL INFORMATION,REDACTED PERSONAL INFORMATION
North East Lincolnshire Council,http://statistics.data.gov.uk/id/local-authority/00FC),Childrens Services,Education And Inclusion,Access And Education Services,Contract Hire-Operating Leases,Vehicles - Contract Hire,JC101,28/06/2021,678987,550,REVENUE,REDACTED PERSONAL INFORMATION,REDACTED PERSONAL INFORMATION
North East Lincolnshire Council,http://statistics.data.gov.uk/id/local-authority/00FC),Childrens Services,Education And Inclusion,Access And Education Services,Contract Hire-Operating Leases,Vehicles - Contract Hire,JC101,03/06/2021,675294,468,REVENUE,AA RADIO CARS LTD,101222
North East Lincolnshire Council,http://statistics.data.gov.uk/id/local-authority/00FC),Childrens Services,Education And Inclusion,Access And Education Services,Contract Hire-Operating Leases,Vehicles - Contract Hire,JC101,03/06/2021,675314,752,REVENUE,AA RADIO CARS LTD,101222
North East Lincolnshire Council,http://statistics.data.gov.uk/id/local-authority/00FC),Childrens Services,Education And Inclusion,Access And Education Services,Contract Hire-Operating Leases,Vehicles - Contract Hire,JC101,07/06/2021,675711,752,REVENUE,AA RADIO CARS LTD,101222
North East Lincolnshire Council,http://statistics.data.gov.uk/id/local-authority/00FC),Childrens Services,Education And Inclusion,Access And Education Services,Contract Hire-Operating Leases,Vehicles - Contract Hire,JC101,03/06/2021,675293,620.4,REVENUE,AA RADIO CARS LTD,101222
North East Lincolnshire Council,http://statistics.data.gov.uk/id/local-authority/00FC),Childrens Services,Education And Inclusion,Access And Education Services,Contract Hire-Operating Leases,Vehicles - Contract Hire,JC101,08/06/2021,675925,1140,REVENUE,FON A CAR LTD,140517
North East Lincolnshire Council,http://statistics.data.gov.uk/id/local-authority/00FC),Childrens Services,Education And Inclusion,Access And Education Services,Contract Hire-Operating Leases,Vehicles - Contract Hire,JC101,21/06/2021,677799,912,REVENUE,SMT (LINCS) ENTERPRISES LTD,141297
North East Lincolnshire Council,http://statistics.data.gov.uk/id/local-authority/00FC),Childrens Services,Education And Inclusion,Access And Education Services,Contract Hire-Operating Leases,Vehicles - Contract Hire,JC101,21/06/2021,677810,912,REVENUE,SMT (LINCS) ENTERPRISES LTD,141297
North East Lincolnshire Council,http://statistics.data.gov.uk/id/local-authority/00FC),Childrens Services,Education And Inclusion,Access And Education Services,Contract Hire-Operating Leases,Vehicles - Contract Hire,JC101,21/06/2021,677812,1102,REVENUE,SMT (LINCS) ENTERPRISES LTD,141297
North East Lincolnshire Council,http://statistics.data.gov.uk/id/local-authority/00FC),Childrens Services,Education And Inclusion,Access And Education Services,Contract Hire-Operating Leases,Vehicles - Contract Hire,JC101,22/06/2021,678243,380,REVENUE,SMT (LINCS) ENTERPRISES LTD,141297
North East Lincolnshire Council,http://statistics.data.gov.uk/id/local-authority/00FC),Childrens Services,Education And Inclusion,Access And Education Services,Contract Hire-Operating Leases,Vehicles - Contract Hire,JC101,21/06/2021,677809,330,REVENUE,SMT (LINCS) ENTERPRISES LTD,141297
North East Lincolnshire Council,http://statistics.data.gov.uk/id/local-authority/00FC),Childrens Services,Education And Inclusion,Access And Education Services,Contract Hire-Operating Leases,Vehicles - Contract Hire,JC101,07/06/2021,675672,1482,REVENUE,MINICABS CLEETHORPES (LINCS) LTD,102124
North East Lincolnshire Council,http://statistics.data.gov.uk/id/local-authority/00FC),Childrens Services,Education And Inclusion,Access And Education Services,Contract Hire-Operating Leases,Vehicles - Contract Hire,JC101,07/06/2021,675679,1235,REVENUE,MINICABS CLEETHORPES (LINCS) LTD,102124
North East Lincolnshire Council,http://statistics.data.gov.uk/id/local-authority/00FC),Childrens Services,Education And Inclusion,Access And Education Services,Contract Hire-Operating Leases,Vehicles - Contract Hire,JC101,07/06/2021,675667,1117.2,REVENUE,MINICABS CLEETHORPES (LINCS) LTD,102124
North East Lincolnshire Council,http://statistics.data.gov.uk/id/local-authority/00FC),Childrens Services,Education And Inclusion,Access And Education Services,Contract Hire-Operating Leases,Vehicles - Contract Hire,JC101,07/06/2021,675677,1520,REVENUE,MINICABS CLEETHORPES (LINCS) LTD,102124
North East Lincolnshire Council,http://statistics.data.gov.uk/id/local-authority/00FC),Childrens Services,Education And Inclusion,Access And Education Services,Contract Hire-Operating Leases,Vehicles - Contract Hire,JC101,07/06/2021,675665,1140,REVENUE,MINICABS CLEETHORPES (LINCS) LTD,102124
North East Lincolnshire Council,http://statistics.data.gov.uk/id/local-authority/00FC),Childrens Services,Education And Inclusion,Access And Education Services,Contract Hire-Operating Leases,Vehicles - Contract Hire,JC101,07/06/2021,675666,1045,REVENUE,MINICABS CLEETHORPES (LINCS) LTD,102124
North East Lincolnshire Council,http://statistics.data.gov.uk/id/local-authority/00FC),Childrens Services,Education And Inclusion,Access And Education Services,Contract Hire-Operating Leases,Vehicles - Contract Hire,JC101,07/06/2021,675670,1082.9,REVENUE,MINICABS CLEETHORPES (LINCS) LTD,102124
North East Lincolnshire Council,http://statistics.data.gov.uk/id/local-authority/00FC),Childrens Services,Education And Inclusion,Access And Education Services,Contract Hire-Operating Leases,Vehicles - Contract Hire,JC101,03/06/2021,675187,1696.5,REVENUE,LINKS TAXIS,100546
North East Lincolnshire Council,http://statistics.data.gov.uk/id/local-authority/00FC),Childrens Services,Education And Inclusion,Access And Education Services,Contract Hire-Operating Leases,Vehicles - Contract Hire,JC101,21/06/2021,678177,1425,REVENUE,LINKS TAXIS,100546
North East Lincolnshire Council,http://statistics.data.gov.uk/id/local-authority/00FC),Childrens Services,Education And Inclusion,Access And Education Services,Contract Hire-Operating Leases,Vehicles - Contract Hire,JC101,03/06/2021,675202,608,REVENUE,LINKS TAXIS,100546
North East Lincolnshire Council,http://statistics.data.gov.uk/id/local-authority/00FC),Childrens Services,Education And Inclusion,Access And Education Services,Contract Hire-Operating Leases,Vehicles - Contract Hire,JC101,03/06/2021,675199,760,REVENUE,LINKS TAXIS,100546
North East Lincolnshire Council,http://statistics.data.gov.uk/id/local-authority/00FC),Childrens Services,Education And Inclusion,Access And Education Services,Contract Hire-Operating Leases,Vehicles - Contract Hire,JC101,03/06/2021,675185,893,REVENUE,LINKS TAXIS,100546
North East Lincolnshire Council,http://statistics.data.gov.uk/id/local-authority/00FC),Childrens Services,Education And Inclusion,Access And Education Services,Contract Hire-Operating Leases,Vehicles - Contract Hire,JC101,07/06/2021,675720,1522,REVENUE,LINKS TAXIS,100546
North East Lincolnshire Council,http://statistics.data.gov.uk/id/local-authority/00FC),Childrens Services,Education And Inclusion,Access And Education Services,Contract Hire-Operating Leases,Vehicles - Contract Hire,JC101,03/06/2021,675184,1332,REVENUE,LINKS TAXIS,100546
North East Lincolnshire Council,http://statistics.data.gov.uk/id/local-authority/00FC),Childrens Services,Education And Inclusion,Access And Education Services,Contract Hire-Operating Leases,Vehicles - Contract Hire,JC101,03/06/2021,675178,608,REVENUE,LINKS TAXIS,100546
North East Lincolnshire Council,http://statistics.data.gov.uk/id/local-authority/00FC),Childrens Services,Education And Inclusion,Access And Education Services,Contract Hire-Operating Leases,Vehicles - Contract Hire,JC101,03/06/2021,675177,855,REVENUE,LINKS TAXIS,100546
North East Lincolnshire Council,http://statistics.data.gov.uk/id/local-authority/00FC),Childrens Services,Education And Inclusion,Access And Education Services,Contract Hire-Operating Leases,Vehicles - Contract Hire,JC101,03/06/2021,675181,760,REVENUE,LINKS TAXIS,100546
North East Lincolnshire Council,http://statistics.data.gov.uk/id/local-authority/00FC),Childrens Services,Education And Inclusion,Access And Education Services,Contract Hire-Operating Leases,Vehicles - Contract Hire,JC101,08/06/2021,675931,841.5,REVENUE,LINKS TAXIS,100546
North East Lincolnshire Council,http://statistics.data.gov.uk/id/local-authority/00FC),Childrens Services,Education And Inclusion,Access And Education Services,Contract Hire-Operating Leases,Vehicles - Contract Hire,JC101,03/06/2021,675201,769.65,REVENUE,LINKS TAXIS,100546
North East Lincolnshire Council,http://statistics.data.gov.uk/id/local-authority/00FC),Childrens Services,Education And Inclusion,Access And Education Services,Contract Hire-Operating Leases,Vehicles - Contract Hire,JC101,03/06/2021,675231,940.5,REVENUE,LINKS TAXIS,100546
North East Lincolnshire Council,http://statistics.data.gov.uk/id/local-authority/00FC),Childrens Services,Education And Inclusion,Access And Education Services,Contract Hire-Operating Leases,Vehicles - Contract Hire,JC101,03/06/2021,675180,956.8,REVENUE,LINKS TAXIS,100546
North East Lincolnshire Council,http://statistics.data.gov.uk/id/local-authority/00FC),Childrens Services,Education And Inclusion,Access And Education Services,Contract Hire-Operating Leases,Vehicles - Contract Hire,JC101,03/06/2021,675186,1178.7,REVENUE,LINKS TAXIS,100546
North East Lincolnshire Council,http://statistics.data.gov.uk/id/local-authority/00FC),Childrens Services,Education And Inclusion,Access And Education Services,Contract Hire-Operating Leases,Vehicles - Contract Hire,JC101,08/06/2021,675932,1136.15,REVENUE,LINKS TAXIS,100546
North East Lincolnshire Council,http://statistics.data.gov.uk/id/local-authority/00FC),Childrens Services,Education And Inclusion,Access And Education Services,Contract Hire-Operating Leases,Vehicles - Contract Hire,JC101,03/06/2021,675370,760,REVENUE,LINKS TAXIS,100546
North East Lincolnshire Council,http://statistics.data.gov.uk/id/local-authority/00FC),Childrens Services,Education And Inclusion,Access And Education Services,Contract Hire-Operating Leases,Vehicles - Contract Hire,JC101,03/06/2021,675179,656.5,REVENUE,LINKS TAXIS,100546
North East Lincolnshire Council,http://statistics.data.gov.uk/id/local-authority/00FC),Childrens Services,Education And Inclusion,Access And Education Services,Contract Hire-Operating Leases,Vehicles - Contract Hire,JC101,03/06/2021,675183,494,REVENUE,LINKS TAXIS,100546
North East Lincolnshire Council,http://statistics.data.gov.uk/id/local-authority/00FC),Childrens Services,Education And Inclusion,Access And Education Services,Contract Hire-Operating Leases,Vehicles - Contract Hire,JC101,03/06/2021,675371,703,REVENUE,LINKS TAXIS,100546
North East Lincolnshire Council,http://statistics.data.gov.uk/id/local-authority/00FC),Childrens Services,Education And Inclusion,Access And Education Services,Contract Hire-Operating Leases,Vehicles - Contract Hire,JC101,07/06/2021,675713,3993,REVENUE,LINKS TAXIS,100546
North East Lincolnshire Council,http://statistics.data.gov.uk/id/local-authority/00FC),Childrens Services,Education And Inclusion,Access And Education Services,Contract Hire-Operating Leases,Vehicles - Contract Hire,JC101,03/06/2021,675192,1093,REVENUE,LINKS TAXIS,100546
North East Lincolnshire Council,http://statistics.data.gov.uk/id/local-authority/00FC),Childrens Services,Education And Inclusion,Access And Education Services,Contract Hire-Operating Leases,Vehicles - Contract Hire,JC101,22/06/2021,678256,1945,REVENUE,F HUNT (COACH HIRE) LTD,104034
North East Lincolnshire Council,http://statistics.data.gov.uk/id/local-authority/00FC),Childrens Services,Education And Inclusion,Access And Education Services,Contract Hire-Operating Leases,Vehicles - Contract Hire,JC101,22/06/2021,678257,3695.5,REVENUE,F HUNT (COACH HIRE) LTD,104034
North East Lincolnshire Council,http://statistics.data.gov.uk/id/local-authority/00FC),Childrens Services,Education And Inclusion,Access And Education Services,Contract Hire-Operating Leases,Vehicles - Contract Hire,JC101,01/06/2021,675127,2299,REVENUE,THE BUS RUN,101522
North East Lincolnshire Council,http://statistics.data.gov.uk/id/local-authority/00FC),Childrens Services,Education And Inclusion,Access And Education Services,Contract Hire-Operating Leases,Vehicles - Contract Hire,JC101,21/06/2021,678156,2965,REVENUE,SMT (LINCS) ENTERPRISES LTD,141297
North East Lincolnshire Council,http://statistics.data.gov.uk/id/local-authority/00FC),Childrens Services,Education And Inclusion,Access And Education Services,Contract Hire-Operating Leases,Vehicles - Contract Hire,JC101,21/06/2021,678157,3040,REVENUE,SMT (LINCS) ENTERPRISES LTD,141297
North East Lincolnshire Council,http://statistics.data.gov.uk/id/local-authority/00FC),Childrens Services,Education And Inclusion,Access And Education Services,Contract Hire-Operating Leases,Vehicles - Contract Hire,JC101,07/06/2021,675664,1831.5,REVENUE,MINICABS CLEETHORPES (LINCS) LTD,102124
North East Lincolnshire Council,http://statistics.data.gov.uk/id/local-authority/00FC),Childrens Services,Education And Inclusion,Access And Education Services,Contract Hire-Operating Leases,Vehicles - Contract Hire,JC101,07/06/2021,675669,2028,REVENUE,MINICABS CLEETHORPES (LINCS) LTD,102124
North East Lincolnshire Council,http://statistics.data.gov.uk/id/local-authority/00FC),Childrens Services,Education And Inclusion,Access And Education Services,Contract Hire-Operating Leases,Vehicles - Contract Hire,JC101,07/06/2021,675673,520,REVENUE,MINICABS CLEETHORPES (LINCS) LTD,102124
North East Lincolnshire Council,http://statistics.data.gov.uk/id/local-authority/00FC),Childrens Services,Education And Inclusion,Access And Education Services,Contract Hire-Operating Leases,Vehicles - Contract Hire,JC101,21/06/2021,678178,2166,REVENUE,LINKS TAXIS,100546
North East Lincolnshire Council,http://statistics.data.gov.uk/id/local-authority/00FC),Childrens Services,Education And Inclusion,Access And Education Services,Contract Hire-Operating Leases,Vehicles - Contract Hire,JC101,07/06/2021,675714,2553,REVENUE,LINKS TAXIS,100546
North East Lincolnshire Council,http://statistics.data.gov.uk/id/local-authority/00FC),Childrens Services,Education And Inclusion,Access And Education Services,Contract Hire-Operating Leases,Vehicles - Contract Hire,JC101,03/06/2021,675368,2367.5,REVENUE,LINKS TAXIS,100546
North East Lincolnshire Council,http://statistics.data.gov.uk/id/local-authority/00FC),Childrens Services,Education And Inclusion,Access And Education Services,Contract Hire-Operating Leases,Vehicles - Contract Hire,JC101,08/06/2021,675928,2171.2,REVENUE,LINKS TAXIS,100546
North East Lincolnshire Council,http://statistics.data.gov.uk/id/local-authority/00FC),Childrens Services,Education And Inclusion,Access And Education Services,Contract Hire-Operating Leases,Vehicles - Contract Hire,JC101,03/06/2021,675261,833,REVENUE,LINKS TAXIS,100546
North East Lincolnshire Council,http://statistics.data.gov.uk/id/local-authority/00FC),Childrens Services,Education And Inclusion,Access And Education Services,Contract Hire-Operating Leases,Vehicles - Contract Hire,JC101,08/06/2021,675930,1918,REVENUE,LINKS TAXIS,100546
North East Lincolnshire Council,http://statistics.data.gov.uk/id/local-authority/00FC),Childrens Services,Education And Inclusion,Access And Education Services,Contract Hire-Operating Leases,Vehicles - Contract Hire,JC101,03/06/2021,675175,760,REVENUE,COXONS CARS LIMITED,100578
North East Lincolnshire Council,http://statistics.data.gov.uk/id/local-authority/00FC),Childrens Services,Education And Inclusion,Access And Education Services,Contract Hire-Operating Leases,Vehicles - Contract Hire,JC101,03/06/2021,675174,610,REVENUE,COXONS CARS LIMITED,100578
North East Lincolnshire Council,http://statistics.data.gov.uk/id/local-authority/00FC),Childrens Services,Education And Inclusion,Access And Education Services,Contract Hire-Operating Leases,Vehicles - Contract Hire,JC101,03/06/2021,675410,722,REVENUE,COXONS CARS LIMITED,100578
North East Lincolnshire Council,http://statistics.data.gov.uk/id/local-authority/00FC),Childrens Services,Education And Inclusion,Access And Education Services,Contract Hire-Operating Leases,Vehicles - Contract Hire,JC101,04/06/2021,675594,1260,REVENUE,COXONS CARS LIMITED,100578
North East Lincolnshire Council,http://statistics.data.gov.uk/id/local-authority/00FC),Childrens Services,Education And Inclusion,Access And Education Services,Contract Hire-Operating Leases,Vehicles - Contract Hire,JC101,03/06/2021,675298,408,REVENUE,COXONS CARS LIMITED,100578
North East Lincolnshire Council,http://statistics.data.gov.uk/id/local-authority/00FC),Childrens Services,Education And Inclusion,Access And Education Services,Contract Hire-Operating Leases,Vehicles - Contract Hire,JC101,03/06/2021,675297,384,REVENUE,COXONS CARS LIMITED,100578
North East Lincolnshire Council,http://statistics.data.gov.uk/id/local-authority/00FC),Childrens Services,Education And Inclusion,Access And Education Services,Contract Hire-Operating Leases,Vehicles - Contract Hire,JC101,24/06/2021,678741,1520,REVENUE,DJ TAXIS SCUNTHORPE LIMITED,144612
North East Lincolnshire Council,http://statistics.data.gov.uk/id/local-authority/00FC),Childrens Services,Education And Inclusion,Access And Education Services,Contract Hire-Operating Leases,Vehicles - Contract Hire,JC101,09/06/2021,676544,475,REVENUE,FON A CAR LTD,140517
North East Lincolnshire Council,http://statistics.data.gov.uk/id/local-authority/00FC),Childrens Services,Education And Inclusion,Access And Education Services,Contract Hire-Operating Leases,Vehicles - Contract Hire,JC101,22/06/2021,677727,1033.6,REVENUE,SMT (LINCS) ENTERPRISES LTD,141297
North East Lincolnshire Council,http://statistics.data.gov.uk/id/local-authority/00FC),Childrens Services,Education And Inclusion,Access And Education Services,Contract Hire-Operating Leases,Vehicles - Contract Hire,JC101,03/06/2021,675189,1862,REVENUE,LINKS TAXIS,100546
North East Lincolnshire Council,http://statistics.data.gov.uk/id/local-authority/00FC),Childrens Services,Education And Inclusion,Access And Education Services,Contract Hire-Operating Leases,Vehicles - Contract Hire,JC101,17/06/2021,678019,820,REVENUE,AMVALE LIMITED,101030
North East Lincolnshire Council,http://statistics.data.gov.uk/id/local-authority/00FC),Childrens Services,Education And Inclusion,Access And Education Services,Contract Hire-Operating Leases,Vehicles - Contract Hire,JC101,17/06/2021,678020,820,REVENUE,AMVALE LIMITED,101030
North East Lincolnshire Council,http://statistics.data.gov.uk/id/local-authority/00FC),Childrens Services,Education And Inclusion,Access And Education Services,Contract Hire-Operating Leases,Vehicles - Contract Hire,JC101,08/06/2021,675926,1700,REVENUE,FON A CAR LTD,140517
North East Lincolnshire Council,http://statistics.data.gov.uk/id/local-authority/00FC),Childrens Services,Education And Inclusion,Access And Education Services,Contract Hire-Operating Leases,Vehicles - Contract Hire,JC101,03/06/2021,675197,1877.5,REVENUE,LINKS TAXIS,100546
North East Lincolnshire Council,http://statistics.data.gov.uk/id/local-authority/00FC),Childrens Services,Education And Inclusion,Access And Education Services,Contract Hire-Operating Leases,Vehicles - Contract Hire,JC101,08/06/2021,675934,651.87,REVENUE,LINKS TAXIS,100546
North East Lincolnshire Council,http://statistics.data.gov.uk/id/local-authority/00FC),Childrens Services,Education And Inclusion,Access And Education Services,Contract Hire-Operating Leases,Vehicles - Contract Hire,JC101,21/06/2021,677797,1235,REVENUE,SMT (LINCS) ENTERPRISES LTD,141297
North East Lincolnshire Council,http://statistics.data.gov.uk/id/local-authority/00FC),Childrens Services,Education And Inclusion,Access And Education Services,Contract Hire-Operating Leases,Vehicles - Contract Hire,JC101,03/06/2021,675198,970,REVENUE,LINKS TAXIS,100546
North East Lincolnshire Council,http://statistics.data.gov.uk/id/local-authority/00FC),Childrens Services,Education And Inclusion,Access And Education Services,Contract Hire-Operating Leases,Vehicles - Contract Hire,JC101,07/06/2021,675375,570,REVENUE,LINKS TAXIS,100546
North East Lincolnshire Council,http://statistics.data.gov.uk/id/local-authority/00FC),Childrens Services,Education And Inclusion,Access And Education Services,Contract Hire-Operating Leases,Vehicles - Contract Hire,JC101,03/06/2021,675176,666,REVENUE,COXONS CARS LIMITED,100578
North East Lincolnshire Council,http://statistics.data.gov.uk/id/local-authority/00FC),Childrens Services,Education And Inclusion,Access And Education Services,Contract Hire-Operating Leases,Vehicles - Contract Hire,JC101,04/06/2021,675605,2451,REVENUE,AMVALE MEDICAL TRANSPORT LTD,130777
North East Lincolnshire Council,http://statistics.data.gov.uk/id/local-authority/00FC),Childrens Services,Education And Inclusion,Access And Education Services,Contract Hire-Operating Leases,Vehicles - Contract Hire,JC101,07/06/2021,675372,1877.5,REVENUE,LINKS TAXIS,100546
North East Lincolnshire Council,http://statistics.data.gov.uk/id/local-authority/00FC),Childrens Services,Education And Inclusion,Access And Education Services,Contract Hire-Operating Leases,Vehicles - Contract Hire,JC101,03/06/2021,675213,540,REVENUE,COXONS CARS LIMITED,100578
North East Lincolnshire Council,http://statistics.data.gov.uk/id/local-authority/00FC),Childrens Services,Education And Inclusion,Access And Education Services,Contract Hire-Operating Leases,Vehicles - Contract Hire,JC101,21/06/2021,678189,3570,REVENUE,BEST FUTURES COMMUNITY INTEREST COMPANY,128600
North East Lincolnshire Council,http://statistics.data.gov.uk/id/local-authority/00FC),Childrens Services,Education And Inclusion,Access And Education Services,Private Contractors,Concessionary Fares,PH104,21/06/2021,678180,2373.5,REVENUE,STAGECOACH SERVICES,101404
North East Lincolnshire Council,http://statistics.data.gov.uk/id/local-authority/00FC),Childrens Services,Education And Inclusion,Access And Education Services,Direct Employee Expenses,Agency Supply Teachers,EA104,03/06/2021,929366,500,REVENUE,REDACTED PERSONAL INFORMATION,REDACTED PERSONAL INFORMATION
North East Lincolnshire Council,http://statistics.data.gov.uk/id/local-authority/00FC),Childrens Services,Education And Inclusion,Access And Education Services,Direct Employee Expenses,Agency Supply Teachers,EA104,18/06/2021,677767,450,REVENUE,BENJAMIN NUNN,143807
North East Lincolnshire Council,http://statistics.data.gov.uk/id/local-authority/00FC),Childrens Services,Education And Inclusion,Access And Education Services,Direct Employee Expenses,Agency Supply Teachers,EA104,18/06/2021,677766,300,REVENUE,BENJAMIN NUNN,143807
North East Lincolnshire Council,http://statistics.data.gov.uk/id/local-authority/00FC),Childrens Services,Education And Inclusion,Access And Education Services,Direct Employee Expenses,Agency Supply Teachers,EA104,14/06/2021,677166,450,REVENUE,EMMA MIDDLETON,105103
North East Lincolnshire Council,http://statistics.data.gov.uk/id/local-authority/00FC),Childrens Services,Education And Inclusion,Access And Education Services,Direct Employee Expenses,Agency Supply Teachers,EA104,01/06/2021,674940,300,REVENUE,KEVIN ROGERS,101480
North East Lincolnshire Council,http://statistics.data.gov.uk/id/local-authority/00FC),Childrens Services,Education And Inclusion,Access And Education Services,Direct Employee Expenses,Agency Supply Teachers,EA104,08/06/2021,675798,600,REVENUE,CAROLINE MASSDAM GOOCH,104894
North East Lincolnshire Council,http://statistics.data.gov.uk/id/local-authority/00FC),Childrens Services,Education And Inclusion,Access And Education Services,Direct Employee Expenses,Agency Supply Teachers,EA104,01/06/2021,674939,300,REVENUE,CLARE O'CONNELL,133840
North East Lincolnshire Council,http://statistics.data.gov.uk/id/local-authority/00FC),Childrens Services,Education And Inclusion,Access And Education Services,Direct Employee Expenses,Agency Supply Teachers,EA104,24/06/2021,678606,960,REVENUE,ZOE EVERATT,106842
North East Lincolnshire Council,http://statistics.data.gov.uk/id/local-authority/00FC),Childrens Services,Education And Inclusion,Access And Education Services,Direct Employee Expenses,Agency Supply Teachers,EA104,07/06/2021,675271,374,REVENUE,KIM GOODEY,134788
North East Lincolnshire Council,http://statistics.data.gov.uk/id/local-authority/00FC),Childrens Services,Education And Inclusion,Access And Education Services,Direct Employee Expenses,Agency Supply Teachers,EA104,01/06/2021,674830,500,REVENUE,SAMUEL CARLTON,139890
North East Lincolnshire Council,http://statistics.data.gov.uk/id/local-authority/00FC),Childrens Services,Education And Inclusion,Access And Education Services,Direct Employee Expenses,Agency Supply Teachers,EA104,28/06/2021,678903,650,REVENUE,CHARLOTTE HUBBARD,139924
North East Lincolnshire Council,http://statistics.data.gov.uk/id/local-authority/00FC),Childrens Services,Education And Inclusion,Access And Education Services,Direct Employee Expenses,Agency Supply Teachers,EA104,22/06/2021,678255,550,REVENUE,FRANCESCA WHITE,102116
North East Lincolnshire Council,http://statistics.data.gov.uk/id/local-authority/00FC),Childrens Services,Education And Inclusion,Access And Education Services,Direct Employee Expenses,Agency Supply Teachers,EA104,22/06/2021,678254,1053,REVENUE,FRANCESCA WHITE,102116
North East Lincolnshire Council,http://statistics.data.gov.uk/id/local-authority/00FC),Childrens Services,Education And Inclusion,Access And Education Services,Direct Employee Expenses,Agency Supply Teachers,EA104,28/06/2021,678621,265,REVENUE,FRANCESCA WHITE,102116
North East Lincolnshire Council,http://statistics.data.gov.uk/id/local-authority/00FC),Childrens Services,Education And Inclusion,Access And Education Services,Print Stationery / Gen Off Exp,Publicity,LD105,15/06/2021,677250,600,REVENUE,EMMA MIDDLETON,105103
North East Lincolnshire Council,http://statistics.data.gov.uk/id/local-authority/00FC),Childrens Services,Education And Inclusion,Access And Education Services,Print Stationery / Gen Off Exp,Publicity,LD105,21/06/2021,678067,600,REVENUE,EMMA MIDDLETON,105103
North East Lincolnshire Council,http://statistics.data.gov.uk/id/local-authority/00FC),Childrens Services,Education And Inclusion,Access And Education Services,Other Agencies,Other,PJ121,15/06/2021,677251,420,REVENUE,EMMA MIDDLETON,105103
North East Lincolnshire Council,http://statistics.data.gov.uk/id/local-authority/00FC),Childrens Services,Education And Inclusion,Access And Education Services,Other Agencies,Other,PJ121,21/06/2021,678068,420,REVENUE,EMMA MIDDLETON,105103
North East Lincolnshire Council,http://statistics.data.gov.uk/id/local-authority/00FC),Childrens Services,Education And Inclusion,Access And Education Services,Other Agencies,Performers,PJ101,11/06/2021,676869,255,REVENUE,EMMA MIDDLETON,105103
North East Lincolnshire Council,http://statistics.data.gov.uk/id/local-authority/00FC),Childrens Services,Education And Inclusion,Access And Education Services,Other Agencies,Performers,PJ101,24/06/2021,678660,350,REVENUE,FOCUS 7 LTD,101046
North East Lincolnshire Council,http://statistics.data.gov.uk/id/local-authority/00FC),Childrens Services,Education And Inclusion,Access And Education Services,Other Agencies,Performers,PJ101,24/06/2021,678608,345,REVENUE,ZOE EVERATT,106842
North East Lincolnshire Council,http://statistics.data.gov.uk/id/local-authority/00FC),Childrens Services,Education And Inclusion,Access And Education Services,Other Agencies,Performers,PJ101,24/06/2021,678656,480,REVENUE,DAVID PEARCE,139665
North East Lincolnshire Council,http://statistics.data.gov.uk/id/local-authority/00FC),Childrens Services,Education And Inclusion,Access And Education Services,Other Agencies,Performers,PJ101,21/06/2021,678151,400,REVENUE,STEPHEN J PRICE,133874
North East Lincolnshire Council,http://statistics.data.gov.uk/id/local-authority/00FC),Childrens Services,Education And Inclusion,Access And Education Services,Other Agencies,Performers,PJ101,24/06/2021,678659,300,REVENUE,SAM BAKER,133877
North East Lincolnshire Council,http://statistics.data.gov.uk/id/local-authority/00FC),Childrens Services,Education And Inclusion,Access And Education Services,Other Agencies,Tuition,PJ112,07/06/2021,675409,280,REVENUE,PHILIPPA SKATE,149030
North East Lincolnshire Council,http://statistics.data.gov.uk/id/local-authority/00FC),Childrens Services,Education And Inclusion,Access And Education Services,Other Agencies,Tuition,PJ112,04/06/2021,675417,325,REVENUE,JEFF LAKE,142061
North East Lincolnshire Council,http://statistics.data.gov.uk/id/local-authority/00FC),Childrens Services,Education And Inclusion,Access And Education Services,Other Agencies,Tuition,PJ112,04/06/2021,675407,400,REVENUE,SUE BURNHAM,145697
North East Lincolnshire Council,http://statistics.data.gov.uk/id/local-authority/00FC),Childrens Services,Education And Inclusion,Access And Education Services,Other Agencies,Tuition,PJ112,15/06/2021,677186,2304,REVENUE,HELENS TAXIS,149095
North East Lincolnshire Council,http://statistics.data.gov.uk/id/local-authority/00FC),Childrens Services,Education And Inclusion,Access And Education Services,Other Agencies,Tuition,PJ112,21/06/2021,678193,340,REVENUE,EDUCLA,147507
North East Lincolnshire Council,http://statistics.data.gov.uk/id/local-authority/00FC),Childrens Services,Education And Inclusion,Access And Education Services,Other Agencies,Tuition,PJ112,21/06/2021,678191,340,REVENUE,EDUCLA,147507
North East Lincolnshire Council,http://statistics.data.gov.uk/id/local-authority/00FC),Childrens Services,Education And Inclusion,Access And Education Services,Other Agencies,Tuition,PJ112,21/06/2021,678192,340,REVENUE,EDUCLA,147507
North East Lincolnshire Council,http://statistics.data.gov.uk/id/local-authority/00FC),Childrens Services,Education And Inclusion,Access And Education Services,Other Agencies,Tuition,PJ112,21/06/2021,678206,528,REVENUE,PAULINE QUIRK ACADEMY,147504
North East Lincolnshire Council,http://statistics.data.gov.uk/id/local-authority/00FC),Childrens Services,Education And Inclusion,Access And Education Services,Other Agencies,Tuition,PJ112,30/06/2021,679436,1039.5,REVENUE,AA RADIO CARS LTD,101222
North East Lincolnshire Council,http://statistics.data.gov.uk/id/local-authority/00FC),Childrens Services,Education And Inclusion,Access And Education Services,Other Agencies,Tuition,PJ112,30/06/2021,679437,2702.7,REVENUE,AA RADIO CARS LTD,101222
North East Lincolnshire Council,http://statistics.data.gov.uk/id/local-authority/00FC),Childrens Services,Education And Inclusion,Access And Education Services,Contract Hire-Operating Leases,Vehicles - Contract Hire,JC101,03/06/2021,675208,7562,REVENUE,STAGECOACH SERVICES,101404
North East Lincolnshire Council,http://statistics.data.gov.uk/id/local-authority/00FC),Childrens Services,Education And Inclusion,Access And Education Services,Contributions To Provisions,Contributions - Other,LK103,03/06/2021,675152,2509.91,REVENUE,SIGNHILLS ACADEMY LTD,106065
North East Lincolnshire Council,http://statistics.data.gov.uk/id/local-authority/00FC),Childrens Services,Education And Inclusion,Sen/Inclusion,Direct Employee Expenses,Agency Staff,EA105,08/06/2021,675549,653.05,REVENUE,ON LINE PEOPLE LTD,144850
North East Lincolnshire Council,http://statistics.data.gov.uk/id/local-authority/00FC),Childrens Services,Education And Inclusion,Sen/Inclusion,Direct Employee Expenses,Agency Staff,EA105,15/06/2021,677277,653.05,REVENUE,ON LINE PEOPLE LTD,144850
North East Lincolnshire Council,http://statistics.data.gov.uk/id/local-authority/00FC),Childrens Services,Education And Inclusion,Sen/Inclusion,Direct Employee Expenses,Agency Staff,EA105,15/06/2021,677278,454.49,REVENUE,ON LINE PEOPLE LTD,144850
North East Lincolnshire Council,http://statistics.data.gov.uk/id/local-authority/00FC),Childrens Services,Education And Inclusion,Sen/Inclusion,Other Local Authorities,Third Pp - Other Local Auth,PC101,17/06/2021,677769,790,REVENUE,R Y FIDLER,142906
North East Lincolnshire Council,http://statistics.data.gov.uk/id/local-authority/00FC),Childrens Services,Education And Inclusion,Sen/Inclusion,Contributions To Provisions,Contributions - Third Sector,LK102,24/06/2021,678715,60493,REVENUE,THE CAMBRIDGE PARK ACADEMY,107472
North East Lincolnshire Council,http://statistics.data.gov.uk/id/local-authority/00FC),Childrens Services,Education And Inclusion,Sen/Inclusion,Contributions To Provisions,Contributions - Third Sector,LK102,24/06/2021,678714,6854,REVENUE,PHOENIX PARK ACADEMY,126685
North East Lincolnshire Council,http://statistics.data.gov.uk/id/local-authority/00FC),Childrens Services,Education And Inclusion,Sen/Inclusion,Contributions To Provisions,Contributions - Third Sector,LK102,24/06/2021,678717,5833,REVENUE,SEVENHILLS ACADEMY,128660
North East Lincolnshire Council,http://statistics.data.gov.uk/id/local-authority/00FC),Childrens Services,Education And Inclusion,Sen/Inclusion,Contributions To Provisions,Contributions - Third Sector,LK102,24/06/2021,678716,10062,REVENUE,HUMBERSTON PARK SPECIAL SCHOOL,107911
North East Lincolnshire Council,http://statistics.data.gov.uk/id/local-authority/00FC),Childrens Services,Education And Inclusion,Sen/Inclusion,Contributions To Provisions,Contributions - Third Sector,LK102,24/06/2021,678714,18994,REVENUE,PHOENIX PARK ACADEMY,126685
North East Lincolnshire Council,http://statistics.data.gov.uk/id/local-authority/00FC),Childrens Services,Education And Inclusion,Sen/Inclusion,Contributions To Provisions,Contributions - Third Sector,LK102,24/06/2021,678717,16165,REVENUE,SEVENHILLS ACADEMY,128660
North East Lincolnshire Council,http://statistics.data.gov.uk/id/local-authority/00FC),Childrens Services,Education And Inclusion,Sen/Inclusion,Contributions To Provisions,Contributions - Third Sector,LK102,24/06/2021,678716,27884,REVENUE,HUMBERSTON PARK SPECIAL SCHOOL,107911
North East Lincolnshire Council,http://statistics.data.gov.uk/id/local-authority/00FC),Childrens Services,Education And Inclusion,Sen/Inclusion,Miscellaneous Expenses,Contingency Reserve,LL123,29/06/2021,679101,8550,REVENUE,THE CAMBRIDGE PARK ACADEMY,107472
North East Lincolnshire Council,http://statistics.data.gov.uk/id/local-authority/00FC),Childrens Services,Education And Inclusion,Sen/Inclusion,Miscellaneous Expenses,Contingency Reserve,LL123,10/06/2021,676579,3395.75,REVENUE,WYBERS WOOD PRIMARY ACADEMY,115078
North East Lincolnshire Council,http://statistics.data.gov.uk/id/local-authority/00FC),Childrens Services,Education And Inclusion,Sen/Inclusion,Direct Employee Expenses,Pay Teachers Supply Cover,EA106,08/06/2021,674640,625,REVENUE,SAAF SUPPLY LIMITED,141575
North East Lincolnshire Council,http://statistics.data.gov.uk/id/local-authority/00FC),Childrens Services,Education And Inclusion,Sen/Inclusion,Direct Employee Expenses,Pay Teachers Supply Cover,EA106,22/06/2021,678208,500,REVENUE,SAAF SUPPLY LIMITED,141575
North East Lincolnshire Council,http://statistics.data.gov.uk/id/local-authority/00FC),Childrens Services,Education And Inclusion,Sen/Inclusion,Direct Employee Expenses,Pay Teachers Supply Cover,EA106,22/06/2021,678209,800,REVENUE,SAAF SUPPLY LIMITED,141575
North East Lincolnshire Council,http://statistics.data.gov.uk/id/local-authority/00FC),Childrens Services,Education And Inclusion,Sen/Inclusion,Other Local Authorities,Third Pp - Other Local Auth,PC101,01/06/2021,674793,715.68,REVENUE,LINKAGE COMMUNITY TRUST,100343
North East Lincolnshire Council,http://statistics.data.gov.uk/id/local-authority/00FC),Childrens Services,Education And Inclusion,Sen/Inclusion,Other Local Authorities,Third Pp - Other Local Auth,PC101,01/06/2021,674794,1530,REVENUE,NORTH LINDSEY COLLEGE,107439
North East Lincolnshire Council,http://statistics.data.gov.uk/id/local-authority/00FC),Childrens Services,Education And Inclusion,Sen/Inclusion,Private Contractors,Third Party Prov - Private,PH101,22/06/2021,935244,620.36,REVENUE,REDACTED PERSONAL INFORMATION,REDACTED PERSONAL INFORMATION
North East Lincolnshire Council,http://statistics.data.gov.uk/id/local-authority/00FC),Childrens Services,Education And Inclusion,Sen/Inclusion,Private Contractors,Third Party Prov - Private,PH101,01/06/2021,674804,159000,REVENUE,TEC PARTNERSHIP,148350
North East Lincolnshire Council,http://statistics.data.gov.uk/id/local-authority/00FC),Childrens Services,Education And Inclusion,Sen/Inclusion,Private Contractors,Third Party Prov - Private,PH101,07/06/2021,675546,7689.8,REVENUE,COMMUNITY PRESS OFFICE LTD,101728
North East Lincolnshire Council,http://statistics.data.gov.uk/id/local-authority/00FC),Childrens Services,Education And Inclusion,Sen/Inclusion,Private Contractors,Third Party Prov - Private,PH101,03/06/2021,675425,298.2,REVENUE,LINKAGE COMMUNITY TRUST,100343
North East Lincolnshire Council,http://statistics.data.gov.uk/id/local-authority/00FC),Childrens Services,Education And Inclusion,Sen/Inclusion,Private Contractors,Third Party Prov - Private,PH101,10/06/2021,676818,5418,REVENUE,FRANKLIN COLLEGE,101073
North East Lincolnshire Council,http://statistics.data.gov.uk/id/local-authority/00FC),Childrens Services,Education And Inclusion,Sen/Inclusion,Private Contractors,Third Party Prov - Private,PH101,10/06/2021,676817,5418,REVENUE,FRANKLIN COLLEGE,101073
North East Lincolnshire Council,http://statistics.data.gov.uk/id/local-authority/00FC),Childrens Services,Education And Inclusion,Sen/Inclusion,Private Contractors,Third Party Prov - Private,PH101,17/06/2021,677779,1754.11,REVENUE,BISHOP BURTON COLLEGE,109337
North East Lincolnshire Council,http://statistics.data.gov.uk/id/local-authority/00FC),Childrens Services,Education And Inclusion,Sen/Inclusion,Miscellaneous Expenses,Contingency Reserve,LL123,29/06/2021,679109,1392,REVENUE,PHOENIX PARK ACADEMY,126685
North East Lincolnshire Council,http://statistics.data.gov.uk/id/local-authority/00FC),Childrens Services,Education And Inclusion,Sen/Inclusion,Miscellaneous Expenses,Contingency Reserve,LL123,29/06/2021,679111,16700,REVENUE,PHOENIX PARK ACADEMY,126685
North East Lincolnshire Council,http://statistics.data.gov.uk/id/local-authority/00FC),Childrens Services,Education And Inclusion,Sen/Inclusion,Miscellaneous Expenses,Contingency Reserve,LL123,29/06/2021,679110,47317,REVENUE,PHOENIX PARK ACADEMY,126685
North East Lincolnshire Council,http://statistics.data.gov.uk/id/local-authority/00FC),Childrens Services,Education And Inclusion,Sen/Inclusion,Miscellaneous Expenses,Contingency Reserve,LL123,29/06/2021,679112,27833,REVENUE,SEVENHILLS ACADEMY,128660
North East Lincolnshire Council,http://statistics.data.gov.uk/id/local-authority/00FC),Childrens Services,Education And Inclusion,Sen/Inclusion,Miscellaneous Expenses,Contingency Reserve,LL123,29/06/2021,679113,27833,REVENUE,SEVENHILLS ACADEMY,128660
North East Lincolnshire Council,http://statistics.data.gov.uk/id/local-authority/00FC),Childrens Services,Education And Inclusion,Sen/Inclusion,Contributions To Provisions,Contributions - Other,LK103,29/06/2021,679102,1700,REVENUE,THE CAMBRIDGE PARK ACADEMY,107472
North East Lincolnshire Council,http://statistics.data.gov.uk/id/local-authority/00FC),Childrens Services,Education And Inclusion,Sen/Inclusion,Contributions To Provisions,Contributions - Other,LK103,15/06/2021,677061,161953,REVENUE,BEACON ACADEMY,138130
North East Lincolnshire Council,http://statistics.data.gov.uk/id/local-authority/00FC),Childrens Services,Education And Inclusion,Sen/Inclusion,Contributions To Provisions,Contributions - Other,LK103,15/06/2021,677037,40349,REVENUE,BURSAR PRIMARY ACADEMY,114977
North East Lincolnshire Council,http://statistics.data.gov.uk/id/local-authority/00FC),Childrens Services,Education And Inclusion,Sen/Inclusion,Contributions To Provisions,Contributions - Other,LK103,15/06/2021,677017,31402,REVENUE,CLEETHORPES ACADEMY,102713
North East Lincolnshire Council,http://statistics.data.gov.uk/id/local-authority/00FC),Childrens Services,Education And Inclusion,Sen/Inclusion,Contributions To Provisions,Contributions - Other,LK103,15/06/2021,677048,16703,REVENUE,CANON PETER HALL CE PRIMARY ACADEMY,126646
North East Lincolnshire Council,http://statistics.data.gov.uk/id/local-authority/00FC),Childrens Services,Education And Inclusion,Sen/Inclusion,Contributions To Provisions,Contributions - Other,LK103,15/06/2021,677043,10647,REVENUE,EASTFIELD PRIMARY ACADEMY,121907
North East Lincolnshire Council,http://statistics.data.gov.uk/id/local-authority/00FC),Childrens Services,Education And Inclusion,Sen/Inclusion,Contributions To Provisions,Contributions - Other,LK103,15/06/2021,677025,6148,REVENUE,EAST RAVENDALE C OF E PRIMARY SCHOOL ACADEMY,109167
North East Lincolnshire Council,http://statistics.data.gov.uk/id/local-authority/00FC),Childrens Services,Education And Inclusion,Sen/Inclusion,Contributions To Provisions,Contributions - Other,LK103,15/06/2021,677030,47770,REVENUE,EDWARD HENEAGE PRIMARY (ACADEMY),111742
North East Lincolnshire Council,http://statistics.data.gov.uk/id/local-authority/00FC),Childrens Services,Education And Inclusion,Sen/Inclusion,Contributions To Provisions,Contributions - Other,LK103,15/06/2021,677052,30660,REVENUE,ELLISTON PRIMARY ACADEMY,129629
North East Lincolnshire Council,http://statistics.data.gov.uk/id/local-authority/00FC),Childrens Services,Education And Inclusion,Sen/Inclusion,Contributions To Provisions,Contributions - Other,LK103,15/06/2021,677054,3239,REVENUE,ENFIELD ACADEMY OF NEW WALTHAM,131526
North East Lincolnshire Council,http://statistics.data.gov.uk/id/local-authority/00FC),Childrens Services,Education And Inclusion,Sen/Inclusion,Contributions To Provisions,Contributions - Other,LK103,15/06/2021,677051,49046,REVENUE,FAIRFIELD PRIMARY ACADEMY,129030
North East Lincolnshire Council,http://statistics.data.gov.uk/id/local-authority/00FC),Childrens Services,Education And Inclusion,Sen/Inclusion,Contributions To Provisions,Contributions - Other,LK103,15/06/2021,677057,36922,REVENUE,GREAT COATES PRIMARY ACADEMY,134467
North East Lincolnshire Council,http://statistics.data.gov.uk/id/local-authority/00FC),Childrens Services,Education And Inclusion,Sen/Inclusion,Contributions To Provisions,Contributions - Other,LK103,15/06/2021,677015,24034,REVENUE,HAVELOCK ACADEMY,101968
North East Lincolnshire Council,http://statistics.data.gov.uk/id/local-authority/00FC),Childrens Services,Education And Inclusion,Sen/Inclusion,Contributions To Provisions,Contributions - Other,LK103,15/06/2021,677016,72753,REVENUE,HEALING SCIENCE ACADEMY LTD,102702
North East Lincolnshire Council,http://statistics.data.gov.uk/id/local-authority/00FC),Childrens Services,Education And Inclusion,Sen/Inclusion,Contributions To Provisions,Contributions - Other,LK103,15/06/2021,677049,40654,REVENUE,HEALING PRIMARY ACADEMY,127192
North East Lincolnshire Council,http://statistics.data.gov.uk/id/local-authority/00FC),Childrens Services,Education And Inclusion,Sen/Inclusion,Contributions To Provisions,Contributions - Other,LK103,15/06/2021,677047,21140,REVENUE,HUMBERSTON CLOVERFIELDS ACADEMY SCHOOL,125655
North East Lincolnshire Council,http://statistics.data.gov.uk/id/local-authority/00FC),Childrens Services,Education And Inclusion,Sen/Inclusion,Contributions To Provisions,Contributions - Other,LK103,15/06/2021,677020,115331,REVENUE,HUMBERSTON ACADEMY,106067
North East Lincolnshire Council,http://statistics.data.gov.uk/id/local-authority/00FC),Childrens Services,Education And Inclusion,Sen/Inclusion,Contributions To Provisions,Contributions - Other,LK103,15/06/2021,677021,80249,REVENUE,JOHN WHITGIFT ACADEMY,106898
North East Lincolnshire Council,http://statistics.data.gov.uk/id/local-authority/00FC),Childrens Services,Education And Inclusion,Sen/Inclusion,Contributions To Provisions,Contributions - Other,LK103,15/06/2021,677046,8912,REVENUE,LACEBY ACRES ACADEMY,124644
North East Lincolnshire Council,http://statistics.data.gov.uk/id/local-authority/00FC),Childrens Services,Education And Inclusion,Sen/Inclusion,Contributions To Provisions,Contributions - Other,LK103,15/06/2021,677022,91387,REVENUE,LISLE MARSDEN C OF E PRIMARY ACADEMY,107922
North East Lincolnshire Council,http://statistics.data.gov.uk/id/local-authority/00FC),Childrens Services,Education And Inclusion,Sen/Inclusion,Contributions To Provisions,Contributions - Other,LK103,15/06/2021,677056,46706,REVENUE,LITTLECOATES PRIMARY ACADEMY,134261
North East Lincolnshire Council,http://statistics.data.gov.uk/id/local-authority/00FC),Childrens Services,Education And Inclusion,Sen/Inclusion,Contributions To Provisions,Contributions - Other,LK103,15/06/2021,677033,53401,REVENUE,MACAULAY PRIMARY ACADEMY,112680
North East Lincolnshire Council,http://statistics.data.gov.uk/id/local-authority/00FC),Childrens Services,Education And Inclusion,Sen/Inclusion,Contributions To Provisions,Contributions - Other,LK103,15/06/2021,677036,47690,REVENUE,MIDDLETHORPE PRIMARY ACADEMY,114833
North East Lincolnshire Council,http://statistics.data.gov.uk/id/local-authority/00FC),Childrens Services,Education And Inclusion,Sen/Inclusion,Contributions To Provisions,Contributions - Other,LK103,15/06/2021,677023,24592,REVENUE,NEW WALTHAM ACADEMY,108556
North East Lincolnshire Council,http://statistics.data.gov.uk/id/local-authority/00FC),Childrens Services,Education And Inclusion,Sen/Inclusion,Contributions To Provisions,Contributions - Other,LK103,15/06/2021,677014,64499,REVENUE,OASIS ACADEMY IMMINGHAM,101947
North East Lincolnshire Council,http://statistics.data.gov.uk/id/local-authority/00FC),Childrens Services,Education And Inclusion,Sen/Inclusion,Contributions To Provisions,Contributions - Other,LK103,15/06/2021,677045,27918,REVENUE,OASIS ACADEMY SCHOOL (NUNSTHORPE SCHOOL),122861
North East Lincolnshire Council,http://statistics.data.gov.uk/id/local-authority/00FC),Childrens Services,Education And Inclusion,Sen/Inclusion,Contributions To Provisions,Contributions - Other,LK103,15/06/2021,677013,122290,REVENUE,OASIS ACADEMY WINTRINGHAM,101939
North East Lincolnshire Council,http://statistics.data.gov.uk/id/local-authority/00FC),Childrens Services,Education And Inclusion,Sen/Inclusion,Contributions To Provisions,Contributions - Other,LK103,15/06/2021,677041,10715,REVENUE,OLD CLEE PRIMARY ACADEMY,119822
North East Lincolnshire Council,http://statistics.data.gov.uk/id/local-authority/00FC),Childrens Services,Education And Inclusion,Sen/Inclusion,Contributions To Provisions,Contributions - Other,LK103,15/06/2021,677019,64003,REVENUE,ORMISTON MARITIME ACADEMY,106066
North East Lincolnshire Council,http://statistics.data.gov.uk/id/local-authority/00FC),Childrens Services,Education And Inclusion,Sen/Inclusion,Contributions To Provisions,Contributions - Other,LK103,15/06/2021,677060,1675,REVENUE,PILGRIM ACADEMY,136366
North East Lincolnshire Council,http://statistics.data.gov.uk/id/local-authority/00FC),Childrens Services,Education And Inclusion,Sen/Inclusion,Contributions To Provisions,Contributions - Other,LK103,15/06/2021,677044,15452,REVENUE,REYNOLDS PRIMARY ACADEMY,122175
North East Lincolnshire Council,http://statistics.data.gov.uk/id/local-authority/00FC),Childrens Services,Education And Inclusion,Sen/Inclusion,Contributions To Provisions,Contributions - Other,LK103,15/06/2021,677024,20459,REVENUE,SCARTHO JUNIOR ACADEMY,108738
North East Lincolnshire Council,http://statistics.data.gov.uk/id/local-authority/00FC),Childrens Services,Education And Inclusion,Sen/Inclusion,Contributions To Provisions,Contributions - Other,LK103,15/06/2021,677018,15317,REVENUE,SIGNHILLS ACADEMY LTD,106065
North East Lincolnshire Council,http://statistics.data.gov.uk/id/local-authority/00FC),Childrens Services,Education And Inclusion,Sen/Inclusion,Contributions To Provisions,Contributions - Other,LK103,15/06/2021,677028,29993,REVENUE,SIGNHILLS INFANTS ACADEMY,110645
North East Lincolnshire Council,http://statistics.data.gov.uk/id/local-authority/00FC),Childrens Services,Education And Inclusion,Sen/Inclusion,Contributions To Provisions,Contributions - Other,LK103,15/06/2021,677031,69718,REVENUE,ORMISTON SOUTH PARADE ACADEMY,111750
North East Lincolnshire Council,http://statistics.data.gov.uk/id/local-authority/00FC),Childrens Services,Education And Inclusion,Sen/Inclusion,Contributions To Provisions,Contributions - Other,LK103,15/06/2021,677053,24177,REVENUE,SPRINGFIELD PRIMARY ACADEMY,131306
North East Lincolnshire Council,http://statistics.data.gov.uk/id/local-authority/00FC),Childrens Services,Education And Inclusion,Sen/Inclusion,Contributions To Provisions,Contributions - Other,LK103,15/06/2021,677027,22060,REVENUE,ST JOSEPH'S RC PRIMARY ACADEMY,110066
North East Lincolnshire Council,http://statistics.data.gov.uk/id/local-authority/00FC),Childrens Services,Education And Inclusion,Sen/Inclusion,Contributions To Provisions,Contributions - Other,LK103,15/06/2021,677039,35387,REVENUE,ST MARYS CATHOLIC PRIMARY VOLUNTARY ACADEMY,115108
North East Lincolnshire Council,http://statistics.data.gov.uk/id/local-authority/00FC),Childrens Services,Education And Inclusion,Sen/Inclusion,Contributions To Provisions,Contributions - Other,LK103,15/06/2021,677058,40048,REVENUE,ST PETERS COFE PRIMARY ACADEMY,134905
North East Lincolnshire Council,http://statistics.data.gov.uk/id/local-authority/00FC),Childrens Services,Education And Inclusion,Sen/Inclusion,Contributions To Provisions,Contributions - Other,LK103,15/06/2021,677032,39865,REVENUE,STRAND PRIMARY ACADEMY,111862
North East Lincolnshire Council,http://statistics.data.gov.uk/id/local-authority/00FC),Childrens Services,Education And Inclusion,Sen/Inclusion,Contributions To Provisions,Contributions - Other,LK103,15/06/2021,677040,56409,REVENUE,THRUNSCOE PRIMARY AND NURSERY ACADEMY,118749
North East Lincolnshire Council,http://statistics.data.gov.uk/id/local-authority/00FC),Childrens Services,Education And Inclusion,Sen/Inclusion,Contributions To Provisions,Contributions - Other,LK103,15/06/2021,677035,28368,REVENUE,TOLL BAR ACADEMY,114560
North East Lincolnshire Council,http://statistics.data.gov.uk/id/local-authority/00FC),Childrens Services,Education And Inclusion,Sen/Inclusion,Contributions To Provisions,Contributions - Other,LK103,15/06/2021,677026,26276,REVENUE,WALTHAM LEAS PRIMARY ACADEMY,109335
North East Lincolnshire Council,http://statistics.data.gov.uk/id/local-authority/00FC),Childrens Services,Education And Inclusion,Sen/Inclusion,Contributions To Provisions,Contributions - Other,LK103,15/06/2021,677029,44466,REVENUE,WEELSBY ACADEMY,111161
North East Lincolnshire Council,http://statistics.data.gov.uk/id/local-authority/00FC),Childrens Services,Education And Inclusion,Sen/Inclusion,Contributions To Provisions,Contributions - Other,LK103,15/06/2021,677050,35822,REVENUE,WELHOLME ACADEMY,127227
North East Lincolnshire Council,http://statistics.data.gov.uk/id/local-authority/00FC),Childrens Services,Education And Inclusion,Sen/Inclusion,Contributions To Provisions,Contributions - Other,LK103,15/06/2021,677059,25353,REVENUE,WILLIAM BARCROFT JUNIOR ACADEMY,136302
North East Lincolnshire Council,http://statistics.data.gov.uk/id/local-authority/00FC),Childrens Services,Education And Inclusion,Sen/Inclusion,Contributions To Provisions,Contributions - Other,LK103,15/06/2021,677042,16925,REVENUE,WILLOWS PRIMARY ACADEMY,120478
North East Lincolnshire Council,http://statistics.data.gov.uk/id/local-authority/00FC),Childrens Services,Education And Inclusion,Sen/Inclusion,Contributions To Provisions,Contributions - Other,LK103,15/06/2021,677055,23656,REVENUE,WOODLANDS ACADEMY,132649
North East Lincolnshire Council,http://statistics.data.gov.uk/id/local-authority/00FC),Childrens Services,Education And Inclusion,Sen/Inclusion,Contributions To Provisions,Contributions - Other,LK103,15/06/2021,677038,47853,REVENUE,WYBERS WOOD PRIMARY ACADEMY,115078
North East Lincolnshire Council,http://statistics.data.gov.uk/id/local-authority/00FC),Childrens Services,Education And Inclusion,Sen/Inclusion,Contributions To Provisions,Contributions - Other,LK103,15/06/2021,677034,74545,REVENUE,YARBOROUGH ACADEMY,112852
North East Lincolnshire Council,http://statistics.data.gov.uk/id/local-authority/00FC),Childrens Services,Education And Inclusion,Sen/Inclusion,Contributions To Provisions,Contributions - Third Sector,LK102,21/06/2021,934386,280,REVENUE,REDACTED PERSONAL INFORMATION,REDACTED PERSONAL INFORMATION
North East Lincolnshire Council,http://statistics.data.gov.uk/id/local-authority/00FC),Childrens Services,Education And Inclusion,Sen/Inclusion,Contributions To Provisions,Contributions - Third Sector,LK102,29/06/2021,936486,935,REVENUE,REDACTED PERSONAL INFORMATION,REDACTED PERSONAL INFORMATION
North East Lincolnshire Council,http://statistics.data.gov.uk/id/local-authority/00FC),Childrens Services,Education And Inclusion,Sen/Inclusion,Contributions To Provisions,Contributions - Third Sector,LK102,01/06/2021,674791,1750.85,REVENUE,TEACHING PERSONNEL LTD,101305
North East Lincolnshire Council,http://statistics.data.gov.uk/id/local-authority/00FC),Childrens Services,Education And Inclusion,Sen/Inclusion,Contributions To Provisions,Contributions - Third Sector,LK102,01/06/2021,674801,2215.39,REVENUE,TEACHING PERSONNEL LTD,101305
North East Lincolnshire Council,http://statistics.data.gov.uk/id/local-authority/00FC),Childrens Services,Education And Inclusion,Sen/Inclusion,Contributions To Provisions,Contributions - Third Sector,LK102,14/06/2021,677148,1104,REVENUE,PRIORY GROUP,147103
North East Lincolnshire Council,http://statistics.data.gov.uk/id/local-authority/00FC),Childrens Services,Education And Inclusion,Sen/Inclusion,Contributions To Provisions,Contributions - Third Sector,LK102,14/06/2021,677145,1644.54,REVENUE,AK PAYROLL SERIVCES LTD,145107
North East Lincolnshire Council,http://statistics.data.gov.uk/id/local-authority/00FC),Childrens Services,Education And Inclusion,Sen/Inclusion,Contributions To Provisions,Contributions - Third Sector,LK102,14/06/2021,677146,1644.54,REVENUE,AK PAYROLL SERIVCES LTD,145107
North East Lincolnshire Council,http://statistics.data.gov.uk/id/local-authority/00FC),Childrens Services,Education And Inclusion,Sen/Inclusion,Contributions To Provisions,Contributions - Third Sector,LK102,17/06/2021,677780,1644.54,REVENUE,AK PAYROLL SERIVCES LTD,145107
North East Lincolnshire Council,http://statistics.data.gov.uk/id/local-authority/00FC),Childrens Services,Education And Inclusion,Sen/Inclusion,Contributions To Provisions,Contributions - Third Sector,LK102,17/06/2021,677781,2970,REVENUE,ST JAMES SCHOOL,100940
North East Lincolnshire Council,http://statistics.data.gov.uk/id/local-authority/00FC),Childrens Services,Education And Inclusion,Sen/Inclusion,Contributions To Provisions,Contributions - Third Sector,LK102,21/06/2021,677795,1367.1,REVENUE,RAINBOW CORNER DAY NURSERY,101229
North East Lincolnshire Council,http://statistics.data.gov.uk/id/local-authority/00FC),Childrens Services,Education And Inclusion,Sen/Inclusion,Contributions To Provisions,Contributions - Third Sector,LK102,17/06/2021,677782,985.5,REVENUE,CENTRE4 LIMITED,126893
North East Lincolnshire Council,http://statistics.data.gov.uk/id/local-authority/00FC),Childrens Services,Education And Inclusion,Sen/Inclusion,Contributions To Provisions,Contributions - Third Sector,LK102,17/06/2021,677778,1750.85,REVENUE,TEACHING PERSONNEL LTD,101305
North East Lincolnshire Council,http://statistics.data.gov.uk/id/local-authority/00FC),Childrens Services,Education And Inclusion,Sen/Inclusion,Contributions To Provisions,Contributions - Third Sector,LK102,17/06/2021,677772,495,REVENUE,TARGETED PROVISION LTD,146662
North East Lincolnshire Council,http://statistics.data.gov.uk/id/local-authority/00FC),Childrens Services,Education And Inclusion,Sen/Inclusion,Contributions To Provisions,Contributions - Third Sector,LK102,17/06/2021,677771,495,REVENUE,TARGETED PROVISION LTD,146662
North East Lincolnshire Council,http://statistics.data.gov.uk/id/local-authority/00FC),Childrens Services,Education And Inclusion,Sen/Inclusion,Contributions To Provisions,Contributions - Third Sector,LK102,17/06/2021,677773,880,REVENUE,TARGETED PROVISION LTD,146662
North East Lincolnshire Council,http://statistics.data.gov.uk/id/local-authority/00FC),Childrens Services,Education And Inclusion,Sen/Inclusion,Contributions To Provisions,Contributions - Third Sector,LK102,17/06/2021,677775,1200,REVENUE,TARGETED PROVISION LTD,146662
North East Lincolnshire Council,http://statistics.data.gov.uk/id/local-authority/00FC),Childrens Services,Education And Inclusion,Sen/Inclusion,Contributions To Provisions,Contributions - Third Sector,LK102,17/06/2021,677774,2475,REVENUE,TARGETED PROVISION LTD,146662
North East Lincolnshire Council,http://statistics.data.gov.uk/id/local-authority/00FC),Childrens Services,Education And Inclusion,Sen/Inclusion,Contributions To Provisions,Contributions - Third Sector,LK102,17/06/2021,677776,495,REVENUE,TARGETED PROVISION LTD,146662
North East Lincolnshire Council,http://statistics.data.gov.uk/id/local-authority/00FC),Childrens Services,Education And Inclusion,Sen/Inclusion,Contributions To Provisions,Contributions - Third Sector,LK102,17/06/2021,677777,440,REVENUE,TARGETED PROVISION LTD,146662
North East Lincolnshire Council,http://statistics.data.gov.uk/id/local-authority/00FC),Childrens Services,Education And Inclusion,Sen/Inclusion,Miscellaneous Expenses,Contingency Reserve,LL123,29/06/2021,679103,152934,REVENUE,THE CAMBRIDGE PARK ACADEMY,107472
North East Lincolnshire Council,http://statistics.data.gov.uk/id/local-authority/00FC),Childrens Services,Education And Inclusion,Sen/Inclusion,Miscellaneous Expenses,Contingency Reserve,LL123,29/06/2021,679100,9533,REVENUE,THE CAMBRIDGE PARK ACADEMY,107472
North East Lincolnshire Council,http://statistics.data.gov.uk/id/local-authority/00FC),Childrens Services,Education And Inclusion,Sen/Inclusion,Miscellaneous Expenses,Contingency Reserve,LL123,29/06/2021,679104,9533,REVENUE,HUMBERSTON PARK SPECIAL SCHOOL,107911
North East Lincolnshire Council,http://statistics.data.gov.uk/id/local-authority/00FC),Childrens Services,Education And Inclusion,Sen/Inclusion,Miscellaneous Expenses,Contingency Reserve,LL123,29/06/2021,679105,120667,REVENUE,HUMBERSTON PARK SPECIAL SCHOOL,107911
North East Lincolnshire Council,http://statistics.data.gov.uk/id/local-authority/00FC),Childrens Services,Education And Inclusion,Sen/Inclusion,Miscellaneous Expenses,Other Expenses General,LL119,29/06/2021,679107,5933,REVENUE,EASTFIELD PRIMARY ACADEMY,121907
North East Lincolnshire Council,http://statistics.data.gov.uk/id/local-authority/00FC),Childrens Services,Education And Inclusion,Sen/Inclusion,Miscellaneous Expenses,Other Expenses General,LL119,29/06/2021,679108,1944.92,REVENUE,EASTFIELD PRIMARY ACADEMY,121907
North East Lincolnshire Council,http://statistics.data.gov.uk/id/local-authority/00FC),Childrens Services,Education And Inclusion,Sen/Inclusion,Miscellaneous Expenses,Other Expenses General,LL119,29/06/2021,679106,8900,REVENUE,EASTFIELD PRIMARY ACADEMY,121907
North East Lincolnshire Council,http://statistics.data.gov.uk/id/local-authority/00FC),Childrens Services,Education And Inclusion,Sen/Inclusion,Other Local Authorities,Third Pp - Other Local Auth,PC101,14/06/2021,677218,1999.8,REVENUE,CARE TODAY CHILDRENS SERVICES LTD,128284
North East Lincolnshire Council,http://statistics.data.gov.uk/id/local-authority/00FC),Childrens Services,Education And Inclusion,Sen/Inclusion,Other Local Authorities,Third Pp - Other Local Auth,PC101,10/06/2021,676820,222759.32,REVENUE,ORCHARD EDUCATION LTD,141244
North East Lincolnshire Council,http://statistics.data.gov.uk/id/local-authority/00FC),Childrens Services,Education And Inclusion,Sen/Inclusion,Other Local Authorities,Third Pp - Other Local Auth,PC101,21/06/2021,678015,4991,REVENUE,AMBERLEIGH CARE,143857
North East Lincolnshire Council,http://statistics.data.gov.uk/id/local-authority/00FC),Childrens Services,Education And Inclusion,Sen/Inclusion,Other Local Authorities,Third Pp - Other Local Auth,PC101,11/06/2021,676863,3999.6,REVENUE,CARE TODAY CHILDRENS SERVICES LTD,128284
North East Lincolnshire Council,http://statistics.data.gov.uk/id/local-authority/00FC),Childrens Services,Education And Inclusion,Sen/Inclusion,Other Local Authorities,Third Pp - Other Local Auth,PC101,03/06/2021,675419,50020,REVENUE,DEMETER HOUSE (ENGLAND) LTD,109683
North East Lincolnshire Council,http://statistics.data.gov.uk/id/local-authority/00FC),Childrens Services,Education And Inclusion,Sen/Inclusion,Other Local Authorities,Third Pp - Other Local Auth,PC101,03/06/2021,675520,41867.71,REVENUE,BEST FUTURES COMMUNITY INTEREST COMPANY,128600
North East Lincolnshire Council,http://statistics.data.gov.uk/id/local-authority/00FC),Childrens Services,Education And Inclusion,Sen/Inclusion,Other Local Authorities,Third Pp - Other Local Auth,PC101,15/06/2021,677283,3166.73,REVENUE,CASTLES EDUCATION LLP,146355
North East Lincolnshire Council,http://statistics.data.gov.uk/id/local-authority/00FC),Childrens Services,Education And Inclusion,Sen/Inclusion,Other Local Authorities,Third Pp - Other Local Auth,PC101,15/06/2021,677285,3800,REVENUE,CASTLES EDUCATION LLP,146355
North East Lincolnshire Council,http://statistics.data.gov.uk/id/local-authority/00FC),Childrens Services,Education And Inclusion,Sen/Inclusion,Other Local Authorities,Third Pp - Other Local Auth,PC101,15/06/2021,677286,4092.6,REVENUE,CASTLES EDUCATION LLP,146355
North East Lincolnshire Council,http://statistics.data.gov.uk/id/local-authority/00FC),Childrens Services,Education And Inclusion,Sen/Inclusion,Other Local Authorities,Third Pp - Other Local Auth,PC101,15/06/2021,677284,3166.73,REVENUE,CASTLES EDUCATION LLP,146355
North East Lincolnshire Council,http://statistics.data.gov.uk/id/local-authority/00FC),Childrens Services,Education And Inclusion,Sen/Inclusion,Other Local Authorities,Third Pp - Other Local Auth,PC101,15/06/2021,677287,3166.73,REVENUE,CASTLES EDUCATION LLP,146355
North East Lincolnshire Council,http://statistics.data.gov.uk/id/local-authority/00FC),Childrens Services,Education And Inclusion,Sen/Inclusion,Other Local Authorities,Third Pp - Other Local Auth,PC101,01/06/2021,674825,5729,REVENUE,CEDAR HOUSE SCHOOL,133440
North East Lincolnshire Council,http://statistics.data.gov.uk/id/local-authority/00FC),Childrens Services,Education And Inclusion,Sen/Inclusion,Other Local Authorities,Third Pp - Other Local Auth,PC101,15/06/2021,677290,9396.94,REVENUE,ACORN CARE & EDUCATION LTD (SALES),148279
North East Lincolnshire Council,http://statistics.data.gov.uk/id/local-authority/00FC),Childrens Services,Education And Inclusion,Sen/Inclusion,Other Local Authorities,Third Pp - Other Local Auth,PC101,15/06/2021,677293,9710.17,REVENUE,ACORN CARE & EDUCATION LTD (SALES),148279
North East Lincolnshire Council,http://statistics.data.gov.uk/id/local-authority/00FC),Childrens Services,Education And Inclusion,Sen/Inclusion,Other Local Authorities,Third Pp - Other Local Auth,PC101,15/06/2021,677294,9396.94,REVENUE,ACORN CARE & EDUCATION LTD (SALES),148279
North East Lincolnshire Council,http://statistics.data.gov.uk/id/local-authority/00FC),Childrens Services,Education And Inclusion,Sen/Inclusion,Other Local Authorities,Third Pp - Other Local Auth,PC101,03/06/2021,675412,4933.5,REVENUE,HORTON ESTABLISHMENTS LTD,101329
North East Lincolnshire Council,http://statistics.data.gov.uk/id/local-authority/00FC),Childrens Services,Education And Inclusion,Sen/Inclusion,Other Local Authorities,Third Pp - Other Local Auth,PC101,03/06/2021,675547,11073.24,REVENUE,KISIMUL SCHOOL,100406
North East Lincolnshire Council,http://statistics.data.gov.uk/id/local-authority/00FC),Childrens Services,Education And Inclusion,Sen/Inclusion,Other Local Authorities,Third Pp - Other Local Auth,PC101,15/06/2021,677299,10716.04,REVENUE,KISIMUL SCHOOL,100406
North East Lincolnshire Council,http://statistics.data.gov.uk/id/local-authority/00FC),Childrens Services,Education And Inclusion,Sen/Inclusion,Other Local Authorities,Third Pp - Other Local Auth,PC101,03/06/2021,675531,11954.01,REVENUE,DONCASTER DEAF TRUST,101268
North East Lincolnshire Council,http://statistics.data.gov.uk/id/local-authority/00FC),Childrens Services,Education And Inclusion,Sen/Inclusion,Other Local Authorities,Third Pp - Other Local Auth,PC101,03/06/2021,675532,1755.56,REVENUE,DONCASTER DEAF TRUST,101268
North East Lincolnshire Council,http://statistics.data.gov.uk/id/local-authority/00FC),Childrens Services,Education And Inclusion,Sen/Inclusion,Other Local Authorities,Third Pp - Other Local Auth,PC101,15/06/2021,677280,1755.56,REVENUE,DONCASTER DEAF TRUST,101268
North East Lincolnshire Council,http://statistics.data.gov.uk/id/local-authority/00FC),Childrens Services,Education And Inclusion,Sen/Inclusion,Other Local Authorities,Third Pp - Other Local Auth,PC101,15/06/2021,677281,11954.01,REVENUE,DONCASTER DEAF TRUST,101268
North East Lincolnshire Council,http://statistics.data.gov.uk/id/local-authority/00FC),Childrens Services,Education And Inclusion,Sen/Inclusion,Other Local Authorities,Third Pp - Other Local Auth,PC101,15/06/2021,677298,8750.96,REVENUE,ACORN CARE & EDUCATION LTD (SALES),148279
North East Lincolnshire Council,http://statistics.data.gov.uk/id/local-authority/00FC),Childrens Services,Education And Inclusion,Sen/Inclusion,Other Local Authorities,Third Pp - Other Local Auth,PC101,21/06/2021,678014,3968,REVENUE,AMBERLEIGH CARE,143857
North East Lincolnshire Council,http://statistics.data.gov.uk/id/local-authority/00FC),Childrens Services,Education And Inclusion,Sen/Inclusion,Other Local Authorities,Third Pp - Other Local Auth,PC101,03/06/2021,675435,8809.28,REVENUE,ISLE EDUCATION TRUST,145178
North East Lincolnshire Council,http://statistics.data.gov.uk/id/local-authority/00FC),Childrens Services,Education And Inclusion,Sen/Inclusion,Other Local Authorities,Third Pp - Other Local Auth,PC101,03/06/2021,675434,5944.95,REVENUE,ISLE EDUCATION TRUST,145178
North East Lincolnshire Council,http://statistics.data.gov.uk/id/local-authority/00FC),Childrens Services,Education And Inclusion,Sen/Inclusion,Other Local Authorities,Third Pp - Other Local Auth,PC101,03/06/2021,675442,5258.35,REVENUE,ISLE EDUCATION TRUST,145178
North East Lincolnshire Council,http://statistics.data.gov.uk/id/local-authority/00FC),Childrens Services,Education And Inclusion,Sen/Inclusion,Other Local Authorities,Third Pp - Other Local Auth,PC101,03/06/2021,675431,5953.4,REVENUE,ISLE EDUCATION TRUST,145178
North East Lincolnshire Council,http://statistics.data.gov.uk/id/local-authority/00FC),Childrens Services,Education And Inclusion,Sen/Inclusion,Other Local Authorities,Third Pp - Other Local Auth,PC101,01/06/2021,674800,450,REVENUE,FORTIS THERAPY & TRAINING,120445
North East Lincolnshire Council,http://statistics.data.gov.uk/id/local-authority/00FC),Childrens Services,Education And Inclusion,Sen/Inclusion,Other Local Authorities,Third Pp - Other Local Auth,PC101,11/06/2021,676872,5655.73,REVENUE,ISLE EDUCATION TRUST,145178
North East Lincolnshire Council,http://statistics.data.gov.uk/id/local-authority/00FC),Childrens Services,Education And Inclusion,School Improvement,Private Contractors,Third Party Prov - Private,PH101,08/06/2021,675940,453.15,REVENUE,FOR UNDER FIVES LTD,100647
North East Lincolnshire Council,http://statistics.data.gov.uk/id/local-authority/00FC),Childrens Services,Education And Inclusion,School Improvement,Private Contractors,Third Party Prov - Private,PH101,08/06/2021,676026,858.6,REVENUE,BURSAR PRIMARY ACADEMY,111550
North East Lincolnshire Council,http://statistics.data.gov.uk/id/local-authority/00FC),Childrens Services,Education And Inclusion,School Improvement,Private Contractors,Third Party Prov - Private,PH101,08/06/2021,675993,3381.93,REVENUE,BUTTERFLIES DAY NURSERY,101694
North East Lincolnshire Council,http://statistics.data.gov.uk/id/local-authority/00FC),Childrens Services,Education And Inclusion,School Improvement,Private Contractors,Third Party Prov - Private,PH101,08/06/2021,675943,1462.8,REVENUE,FOR UNDER FIVES LTD,100647
North East Lincolnshire Council,http://statistics.data.gov.uk/id/local-authority/00FC),Childrens Services,Education And Inclusion,School Improvement,Private Contractors,Third Party Prov - Private,PH101,08/06/2021,675966,362.52,REVENUE,THE CHILDRENS HOUSE,101141
North East Lincolnshire Council,http://statistics.data.gov.uk/id/local-authority/00FC),Childrens Services,Education And Inclusion,School Improvement,Private Contractors,Third Party Prov - Private,PH101,08/06/2021,676028,628.05,REVENUE,EDWARD HENEAGE PRIMARY (ACADEMY),111742
North East Lincolnshire Council,http://statistics.data.gov.uk/id/local-authority/00FC),Childrens Services,Education And Inclusion,School Improvement,Private Contractors,Third Party Prov - Private,PH101,08/06/2021,676108,1407.15,REVENUE,ELLISTON PRIMARY ACADEMY,129629
North East Lincolnshire Council,http://statistics.data.gov.uk/id/local-authority/00FC),Childrens Services,Education And Inclusion,School Improvement,Private Contractors,Third Party Prov - Private,PH101,08/06/2021,676104,1073.25,REVENUE,FREESTON TOTS PRESCHOOL,128592
North East Lincolnshire Council,http://statistics.data.gov.uk/id/local-authority/00FC),Childrens Services,Education And Inclusion,School Improvement,Private Contractors,Third Party Prov - Private,PH101,08/06/2021,675975,2647.35,REVENUE,FIRST STEPS GRIMSBY LIMITED,101411
North East Lincolnshire Council,http://statistics.data.gov.uk/id/local-authority/00FC),Childrens Services,Education And Inclusion,School Improvement,Private Contractors,Third Party Prov - Private,PH101,08/06/2021,676047,381.6,REVENUE,HUMBERSTON PRE SCHOOL,114491
North East Lincolnshire Council,http://statistics.data.gov.uk/id/local-authority/00FC),Childrens Services,Education And Inclusion,School Improvement,Private Contractors,Third Party Prov - Private,PH101,08/06/2021,676127,731.4,REVENUE,GREAT COATES PRIMARY ACADEMY,134467
North East Lincolnshire Council,http://statistics.data.gov.uk/id/local-authority/00FC),Childrens Services,Education And Inclusion,School Improvement,Private Contractors,Third Party Prov - Private,PH101,08/06/2021,675988,464.28,REVENUE,CLEETHORPES CHILDCARE,101591
North East Lincolnshire Council,http://statistics.data.gov.uk/id/local-authority/00FC),Childrens Services,Education And Inclusion,School Improvement,Private Contractors,Third Party Prov - Private,PH101,08/06/2021,676113,667.8,REVENUE,HUMBERSTON CLOVERFIELDS ACADEMY NURSERY,132178
North East Lincolnshire Council,http://statistics.data.gov.uk/id/local-authority/00FC),Childrens Services,Education And Inclusion,School Improvement,Private Contractors,Third Party Prov - Private,PH101,08/06/2021,676074,477,REVENUE,IMMINGHAM DAY CARE,122312
North East Lincolnshire Council,http://statistics.data.gov.uk/id/local-authority/00FC),Childrens Services,Education And Inclusion,School Improvement,Private Contractors,Third Party Prov - Private,PH101,08/06/2021,675962,381.6,REVENUE,IMMINGHAM DAY NURSERY,100998
North East Lincolnshire Council,http://statistics.data.gov.uk/id/local-authority/00FC),Childrens Services,Education And Inclusion,School Improvement,Private Contractors,Third Party Prov - Private,PH101,08/06/2021,676098,477,REVENUE,LEAP AHEAD NURSERY,128017
North East Lincolnshire Council,http://statistics.data.gov.uk/id/local-authority/00FC),Childrens Services,Education And Inclusion,School Improvement,Private Contractors,Third Party Prov - Private,PH101,08/06/2021,676093,286.2,REVENUE,LEAP AHEAD NURSERY,128017
North East Lincolnshire Council,http://statistics.data.gov.uk/id/local-authority/00FC),Childrens Services,Education And Inclusion,School Improvement,Private Contractors,Third Party Prov - Private,PH101,08/06/2021,676090,477,REVENUE,LEAP AHEAD NURSERY,128017
North East Lincolnshire Council,http://statistics.data.gov.uk/id/local-authority/00FC),Childrens Services,Education And Inclusion,School Improvement,Private Contractors,Third Party Prov - Private,PH101,08/06/2021,676041,968.31,REVENUE,TEC PARTNERSHIP - LITTLE STARS DAY NURSERY,114230
North East Lincolnshire Council,http://statistics.data.gov.uk/id/local-authority/00FC),Childrens Services,Education And Inclusion,School Improvement,Private Contractors,Third Party Prov - Private,PH101,08/06/2021,676016,858.6,REVENUE,LISLE MARSDEN CHILDCARE LIMITED,110493
North East Lincolnshire Council,http://statistics.data.gov.uk/id/local-authority/00FC),Childrens Services,Education And Inclusion,School Improvement,Private Contractors,Third Party Prov - Private,PH101,08/06/2021,676125,477,REVENUE,LITTLECOATES PRIMARY ACADEMY,134261
North East Lincolnshire Council,http://statistics.data.gov.uk/id/local-authority/00FC),Childrens Services,Education And Inclusion,School Improvement,Private Contractors,Third Party Prov - Private,PH101,08/06/2021,676036,3052.8,REVENUE,MACAULAY PRIMARY ACADEMY,112680
North East Lincolnshire Council,http://statistics.data.gov.uk/id/local-authority/00FC),Childrens Services,Education And Inclusion,School Improvement,Private Contractors,Third Party Prov - Private,PH101,08/06/2021,676144,381.6,REVENUE,MIDDLETHORPE NURSERY,143658
North East Lincolnshire Council,http://statistics.data.gov.uk/id/local-authority/00FC),Childrens Services,Education And Inclusion,School Improvement,Private Contractors,Third Party Prov - Private,PH101,08/06/2021,676139,286.2,REVENUE,MS NATASHA DYKE,141560
North East Lincolnshire Council,http://statistics.data.gov.uk/id/local-authority/00FC),Childrens Services,Education And Inclusion,School Improvement,Private Contractors,Third Party Prov - Private,PH101,08/06/2021,676010,477,REVENUE,NEW WALTHAM ACADEMY,108556
North East Lincolnshire Council,http://statistics.data.gov.uk/id/local-authority/00FC),Childrens Services,Education And Inclusion,School Improvement,Private Contractors,Third Party Prov - Private,PH101,08/06/2021,676077,1486.65,REVENUE,OASIS ACADEMY SCHOOL (NUNSTHORPE SCHOOL),122861
North East Lincolnshire Council,http://statistics.data.gov.uk/id/local-authority/00FC),Childrens Services,Education And Inclusion,School Improvement,Private Contractors,Third Party Prov - Private,PH101,08/06/2021,676056,954,REVENUE,OLD CLEE PRIMARY ACADEMY,119822
North East Lincolnshire Council,http://statistics.data.gov.uk/id/local-authority/00FC),Childrens Services,Education And Inclusion,School Improvement,Private Contractors,Third Party Prov - Private,PH101,08/06/2021,676029,2935.14,REVENUE,ORMISTON SOUTH PARADE ACADEMY,111750
North East Lincolnshire Council,http://statistics.data.gov.uk/id/local-authority/00FC),Childrens Services,Education And Inclusion,School Improvement,Private Contractors,Third Party Prov - Private,PH101,08/06/2021,676130,381.6,REVENUE,PILGRIM ACADEMY,136366
North East Lincolnshire Council,http://statistics.data.gov.uk/id/local-authority/00FC),Childrens Services,Education And Inclusion,School Improvement,Private Contractors,Third Party Prov - Private,PH101,08/06/2021,675978,1081.2,REVENUE,PRECIOUS TIMES CHILDCARE SERVICES,101420
North East Lincolnshire Council,http://statistics.data.gov.uk/id/local-authority/00FC),Childrens Services,Education And Inclusion,School Improvement,Private Contractors,Third Party Prov - Private,PH101,08/06/2021,675938,381.6,REVENUE,FOR UNDER FIVES LTD,100647
North East Lincolnshire Council,http://statistics.data.gov.uk/id/local-authority/00FC),Childrens Services,Education And Inclusion,School Improvement,Private Contractors,Third Party Prov - Private,PH101,08/06/2021,676068,1908,REVENUE,REYNOLDS PRIMARY ACADEMY,122175
North East Lincolnshire Council,http://statistics.data.gov.uk/id/local-authority/00FC),Childrens Services,Education And Inclusion,School Improvement,Private Contractors,Third Party Prov - Private,PH101,08/06/2021,675947,457.92,REVENUE,FOR UNDER FIVES LTD,100647
North East Lincolnshire Council,http://statistics.data.gov.uk/id/local-authority/00FC),Childrens Services,Education And Inclusion,School Improvement,Private Contractors,Third Party Prov - Private,PH101,08/06/2021,676065,1470.75,REVENUE,ST CHRISTOPHERS PRE SCHOOL,121589
North East Lincolnshire Council,http://statistics.data.gov.uk/id/local-authority/00FC),Childrens Services,Education And Inclusion,School Improvement,Private Contractors,Third Party Prov - Private,PH101,08/06/2021,676049,763.2,REVENUE,ST MARYS CATHOLIC PRIMARY VOLUNTARY ACADEMY,115108
North East Lincolnshire Council,http://statistics.data.gov.uk/id/local-authority/00FC),Childrens Services,Education And Inclusion,School Improvement,Private Contractors,Third Party Prov - Private,PH101,08/06/2021,675969,1240.2,REVENUE,ST PETERS CHILDREN CENTRE,101322
North East Lincolnshire Council,http://statistics.data.gov.uk/id/local-authority/00FC),Childrens Services,Education And Inclusion,School Improvement,Private Contractors,Third Party Prov - Private,PH101,08/06/2021,676033,477,REVENUE,STRAND PRIMARY ACADEMY,111862
North East Lincolnshire Council,http://statistics.data.gov.uk/id/local-authority/00FC),Childrens Services,Education And Inclusion,School Improvement,Private Contractors,Third Party Prov - Private,PH101,08/06/2021,676003,381.6,REVENUE,THE AVENUE PLAYGROUP,103168
North East Lincolnshire Council,http://statistics.data.gov.uk/id/local-authority/00FC),Childrens Services,Education And Inclusion,School Improvement,Private Contractors,Third Party Prov - Private,PH101,08/06/2021,676050,1423.05,REVENUE,THRUNSCOE PRIMARY AND NURSERY ACADEMY,118749
North East Lincolnshire Council,http://statistics.data.gov.uk/id/local-authority/00FC),Childrens Services,Education And Inclusion,School Improvement,Private Contractors,Third Party Prov - Private,PH101,08/06/2021,676008,1125.72,REVENUE,WALTHAM LEAS PRE-SCHOOL,108236
North East Lincolnshire Council,http://statistics.data.gov.uk/id/local-authority/00FC),Childrens Services,Education And Inclusion,School Improvement,Private Contractors,Third Party Prov - Private,PH101,08/06/2021,676023,1804.65,REVENUE,WEELSBY ACADEMY,111161
North East Lincolnshire Council,http://statistics.data.gov.uk/id/local-authority/00FC),Childrens Services,Education And Inclusion,School Improvement,Private Contractors,Third Party Prov - Private,PH101,08/06/2021,676085,1892.1,REVENUE,WELHOLME ACADEMY,127227
North East Lincolnshire Council,http://statistics.data.gov.uk/id/local-authority/00FC),Childrens Services,Education And Inclusion,School Improvement,Private Contractors,Third Party Prov - Private,PH101,08/06/2021,676060,667.8,REVENUE,WILLOWS PRIMARY ACADEMY,120478
North East Lincolnshire Council,http://statistics.data.gov.uk/id/local-authority/00FC),Childrens Services,Education And Inclusion,School Improvement,Private Contractors,Third Party Prov - Private,PH101,08/06/2021,675999,1540.71,REVENUE,WIZ KIDZ,102424
North East Lincolnshire Council,http://statistics.data.gov.uk/id/local-authority/00FC),Childrens Services,Education And Inclusion,School Improvement,Private Contractors,Third Party Prov - Private,PH101,08/06/2021,676115,954,REVENUE,WOODLANDS ACADEMY,132649
North East Lincolnshire Council,http://statistics.data.gov.uk/id/local-authority/00FC),Childrens Services,Education And Inclusion,School Improvement,Private Contractors,Third Party Prov - Private,PH101,08/06/2021,676038,572.4,REVENUE,YARBOROUGH ACADEMY,112852
North East Lincolnshire Council,http://statistics.data.gov.uk/id/local-authority/00FC),Childrens Services,Education And Inclusion,School Improvement,Other Agencies,Nursery Educ Fund - Standard,PJ139,08/06/2021,676053,565.11,REVENUE,ALISON'S CHILDMINDING SERVICES,119740
North East Lincolnshire Council,http://statistics.data.gov.uk/id/local-authority/00FC),Childrens Services,Education And Inclusion,School Improvement,Other Agencies,Nursery Educ Fund - Standard,PJ139,08/06/2021,676149,745.2,REVENUE,RAYCH'S RUGRATS CHILDMINDER,143723
North East Lincolnshire Council,http://statistics.data.gov.uk/id/local-authority/00FC),Childrens Services,Education And Inclusion,School Improvement,Other Agencies,Nursery Educ Fund - Standard,PJ139,08/06/2021,675946,6913.5,REVENUE,FOR UNDER FIVES LTD,100647
North East Lincolnshire Council,http://statistics.data.gov.uk/id/local-authority/00FC),Childrens Services,Education And Inclusion,School Improvement,Other Agencies,Nursery Educ Fund - Standard,PJ139,08/06/2021,676025,9730.8,REVENUE,BURSAR PRIMARY ACADEMY,111550
North East Lincolnshire Council,http://statistics.data.gov.uk/id/local-authority/00FC),Childrens Services,Education And Inclusion,School Improvement,Other Agencies,Nursery Educ Fund - Standard,PJ139,08/06/2021,675992,16752.24,REVENUE,BUTTERFLIES DAY NURSERY,101694
North East Lincolnshire Council,http://statistics.data.gov.uk/id/local-authority/00FC),Childrens Services,Education And Inclusion,School Improvement,Other Agencies,Nursery Educ Fund - Standard,PJ139,08/06/2021,676120,9412.8,REVENUE,CAMPDEN KIDS LTD,132975
North East Lincolnshire Council,http://statistics.data.gov.uk/id/local-authority/00FC),Childrens Services,Education And Inclusion,School Improvement,Other Agencies,Nursery Educ Fund - Standard,PJ139,08/06/2021,676080,6678,REVENUE,CANON PETER HALL CE PRIMARY ACADEMY,126646
North East Lincolnshire Council,http://statistics.data.gov.uk/id/local-authority/00FC),Childrens Services,Education And Inclusion,School Improvement,Other Agencies,Nursery Educ Fund - Standard,PJ139,08/06/2021,675942,8560.56,REVENUE,FOR UNDER FIVES LTD,100647
North East Lincolnshire Council,http://statistics.data.gov.uk/id/local-authority/00FC),Childrens Services,Education And Inclusion,School Improvement,Other Agencies,Nursery Educ Fund - Standard,PJ139,08/06/2021,675967,14643.18,REVENUE,THE CHILDRENS HOUSE,101141
North East Lincolnshire Council,http://statistics.data.gov.uk/id/local-authority/00FC),Childrens Services,Education And Inclusion,School Improvement,Other Agencies,Nursery Educ Fund - Standard,PJ139,08/06/2021,676143,372.6,REVENUE,CHRISTIANNA HOCKNEY,143657
North East Lincolnshire Council,http://statistics.data.gov.uk/id/local-authority/00FC),Childrens Services,Education And Inclusion,School Improvement,Other Agencies,Nursery Educ Fund - Standard,PJ139,08/06/2021,676134,1304.1,REVENUE,CLARE HOLNESS,140793
North East Lincolnshire Council,http://statistics.data.gov.uk/id/local-authority/00FC),Childrens Services,Education And Inclusion,School Improvement,Other Agencies,Nursery Educ Fund - Standard,PJ139,08/06/2021,676081,1033.5,REVENUE,CANON PETER HALL CE PRIMARY ACADEMY,126646
North East Lincolnshire Council,http://statistics.data.gov.uk/id/local-authority/00FC),Childrens Services,Education And Inclusion,School Improvement,Other Agencies,Nursery Educ Fund - Standard,PJ139,08/06/2021,676005,372.6,REVENUE,CATHERINE WALLACE,103189
North East Lincolnshire Council,http://statistics.data.gov.uk/id/local-authority/00FC),Childrens Services,Education And Inclusion,School Improvement,Other Agencies,Nursery Educ Fund - Standard,PJ139,08/06/2021,676067,10060.2,REVENUE,EASTFIELD PRIMARY ACADEMY,121907
North East Lincolnshire Council,http://statistics.data.gov.uk/id/local-authority/00FC),Childrens Services,Education And Inclusion,School Improvement,Other Agencies,Nursery Educ Fund - Standard,PJ139,08/06/2021,676011,2879.37,REVENUE,EAST RAVENDALE C OF E PRIMARY SCHOOL ACADEMY,109167
North East Lincolnshire Council,http://statistics.data.gov.uk/id/local-authority/00FC),Childrens Services,Education And Inclusion,School Improvement,Other Agencies,Nursery Educ Fund - Standard,PJ139,08/06/2021,676027,11448,REVENUE,EDWARD HENEAGE PRIMARY (ACADEMY),111742
North East Lincolnshire Council,http://statistics.data.gov.uk/id/local-authority/00FC),Childrens Services,Education And Inclusion,School Improvement,Other Agencies,Nursery Educ Fund - Standard,PJ139,08/06/2021,676165,372.6,REVENUE,ANGELA ELLIS,147302
North East Lincolnshire Council,http://statistics.data.gov.uk/id/local-authority/00FC),Childrens Services,Education And Inclusion,School Improvement,Other Agencies,Nursery Educ Fund - Standard,PJ139,08/06/2021,676109,11638.8,REVENUE,ELLISTON PRIMARY ACADEMY,129629
North East Lincolnshire Council,http://statistics.data.gov.uk/id/local-authority/00FC),Childrens Services,Education And Inclusion,School Improvement,Other Agencies,Nursery Educ Fund - Standard,PJ139,08/06/2021,676167,2272.86,REVENUE,EMILY MUMBY,147323
North East Lincolnshire Council,http://statistics.data.gov.uk/id/local-authority/00FC),Childrens Services,Education And Inclusion,School Improvement,Other Agencies,Nursery Educ Fund - Standard,PJ139,08/06/2021,676160,11448.13,REVENUE,EXPLOROSITY EDUCATION LTD,145026
North East Lincolnshire Council,http://statistics.data.gov.uk/id/local-authority/00FC),Childrens Services,Education And Inclusion,School Improvement,Other Agencies,Nursery Educ Fund - Standard,PJ139,08/06/2021,676107,11923.2,REVENUE,FAIRFIELD PRIMARY ACADEMY,129030
North East Lincolnshire Council,http://statistics.data.gov.uk/id/local-authority/00FC),Childrens Services,Education And Inclusion,School Improvement,Other Agencies,Nursery Educ Fund - Standard,PJ139,08/06/2021,676137,447.12,REVENUE,MRS FAY L RENSHAW,141559
North East Lincolnshire Council,http://statistics.data.gov.uk/id/local-authority/00FC),Childrens Services,Education And Inclusion,School Improvement,Other Agencies,Nursery Educ Fund - Standard,PJ139,08/06/2021,676103,3625.2,REVENUE,FREESTON TOTS PRESCHOOL,128592
North East Lincolnshire Council,http://statistics.data.gov.uk/id/local-authority/00FC),Childrens Services,Education And Inclusion,School Improvement,Other Agencies,Nursery Educ Fund - Standard,PJ139,08/06/2021,675976,20860.8,REVENUE,FIRST STEPS GRIMSBY LIMITED,101411
North East Lincolnshire Council,http://statistics.data.gov.uk/id/local-authority/00FC),Childrens Services,Education And Inclusion,School Improvement,Other Agencies,Nursery Educ Fund - Standard,PJ139,08/06/2021,676162,745.2,REVENUE,KEIRA GILBERT,146127
North East Lincolnshire Council,http://statistics.data.gov.uk/id/local-authority/00FC),Childrens Services,Education And Inclusion,School Improvement,Other Agencies,Nursery Educ Fund - Standard,PJ139,08/06/2021,676046,9540,REVENUE,HUMBERSTON PRE SCHOOL,114491
North East Lincolnshire Council,http://statistics.data.gov.uk/id/local-authority/00FC),Childrens Services,Education And Inclusion,School Improvement,Other Agencies,Nursery Educ Fund - Standard,PJ139,08/06/2021,676128,15473.67,REVENUE,GREAT COATES PRIMARY ACADEMY,134467
North East Lincolnshire Council,http://statistics.data.gov.uk/id/local-authority/00FC),Childrens Services,Education And Inclusion,School Improvement,Other Agencies,Nursery Educ Fund - Standard,PJ139,08/06/2021,675945,5154.3,REVENUE,FOR UNDER FIVES LTD,100647
North East Lincolnshire Council,http://statistics.data.gov.uk/id/local-authority/00FC),Childrens Services,Education And Inclusion,School Improvement,Other Agencies,Nursery Educ Fund - Standard,PJ139,08/06/2021,675965,8762.31,REVENUE,HEALING VILLAGE NURSERY,101096
North East Lincolnshire Council,http://statistics.data.gov.uk/id/local-authority/00FC),Childrens Services,Education And Inclusion,School Improvement,Other Agencies,Nursery Educ Fund - Standard,PJ139,08/06/2021,676102,931.5,REVENUE,ELLIE TOTS CHILDMINDING SERVICES,128251
North East Lincolnshire Council,http://statistics.data.gov.uk/id/local-authority/00FC),Childrens Services,Education And Inclusion,School Improvement,Other Agencies,Nursery Educ Fund - Standard,PJ139,08/06/2021,675989,2830.2,REVENUE,CLEETHORPES CHILDCARE,101591
North East Lincolnshire Council,http://statistics.data.gov.uk/id/local-authority/00FC),Childrens Services,Education And Inclusion,School Improvement,Other Agencies,Nursery Educ Fund - Standard,PJ139,08/06/2021,676112,8010.9,REVENUE,HUMBERSTON CLOVERFIELDS ACADEMY NURSERY,132178
North East Lincolnshire Council,http://statistics.data.gov.uk/id/local-authority/00FC),Childrens Services,Education And Inclusion,School Improvement,Other Agencies,Nursery Educ Fund - Standard,PJ139,08/06/2021,676043,9842.84,REVENUE,HUMBERSTON PRE SCHOOL,114491
North East Lincolnshire Council,http://statistics.data.gov.uk/id/local-authority/00FC),Childrens Services,Education And Inclusion,School Improvement,Other Agencies,Nursery Educ Fund - Standard,PJ139,08/06/2021,676075,2794.5,REVENUE,IMMINGHAM DAY CARE,122312
North East Lincolnshire Council,http://statistics.data.gov.uk/id/local-authority/00FC),Childrens Services,Education And Inclusion,School Improvement,Other Agencies,Nursery Educ Fund - Standard,PJ139,08/06/2021,675963,5961.6,REVENUE,IMMINGHAM DAY NURSERY,100998
North East Lincolnshire Council,http://statistics.data.gov.uk/id/local-authority/00FC),Childrens Services,Education And Inclusion,School Improvement,Other Agencies,Nursery Educ Fund - Standard,PJ139,08/06/2021,676168,1490.4,REVENUE,JOANNE BAUGHAN,148149
North East Lincolnshire Council,http://statistics.data.gov.uk/id/local-authority/00FC),Childrens Services,Education And Inclusion,School Improvement,Other Agencies,Nursery Educ Fund - Standard,PJ139,08/06/2021,676126,381.6,REVENUE,JULIE MOORE CHILDMINDING,134452
North East Lincolnshire Council,http://statistics.data.gov.uk/id/local-authority/00FC),Childrens Services,Education And Inclusion,School Improvement,Other Agencies,Nursery Educ Fund - Standard,PJ139,08/06/2021,675998,2173.5,REVENUE,MS KAREN HUDSON,102103
North East Lincolnshire Council,http://statistics.data.gov.uk/id/local-authority/00FC),Childrens Services,Education And Inclusion,School Improvement,Other Agencies,Nursery Educ Fund - Standard,PJ139,08/06/2021,676147,1453.14,REVENUE,KATIE ROBBINS,143660
North East Lincolnshire Council,http://statistics.data.gov.uk/id/local-authority/00FC),Childrens Services,Education And Inclusion,School Improvement,Other Agencies,Nursery Educ Fund - Standard,PJ139,08/06/2021,676097,4006.8,REVENUE,LEAP AHEAD NURSERY,128017
North East Lincolnshire Council,http://statistics.data.gov.uk/id/local-authority/00FC),Childrens Services,Education And Inclusion,School Improvement,Other Agencies,Nursery Educ Fund - Standard,PJ139,08/06/2021,676094,2671.2,REVENUE,LEAP AHEAD NURSERY,128017
North East Lincolnshire Council,http://statistics.data.gov.uk/id/local-authority/00FC),Childrens Services,Education And Inclusion,School Improvement,Other Agencies,Nursery Educ Fund - Standard,PJ139,08/06/2021,676091,6222.15,REVENUE,LEAP AHEAD NURSERY,128017
North East Lincolnshire Council,http://statistics.data.gov.uk/id/local-authority/00FC),Childrens Services,Education And Inclusion,School Improvement,Other Agencies,Nursery Educ Fund - Standard,PJ139,08/06/2021,676121,662.4,REVENUE,CLEE KIDS CLUB CIC,133644
North East Lincolnshire Council,http://statistics.data.gov.uk/id/local-authority/00FC),Childrens Services,Education And Inclusion,School Improvement,Other Agencies,Nursery Educ Fund - Standard,PJ139,08/06/2021,676019,15425.64,REVENUE,LITTLE BLOSSOMS DAY NURSERY,111058
North East Lincolnshire Council,http://statistics.data.gov.uk/id/local-authority/00FC),Childrens Services,Education And Inclusion,School Improvement,Other Agencies,Nursery Educ Fund - Standard,PJ139,08/06/2021,676155,3243.06,REVENUE,LITTLE OAKS DAY NURSERY,144718
North East Lincolnshire Council,http://statistics.data.gov.uk/id/local-authority/00FC),Childrens Services,Education And Inclusion,School Improvement,Other Agencies,Nursery Educ Fund - Standard,PJ139,08/06/2021,676040,13786.2,REVENUE,TEC PARTNERSHIP - LITTLE STARS DAY NURSERY,114230
North East Lincolnshire Council,http://statistics.data.gov.uk/id/local-authority/00FC),Childrens Services,Education And Inclusion,School Improvement,Other Agencies,Nursery Educ Fund - Standard,PJ139,08/06/2021,676071,3912.3,REVENUE,LITTLE TWINKLES CHILDCARE LTD,122217
North East Lincolnshire Council,http://statistics.data.gov.uk/id/local-authority/00FC),Childrens Services,Education And Inclusion,School Improvement,Other Agencies,Nursery Educ Fund - Standard,PJ139,08/06/2021,676017,24033.84,REVENUE,LISLE MARSDEN CHILDCARE LIMITED,110493
North East Lincolnshire Council,http://statistics.data.gov.uk/id/local-authority/00FC),Childrens Services,Education And Inclusion,School Improvement,Other Agencies,Nursery Educ Fund - Standard,PJ139,08/06/2021,676124,11804.16,REVENUE,LITTLECOATES PRIMARY ACADEMY,134261
North East Lincolnshire Council,http://statistics.data.gov.uk/id/local-authority/00FC),Childrens Services,Education And Inclusion,School Improvement,Other Agencies,Nursery Educ Fund - Standard,PJ139,08/06/2021,676035,8967.6,REVENUE,MACAULAY PRIMARY ACADEMY,112680
North East Lincolnshire Council,http://statistics.data.gov.uk/id/local-authority/00FC),Childrens Services,Education And Inclusion,School Improvement,Other Agencies,Nursery Educ Fund - Standard,PJ139,08/06/2021,676145,10634.22,REVENUE,MIDDLETHORPE NURSERY,143658
North East Lincolnshire Council,http://statistics.data.gov.uk/id/local-authority/00FC),Childrens Services,Education And Inclusion,School Improvement,Other Agencies,Nursery Educ Fund - Standard,PJ139,08/06/2021,676059,745.2,REVENUE,NICKY'S CHILDMINDING,119901
North East Lincolnshire Council,http://statistics.data.gov.uk/id/local-authority/00FC),Childrens Services,Education And Inclusion,School Improvement,Other Agencies,Nursery Educ Fund - Standard,PJ139,08/06/2021,676153,1242,REVENUE,MARINA WELLBURN,144696
North East Lincolnshire Council,http://statistics.data.gov.uk/id/local-authority/00FC),Childrens Services,Education And Inclusion,School Improvement,Other Agencies,Nursery Educ Fund - Standard,PJ139,08/06/2021,676169,393.3,REVENUE,EMMA FLORES,148270
North East Lincolnshire Council,http://statistics.data.gov.uk/id/local-authority/00FC),Childrens Services,Education And Inclusion,School Improvement,Other Agencies,Nursery Educ Fund - Standard,PJ139,08/06/2021,676140,942.75,REVENUE,MS NATASHA DYKE,141560
North East Lincolnshire Council,http://statistics.data.gov.uk/id/local-authority/00FC),Childrens Services,Education And Inclusion,School Improvement,Other Agencies,Nursery Educ Fund - Standard,PJ139,08/06/2021,676009,13140.36,REVENUE,NEW WALTHAM ACADEMY,108556
North East Lincolnshire Council,http://statistics.data.gov.uk/id/local-authority/00FC),Childrens Services,Education And Inclusion,School Improvement,Other Agencies,Nursery Educ Fund - Standard,PJ139,08/06/2021,676101,7920.85,REVENUE,ONLY ABOUT KIDS,128121
North East Lincolnshire Council,http://statistics.data.gov.uk/id/local-authority/00FC),Childrens Services,Education And Inclusion,School Improvement,Other Agencies,Nursery Educ Fund - Standard,PJ139,08/06/2021,676076,6614.4,REVENUE,OASIS ACADEMY SCHOOL (NUNSTHORPE SCHOOL),122861
North East Lincolnshire Council,http://statistics.data.gov.uk/id/local-authority/00FC),Childrens Services,Education And Inclusion,School Improvement,Other Agencies,Nursery Educ Fund - Standard,PJ139,08/06/2021,676055,12783.6,REVENUE,OLD CLEE PRIMARY ACADEMY,119822
North East Lincolnshire Council,http://statistics.data.gov.uk/id/local-authority/00FC),Childrens Services,Education And Inclusion,School Improvement,Other Agencies,Nursery Educ Fund - Standard,PJ139,08/06/2021,676157,291.87,REVENUE,LAURA SAVAGE,144810
North East Lincolnshire Council,http://statistics.data.gov.uk/id/local-authority/00FC),Childrens Services,Education And Inclusion,School Improvement,Other Agencies,Nursery Educ Fund - Standard,PJ139,08/06/2021,676030,12223.92,REVENUE,ORMISTON SOUTH PARADE ACADEMY,111750
North East Lincolnshire Council,http://statistics.data.gov.uk/id/local-authority/00FC),Childrens Services,Education And Inclusion,School Improvement,Other Agencies,Nursery Educ Fund - Standard,PJ139,08/06/2021,676129,6458.4,REVENUE,PILGRIM ACADEMY,136366
North East Lincolnshire Council,http://statistics.data.gov.uk/id/local-authority/00FC),Childrens Services,Education And Inclusion,School Improvement,Other Agencies,Nursery Educ Fund - Standard,PJ139,08/06/2021,675979,11699.64,REVENUE,PRECIOUS TIMES CHILDCARE SERVICES,101420
North East Lincolnshire Council,http://statistics.data.gov.uk/id/local-authority/00FC),Childrens Services,Education And Inclusion,School Improvement,Other Agencies,Nursery Educ Fund - Standard,PJ139,08/06/2021,675981,14593.5,REVENUE,PRECIOUS TIMES CHILDCARE SERVICES,101420
North East Lincolnshire Council,http://statistics.data.gov.uk/id/local-authority/00FC),Childrens Services,Education And Inclusion,School Improvement,Other Agencies,Nursery Educ Fund - Standard,PJ139,08/06/2021,675939,8369.76,REVENUE,FOR UNDER FIVES LTD,100647
North East Lincolnshire Council,http://statistics.data.gov.uk/id/local-authority/00FC),Childrens Services,Education And Inclusion,School Improvement,Other Agencies,Nursery Educ Fund - Standard,PJ139,08/06/2021,676069,18889.2,REVENUE,REYNOLDS PRIMARY ACADEMY,122175
North East Lincolnshire Council,http://statistics.data.gov.uk/id/local-authority/00FC),Childrens Services,Education And Inclusion,School Improvement,Other Agencies,Nursery Educ Fund - Standard,PJ139,08/06/2021,675958,10743.3,REVENUE,READY TEDDY GO,100973
North East Lincolnshire Council,http://statistics.data.gov.uk/id/local-authority/00FC),Childrens Services,Education And Inclusion,School Improvement,Other Agencies,Nursery Educ Fund - Standard,PJ139,08/06/2021,676141,1117.8,REVENUE,SARA BUNCE,142138
North East Lincolnshire Council,http://statistics.data.gov.uk/id/local-authority/00FC),Childrens Services,Education And Inclusion,School Improvement,Other Agencies,Nursery Educ Fund - Standard,PJ139,08/06/2021,676087,931.5,REVENUE,SARAH FARROW-BROWNE,127842
North East Lincolnshire Council,http://statistics.data.gov.uk/id/local-authority/00FC),Childrens Services,Education And Inclusion,School Improvement,Other Agencies,Nursery Educ Fund - Standard,PJ139,08/06/2021,676034,484.38,REVENUE,SARA HARRISON,112491
North East Lincolnshire Council,http://statistics.data.gov.uk/id/local-authority/00FC),Childrens Services,Education And Inclusion,School Improvement,Other Agencies,Nursery Educ Fund - Standard,PJ139,08/06/2021,676018,763.2,REVENUE,SHARON SPRINGALL,111029
North East Lincolnshire Council,http://statistics.data.gov.uk/id/local-authority/00FC),Childrens Services,Education And Inclusion,School Improvement,Other Agencies,Nursery Educ Fund - Standard,PJ139,08/06/2021,675986,15860.34,REVENUE,CLEETHORPES CHILDCARE,101591
North East Lincolnshire Council,http://statistics.data.gov.uk/id/local-authority/00FC),Childrens Services,Education And Inclusion,School Improvement,Other Agencies,Nursery Educ Fund - Standard,PJ139,08/06/2021,676151,372.6,REVENUE,SARAH NIGHTINGDALE,144424
North East Lincolnshire Council,http://statistics.data.gov.uk/id/local-authority/00FC),Childrens Services,Education And Inclusion,School Improvement,Other Agencies,Nursery Educ Fund - Standard,PJ139,08/06/2021,675948,13562.64,REVENUE,FOR UNDER FIVES LTD,100647
North East Lincolnshire Council,http://statistics.data.gov.uk/id/local-authority/00FC),Childrens Services,Education And Inclusion,School Improvement,Other Agencies,Nursery Educ Fund - Standard,PJ139,08/06/2021,676111,7936.38,REVENUE,SPRINGFIELD PRIMARY ACADEMY,131306
North East Lincolnshire Council,http://statistics.data.gov.uk/id/local-authority/00FC),Childrens Services,Education And Inclusion,School Improvement,Other Agencies,Nursery Educ Fund - Standard,PJ139,08/06/2021,675997,1428.3,REVENUE,SARAH SHOTBOLT,101742
North East Lincolnshire Council,http://statistics.data.gov.uk/id/local-authority/00FC),Childrens Services,Education And Inclusion,School Improvement,Other Agencies,Nursery Educ Fund - Standard,PJ139,08/06/2021,676064,4566.48,REVENUE,ST CHRISTOPHERS PRE SCHOOL,121589
North East Lincolnshire Council,http://statistics.data.gov.uk/id/local-authority/00FC),Childrens Services,Education And Inclusion,School Improvement,Other Agencies,Nursery Educ Fund - Standard,PJ139,08/06/2021,675955,5365.44,REVENUE,ST JAMES SCHOOL,100940
North East Lincolnshire Council,http://statistics.data.gov.uk/id/local-authority/00FC),Childrens Services,Education And Inclusion,School Improvement,Other Agencies,Nursery Educ Fund - Standard,PJ139,08/06/2021,676012,5584.08,REVENUE,ST JOSEPH'S RC PRIMARY ACADEMY,110066
North East Lincolnshire Council,http://statistics.data.gov.uk/id/local-authority/00FC),Childrens Services,Education And Inclusion,School Improvement,Other Agencies,Nursery Educ Fund - Standard,PJ139,08/06/2021,675994,8495.28,REVENUE,ST MARGARETS PRE-SCHOOL,101724
North East Lincolnshire Council,http://statistics.data.gov.uk/id/local-authority/00FC),Childrens Services,Education And Inclusion,School Improvement,Other Agencies,Nursery Educ Fund - Standard,PJ139,08/06/2021,675952,23846.4,REVENUE,ST MARTINS PREPARATORY SCHOOL,100889
North East Lincolnshire Council,http://statistics.data.gov.uk/id/local-authority/00FC),Childrens Services,Education And Inclusion,School Improvement,Other Agencies,Nursery Educ Fund - Standard,PJ139,08/06/2021,676048,5724,REVENUE,ST MARYS CATHOLIC PRIMARY VOLUNTARY ACADEMY,115108
North East Lincolnshire Council,http://statistics.data.gov.uk/id/local-authority/00FC),Childrens Services,Education And Inclusion,School Improvement,Other Agencies,Nursery Educ Fund - Standard,PJ139,08/06/2021,675970,11498.88,REVENUE,ST PETERS CHILDREN CENTRE,101322
North East Lincolnshire Council,http://statistics.data.gov.uk/id/local-authority/00FC),Childrens Services,Education And Inclusion,School Improvement,Other Agencies,Nursery Educ Fund - Standard,PJ139,08/06/2021,676032,2544,REVENUE,STRAND PRIMARY ACADEMY,111862
North East Lincolnshire Council,http://statistics.data.gov.uk/id/local-authority/00FC),Childrens Services,Education And Inclusion,School Improvement,Other Agencies,Nursery Educ Fund - Standard,PJ139,08/06/2021,676004,5533.2,REVENUE,THE AVENUE PLAYGROUP,103168
North East Lincolnshire Council,http://statistics.data.gov.uk/id/local-authority/00FC),Childrens Services,Education And Inclusion,School Improvement,Other Agencies,Nursery Educ Fund - Standard,PJ139,08/06/2021,676051,10176,REVENUE,THRUNSCOE PRIMARY AND NURSERY ACADEMY,118749
North East Lincolnshire Council,http://statistics.data.gov.uk/id/local-authority/00FC),Childrens Services,Education And Inclusion,School Improvement,Other Agencies,Nursery Educ Fund - Standard,PJ139,08/06/2021,676007,35719.92,REVENUE,WALTHAM LEAS PRE-SCHOOL,108236
North East Lincolnshire Council,http://statistics.data.gov.uk/id/local-authority/00FC),Childrens Services,Education And Inclusion,School Improvement,Other Agencies,Nursery Educ Fund - Standard,PJ139,08/06/2021,676022,7822.8,REVENUE,WEELSBY ACADEMY,111161
North East Lincolnshire Council,http://statistics.data.gov.uk/id/local-authority/00FC),Childrens Services,Education And Inclusion,School Improvement,Other Agencies,Nursery Educ Fund - Standard,PJ139,08/06/2021,676084,9031.2,REVENUE,WELHOLME ACADEMY,127227
North East Lincolnshire Council,http://statistics.data.gov.uk/id/local-authority/00FC),Childrens Services,Education And Inclusion,School Improvement,Other Agencies,Nursery Educ Fund - Standard,PJ139,08/06/2021,675974,2564.28,REVENUE,WENDOVER PRE-SCHOOL,101350
North East Lincolnshire Council,http://statistics.data.gov.uk/id/local-authority/00FC),Childrens Services,Education And Inclusion,School Improvement,Other Agencies,Nursery Educ Fund - Standard,PJ139,08/06/2021,676061,2862,REVENUE,WILLOWS PRIMARY ACADEMY,120478
North East Lincolnshire Council,http://statistics.data.gov.uk/id/local-authority/00FC),Childrens Services,Education And Inclusion,School Improvement,Other Agencies,Nursery Educ Fund - Standard,PJ139,08/06/2021,676001,4061.92,REVENUE,WIZ KIDZ,102424
North East Lincolnshire Council,http://statistics.data.gov.uk/id/local-authority/00FC),Childrens Services,Education And Inclusion,School Improvement,Other Agencies,Nursery Educ Fund - Standard,PJ139,08/06/2021,676116,4960.8,REVENUE,WOODLANDS ACADEMY,132649
North East Lincolnshire Council,http://statistics.data.gov.uk/id/local-authority/00FC),Childrens Services,Education And Inclusion,School Improvement,Other Agencies,Nursery Educ Fund - Standard,PJ139,08/06/2021,676037,10730.88,REVENUE,YARBOROUGH ACADEMY,112852
North East Lincolnshire Council,http://statistics.data.gov.uk/id/local-authority/00FC),Childrens Services,Education And Inclusion,School Improvement,Other Agencies,Other,PJ121,08/06/2021,676054,928.8,REVENUE,ALISON'S CHILDMINDING SERVICES,119740
North East Lincolnshire Council,http://statistics.data.gov.uk/id/local-authority/00FC),Childrens Services,Education And Inclusion,School Improvement,Other Agencies,Other,PJ121,08/06/2021,676052,464.4,REVENUE,MISS AMANDA YOUNG,119739
North East Lincolnshire Council,http://statistics.data.gov.uk/id/local-authority/00FC),Childrens Services,Education And Inclusion,School Improvement,Other Agencies,Other,PJ121,08/06/2021,675949,7368.48,REVENUE,FOR UNDER FIVES LTD,100647
North East Lincolnshire Council,http://statistics.data.gov.uk/id/local-authority/00FC),Childrens Services,Education And Inclusion,School Improvement,Other Agencies,Other,PJ121,08/06/2021,675991,7120.8,REVENUE,BUTTERFLIES DAY NURSERY,101694
North East Lincolnshire Council,http://statistics.data.gov.uk/id/local-authority/00FC),Childrens Services,Education And Inclusion,School Improvement,Other Agencies,Other,PJ121,08/06/2021,676119,6888.6,REVENUE,CAMPDEN KIDS LTD,132975
North East Lincolnshire Council,http://statistics.data.gov.uk/id/local-authority/00FC),Childrens Services,Education And Inclusion,School Improvement,Other Agencies,Other,PJ121,08/06/2021,675941,9520.2,REVENUE,FOR UNDER FIVES LTD,100647
North East Lincolnshire Council,http://statistics.data.gov.uk/id/local-authority/00FC),Childrens Services,Education And Inclusion,School Improvement,Other Agencies,Other,PJ121,08/06/2021,675968,2136.24,REVENUE,THE CHILDRENS HOUSE,101141
North East Lincolnshire Council,http://statistics.data.gov.uk/id/local-authority/00FC),Childrens Services,Education And Inclusion,School Improvement,Other Agencies,Other,PJ121,08/06/2021,676133,1161,REVENUE,CLARE HOLNESS,140793
North East Lincolnshire Council,http://statistics.data.gov.uk/id/local-authority/00FC),Childrens Services,Education And Inclusion,School Improvement,Other Agencies,Other,PJ121,08/06/2021,676086,1057.8,REVENUE,ANDREA CULLUM - LITTLE GEMS,127347
North East Lincolnshire Council,http://statistics.data.gov.uk/id/local-authority/00FC),Childrens Services,Education And Inclusion,School Improvement,Other Agencies,Other,PJ121,08/06/2021,676164,696.6,REVENUE,ANGELA ELLIS,147302
North East Lincolnshire Council,http://statistics.data.gov.uk/id/local-authority/00FC),Childrens Services,Education And Inclusion,School Improvement,Other Agencies,Other,PJ121,08/06/2021,676161,3018.6,REVENUE,EXPLOROSITY EDUCATION LTD,145026
North East Lincolnshire Council,http://statistics.data.gov.uk/id/local-authority/00FC),Childrens Services,Education And Inclusion,School Improvement,Other Agencies,Other,PJ121,08/06/2021,676105,3250.8,REVENUE,FREESTON TOTS PRESCHOOL,128592
North East Lincolnshire Council,http://statistics.data.gov.uk/id/local-authority/00FC),Childrens Services,Education And Inclusion,School Improvement,Other Agencies,Other,PJ121,08/06/2021,675977,16176.6,REVENUE,FIRST STEPS GRIMSBY LIMITED,101411
North East Lincolnshire Council,http://statistics.data.gov.uk/id/local-authority/00FC),Childrens Services,Education And Inclusion,School Improvement,Other Agencies,Other,PJ121,08/06/2021,676082,3018.6,REVENUE,FIRST STEPS WITH SURE START,126658
North East Lincolnshire Council,http://statistics.data.gov.uk/id/local-authority/00FC),Childrens Services,Education And Inclusion,School Improvement,Other Agencies,Other,PJ121,08/06/2021,676042,1857.6,REVENUE,HUMBERSTON PRE SCHOOL,114491
North East Lincolnshire Council,http://statistics.data.gov.uk/id/local-authority/00FC),Childrens Services,Education And Inclusion,School Improvement,Other Agencies,Other,PJ121,08/06/2021,675944,2554.2,REVENUE,FOR UNDER FIVES LTD,100647
North East Lincolnshire Council,http://statistics.data.gov.uk/id/local-authority/00FC),Childrens Services,Education And Inclusion,School Improvement,Other Agencies,Other,PJ121,08/06/2021,676132,372.6,REVENUE,MRS LYNSEY CONNOLLY,140212
North East Lincolnshire Council,http://statistics.data.gov.uk/id/local-authority/00FC),Childrens Services,Education And Inclusion,School Improvement,Other Agencies,Other,PJ121,08/06/2021,675964,2484.54,REVENUE,HEALING VILLAGE NURSERY,101096
North East Lincolnshire Council,http://statistics.data.gov.uk/id/local-authority/00FC),Childrens Services,Education And Inclusion,School Improvement,Other Agencies,Other,PJ121,08/06/2021,675990,3018.6,REVENUE,CLEETHORPES CHILDCARE,101591
North East Lincolnshire Council,http://statistics.data.gov.uk/id/local-authority/00FC),Childrens Services,Education And Inclusion,School Improvement,Other Agencies,Other,PJ121,08/06/2021,676073,4179.6,REVENUE,IMMINGHAM DAY CARE,122312
North East Lincolnshire Council,http://statistics.data.gov.uk/id/local-authority/00FC),Childrens Services,Education And Inclusion,School Improvement,Other Agencies,Other,PJ121,08/06/2021,675961,2786.4,REVENUE,IMMINGHAM DAY NURSERY,100998
North East Lincolnshire Council,http://statistics.data.gov.uk/id/local-authority/00FC),Childrens Services,Education And Inclusion,School Improvement,Other Agencies,Other,PJ121,08/06/2021,675953,7043.4,REVENUE,JUDY CLARK CHILD CARE,100939
North East Lincolnshire Council,http://statistics.data.gov.uk/id/local-authority/00FC),Childrens Services,Education And Inclusion,School Improvement,Other Agencies,Other,PJ121,08/06/2021,676159,464.4,REVENUE,KELLY FLINN,144957
North East Lincolnshire Council,http://statistics.data.gov.uk/id/local-authority/00FC),Childrens Services,Education And Inclusion,School Improvement,Other Agencies,Other,PJ121,08/06/2021,676096,10913.4,REVENUE,LEAP AHEAD NURSERY,128017
North East Lincolnshire Council,http://statistics.data.gov.uk/id/local-authority/00FC),Childrens Services,Education And Inclusion,School Improvement,Other Agencies,Other,PJ121,08/06/2021,676095,8127,REVENUE,LEAP AHEAD NURSERY,128017
North East Lincolnshire Council,http://statistics.data.gov.uk/id/local-authority/00FC),Childrens Services,Education And Inclusion,School Improvement,Other Agencies,Other,PJ121,08/06/2021,676092,1935,REVENUE,LEAP AHEAD NURSERY,128017
North East Lincolnshire Council,http://statistics.data.gov.uk/id/local-authority/00FC),Childrens Services,Education And Inclusion,School Improvement,Other Agencies,Other,PJ121,08/06/2021,676021,2120.76,REVENUE,LITTLE BLOSSOMS DAY NURSERY,111058
North East Lincolnshire Council,http://statistics.data.gov.uk/id/local-authority/00FC),Childrens Services,Education And Inclusion,School Improvement,Other Agencies,Other,PJ121,08/06/2021,676154,2693.52,REVENUE,LITTLE OAKS DAY NURSERY,144718
North East Lincolnshire Council,http://statistics.data.gov.uk/id/local-authority/00FC),Childrens Services,Education And Inclusion,School Improvement,Other Agencies,Other,PJ121,08/06/2021,676039,3405.6,REVENUE,TEC PARTNERSHIP - LITTLE STARS DAY NURSERY,114230
North East Lincolnshire Council,http://statistics.data.gov.uk/id/local-authority/00FC),Childrens Services,Education And Inclusion,School Improvement,Other Agencies,Other,PJ121,08/06/2021,676072,696.6,REVENUE,LITTLE TWINKLES CHILDCARE LTD,122217
North East Lincolnshire Council,http://statistics.data.gov.uk/id/local-authority/00FC),Childrens Services,Education And Inclusion,School Improvement,Other Agencies,Other,PJ121,08/06/2021,676015,835.92,REVENUE,LISLE MARSDEN CHILDCARE LIMITED,110493
North East Lincolnshire Council,http://statistics.data.gov.uk/id/local-authority/00FC),Childrens Services,Education And Inclusion,School Improvement,Other Agencies,Other,PJ121,08/06/2021,676123,2322,REVENUE,LITTLECOATES PRIMARY ACADEMY,134261
North East Lincolnshire Council,http://statistics.data.gov.uk/id/local-authority/00FC),Childrens Services,Education And Inclusion,School Improvement,Other Agencies,Other,PJ121,08/06/2021,676146,1393.2,REVENUE,MIDDLETHORPE NURSERY,143658
North East Lincolnshire Council,http://statistics.data.gov.uk/id/local-authority/00FC),Childrens Services,Education And Inclusion,School Improvement,Other Agencies,Other,PJ121,08/06/2021,676099,1935,REVENUE,ONLY ABOUT KIDS,128121
North East Lincolnshire Council,http://statistics.data.gov.uk/id/local-authority/00FC),Childrens Services,Education And Inclusion,School Improvement,Other Agencies,Other,PJ121,08/06/2021,676057,1857.6,REVENUE,OLD CLEE PRIMARY ACADEMY,119822
North East Lincolnshire Council,http://statistics.data.gov.uk/id/local-authority/00FC),Childrens Services,Education And Inclusion,School Improvement,Other Agencies,Other,PJ121,08/06/2021,676031,5185.8,REVENUE,ORMISTON SOUTH PARADE ACADEMY,111750
North East Lincolnshire Council,http://statistics.data.gov.uk/id/local-authority/00FC),Childrens Services,Education And Inclusion,School Improvement,Other Agencies,Other,PJ121,08/06/2021,675982,5108.4,REVENUE,PRECIOUS TIMES CHILDCARE SERVICES,101420
North East Lincolnshire Council,http://statistics.data.gov.uk/id/local-authority/00FC),Childrens Services,Education And Inclusion,School Improvement,Other Agencies,Other,PJ121,08/06/2021,675951,4411.8,REVENUE,FOR UNDER FIVES LTD,100647
North East Lincolnshire Council,http://statistics.data.gov.uk/id/local-authority/00FC),Childrens Services,Education And Inclusion,School Improvement,Other Agencies,Other,PJ121,08/06/2021,676142,696.6,REVENUE,SARA BUNCE,142138
North East Lincolnshire Council,http://statistics.data.gov.uk/id/local-authority/00FC),Childrens Services,Education And Inclusion,School Improvement,Other Agencies,Other,PJ121,08/06/2021,676088,464.4,REVENUE,SARAH FARROW-BROWNE,127842
North East Lincolnshire Council,http://statistics.data.gov.uk/id/local-authority/00FC),Childrens Services,Education And Inclusion,School Improvement,Other Agencies,Other,PJ121,08/06/2021,675987,1439.64,REVENUE,CLEETHORPES CHILDCARE,101591
North East Lincolnshire Council,http://statistics.data.gov.uk/id/local-authority/00FC),Childrens Services,Education And Inclusion,School Improvement,Other Agencies,Other,PJ121,08/06/2021,675950,541.8,REVENUE,FOR UNDER FIVES LTD,100647
North East Lincolnshire Council,http://statistics.data.gov.uk/id/local-authority/00FC),Childrens Services,Education And Inclusion,School Improvement,Other Agencies,Other,PJ121,08/06/2021,675996,928.8,REVENUE,SARAH SHOTBOLT,101742
North East Lincolnshire Council,http://statistics.data.gov.uk/id/local-authority/00FC),Childrens Services,Education And Inclusion,School Improvement,Other Agencies,Other,PJ121,08/06/2021,676063,3018.6,REVENUE,ST CHRISTOPHERS PRE SCHOOL,121589
North East Lincolnshire Council,http://statistics.data.gov.uk/id/local-authority/00FC),Childrens Services,Education And Inclusion,School Improvement,Other Agencies,Other,PJ121,08/06/2021,675956,387,REVENUE,ST JAMES SCHOOL,100940
North East Lincolnshire Council,http://statistics.data.gov.uk/id/local-authority/00FC),Childrens Services,Education And Inclusion,School Improvement,Other Agencies,Other,PJ121,08/06/2021,676014,928.8,REVENUE,ST JOSEPH'S RC PRIMARY ACADEMY,110066
North East Lincolnshire Council,http://statistics.data.gov.uk/id/local-authority/00FC),Childrens Services,Education And Inclusion,School Improvement,Other Agencies,Other,PJ121,08/06/2021,675971,5805,REVENUE,ST PETERS CHILDREN CENTRE,101322
North East Lincolnshire Council,http://statistics.data.gov.uk/id/local-authority/00FC),Childrens Services,Education And Inclusion,School Improvement,Other Agencies,Other,PJ121,08/06/2021,676002,928.8,REVENUE,THE AVENUE PLAYGROUP,103168
North East Lincolnshire Council,http://statistics.data.gov.uk/id/local-authority/00FC),Childrens Services,Education And Inclusion,School Improvement,Other Agencies,Other,PJ121,08/06/2021,676131,464.4,REVENUE,MRS VERITY TAYLOR-GREEN,138243
North East Lincolnshire Council,http://statistics.data.gov.uk/id/local-authority/00FC),Childrens Services,Education And Inclusion,School Improvement,Other Agencies,Other,PJ121,08/06/2021,676006,2167.2,REVENUE,WALTHAM LEAS PRE-SCHOOL,108236
North East Lincolnshire Council,http://statistics.data.gov.uk/id/local-authority/00FC),Childrens Services,Education And Inclusion,School Improvement,Other Agencies,Other,PJ121,08/06/2021,676024,1625.4,REVENUE,WEELSBY ACADEMY,111161
North East Lincolnshire Council,http://statistics.data.gov.uk/id/local-authority/00FC),Childrens Services,Education And Inclusion,School Improvement,Other Agencies,Other,PJ121,08/06/2021,676083,1780.2,REVENUE,WELHOLME ACADEMY,127227
North East Lincolnshire Council,http://statistics.data.gov.uk/id/local-authority/00FC),Childrens Services,Education And Inclusion,School Improvement,Other Agencies,Other,PJ121,08/06/2021,675973,1625.4,REVENUE,WENDOVER PRE-SCHOOL,101350
North East Lincolnshire Council,http://statistics.data.gov.uk/id/local-authority/00FC),Childrens Services,Education And Inclusion,School Improvement,Other Agencies,Other,PJ121,08/06/2021,676000,2492.28,REVENUE,WIZ KIDZ,102424
North East Lincolnshire Council,http://statistics.data.gov.uk/id/local-authority/00FC),Childrens Services,Education And Inclusion,School Improvement,Direct Employee Expenses,Agency Staff,EA105,15/06/2021,677241,1000,REVENUE,THE NURTURE LADY,136686
North East Lincolnshire Council,http://statistics.data.gov.uk/id/local-authority/00FC),Childrens Services,Education And Inclusion,School Improvement,Contributions To Provisions,Contributions - Other,LK103,01/06/2021,674538,935.55,REVENUE,BUTTERFLIES DAY NURSERY,101694
North East Lincolnshire Council,http://statistics.data.gov.uk/id/local-authority/00FC),Childrens Services,Education And Inclusion,School Improvement,Contributions To Provisions,Contributions - Other,LK103,01/06/2021,674538,1871.1,REVENUE,BUTTERFLIES DAY NURSERY,101694
North East Lincolnshire Council,http://statistics.data.gov.uk/id/local-authority/00FC),Childrens Services,Education And Inclusion,School Improvement,Contributions To Provisions,Contributions - Other,LK103,01/06/2021,674538,623.7,REVENUE,BUTTERFLIES DAY NURSERY,101694
North East Lincolnshire Council,http://statistics.data.gov.uk/id/local-authority/00FC),Childrens Services,Education And Inclusion,School Improvement,Contributions To Provisions,Contributions - Other,LK103,08/06/2021,675817,1871.1,REVENUE,FAIRFIELD PRIMARY ACADEMY,129030
North East Lincolnshire Council,http://statistics.data.gov.uk/id/local-authority/00FC),Childrens Services,Education And Inclusion,School Improvement,Contributions To Provisions,Contributions - Other,LK103,03/06/2021,674627,750,REVENUE,FOR UNDER FIVES,108891
North East Lincolnshire Council,http://statistics.data.gov.uk/id/local-authority/00FC),Childrens Services,Education And Inclusion,School Improvement,Contributions To Provisions,Contributions - Other,LK103,03/06/2021,674627,935.55,REVENUE,FOR UNDER FIVES,108891
North East Lincolnshire Council,http://statistics.data.gov.uk/id/local-authority/00FC),Childrens Services,Education And Inclusion,School Improvement,Contributions To Provisions,Contributions - Other,LK103,03/06/2021,674627,935.55,REVENUE,FOR UNDER FIVES,108891
North East Lincolnshire Council,http://statistics.data.gov.uk/id/local-authority/00FC),Childrens Services,Education And Inclusion,School Improvement,Contributions To Provisions,Contributions - Other,LK103,03/06/2021,674626,1262.4,REVENUE,LEAP AHEAD NURSERIES LIMITED,135218
North East Lincolnshire Council,http://statistics.data.gov.uk/id/local-authority/00FC),Childrens Services,Education And Inclusion,School Improvement,Contributions To Provisions,Contributions - Other,LK103,01/06/2021,674482,623.7,REVENUE,LITTLE BLOSSOMS DAY NURSERY,111058
North East Lincolnshire Council,http://statistics.data.gov.uk/id/local-authority/00FC),Childrens Services,Education And Inclusion,School Improvement,Contributions To Provisions,Contributions - Other,LK103,01/06/2021,674542,1425.6,REVENUE,LITTLE OAKS DAY NURSERY,144718
North East Lincolnshire Council,http://statistics.data.gov.uk/id/local-authority/00FC),Childrens Services,Education And Inclusion,School Improvement,Contributions To Provisions,Contributions - Other,LK103,01/06/2021,674523,935.55,REVENUE,TEC PARTNERSHIP - LITTLE STARS DAY NURSERY,114230
North East Lincolnshire Council,http://statistics.data.gov.uk/id/local-authority/00FC),Childrens Services,Education And Inclusion,School Improvement,Contributions To Provisions,Contributions - Other,LK103,08/06/2021,674629,2432.43,REVENUE,ORMISTON SOUTH PARADE ACADEMY,111750
North East Lincolnshire Council,http://statistics.data.gov.uk/id/local-authority/00FC),Childrens Services,Education And Inclusion,School Improvement,Contributions To Provisions,Contributions - Other,LK103,08/06/2021,674630,534.6,REVENUE,PILGRIM ACADEMY,136366
North East Lincolnshire Council,http://statistics.data.gov.uk/id/local-authority/00FC),Childrens Services,Education And Inclusion,School Improvement,Contributions To Provisions,Contributions - Other,LK103,01/06/2021,674483,623.7,REVENUE,PRECIOUS TIMES CHILDCARE SERVICES,101420
North East Lincolnshire Council,http://statistics.data.gov.uk/id/local-authority/00FC),Childrens Services,Education And Inclusion,School Improvement,Contributions To Provisions,Contributions - Other,LK103,01/06/2021,674476,1871.1,REVENUE,READY TEDDY GO,100973
North East Lincolnshire Council,http://statistics.data.gov.uk/id/local-authority/00FC),Childrens Services,Education And Inclusion,School Improvement,Contributions To Provisions,Contributions - Other,LK103,01/06/2021,674539,467.76,REVENUE,ST PETERS CHILDREN CENTRE,101322
North East Lincolnshire Council,http://statistics.data.gov.uk/id/local-authority/00FC),Childrens Services,Education And Inclusion,School Improvement,Contributions To Provisions,Contributions - Other,LK103,01/06/2021,674539,3742.2,REVENUE,ST PETERS CHILDREN CENTRE,101322
North East Lincolnshire Council,http://statistics.data.gov.uk/id/local-authority/00FC),Childrens Services,Education And Inclusion,School Improvement,Contributions To Provisions,Contributions - Other,LK103,01/06/2021,674539,1247.4,REVENUE,ST PETERS CHILDREN CENTRE,101322
North East Lincolnshire Council,http://statistics.data.gov.uk/id/local-authority/00FC),Childrens Services,Education And Inclusion,School Improvement,Contributions To Provisions,Contributions - Other,LK103,01/06/2021,674541,935.55,REVENUE,STRAND PRIMARY ACADEMY,111862
North East Lincolnshire Council,http://statistics.data.gov.uk/id/local-authority/00FC),Childrens Services,Education And Inclusion,School Improvement,Contributions To Provisions,Contributions - Other,LK103,01/06/2021,674541,935.55,REVENUE,STRAND PRIMARY ACADEMY,111862
North East Lincolnshire Council,http://statistics.data.gov.uk/id/local-authority/00FC),Childrens Services,Education And Inclusion,School Improvement,Contributions To Provisions,Contributions - Other,LK103,01/06/2021,674541,935.55,REVENUE,STRAND PRIMARY ACADEMY,111862
North East Lincolnshire Council,http://statistics.data.gov.uk/id/local-authority/00FC),Childrens Services,Education And Inclusion,School Improvement,Contributions To Provisions,Contributions - Other,LK103,01/06/2021,674524,623.7,REVENUE,WALTHAM LEAS PRE-SCHOOL,108236
North East Lincolnshire Council,http://statistics.data.gov.uk/id/local-authority/00FC),Childrens Services,Education And Inclusion,School Improvement,Contributions To Provisions,Contributions - Other,LK103,01/06/2021,674524,623.7,REVENUE,WALTHAM LEAS PRE-SCHOOL,108236
North East Lincolnshire Council,http://statistics.data.gov.uk/id/local-authority/00FC),Childrens Services,Education And Inclusion,School Improvement,Contributions To Provisions,Contributions - Other,LK103,01/06/2021,674478,1247.4,REVENUE,WIZ KIDZ,102424
North East Lincolnshire Council,http://statistics.data.gov.uk/id/local-authority/00FC),Childrens Services,Education And Inclusion,School Improvement,Contributions To Provisions,Contributions - Other,LK103,01/06/2021,673858,2619.5,REVENUE,ETAC LIMITED,101710
North East Lincolnshire Council,http://statistics.data.gov.uk/id/local-authority/00FC),Childrens Services,Education And Inclusion,Reynolds Day Care,Equip / Furniture / Materials,Equipment - Purchase,LA101,03/06/2021,675226,297.75,REVENUE,BANAMAN,100513
North East Lincolnshire Council,http://statistics.data.gov.uk/id/local-authority/00FC),Childrens Services,Education And Inclusion,Reynolds Day Care,Equip / Furniture / Materials,Equipment - Purchase,LA101,15/06/2021,677301,260,REVENUE,MOUNT BANK FARM LTD,148302
North East Lincolnshire Council,http://statistics.data.gov.uk/id/local-authority/00FC),Childrens Services,Safer And Partnerships,Young And Safe,Voluntary Associations,Third Pp - Third Sector,PF101,01/06/2021,674464,600,REVENUE,IAN COXAN,103410
North East Lincolnshire Council,http://statistics.data.gov.uk/id/local-authority/00FC),Childrens Services,Safer And Partnerships,Safeguard Board / Dom Violence,Private Contractors,Contract Payments,PH105,14/06/2021,677194,13250,REVENUE,EMPOWER EMPLOYABILITY MENTORING PROGRAMME,118831
North East Lincolnshire Council,http://statistics.data.gov.uk/id/local-authority/00FC),Childrens Services,Safer And Partnerships,Graft,Miscellaneous Expenses,Activities - Service Users,LL114,01/06/2021,674900,498.95,REVENUE,ARGOS BUSINESS SOLUTIONS LTD,101032
North East Lincolnshire Council,http://statistics.data.gov.uk/id/local-authority/00FC),Childrens Services,Childrens Trust,Palliative / Complex Care,Private Contractors,Third Party Prov - Private,PH101,15/06/2021,677676,2975.66,REVENUE,AK PAYROLL SERIVCES LTD,145106
North East Lincolnshire Council,http://statistics.data.gov.uk/id/local-authority/00FC),Childrens Services,Childrens Trust,Palliative / Complex Care,Private Contractors,Third Party Prov - Private,PH101,15/06/2021,677677,896.62,REVENUE,AK PAYROLL SERIVCES LTD,145107
North East Lincolnshire Council,http://statistics.data.gov.uk/id/local-authority/00FC),Childrens Services,Childrens Trust,Palliative / Complex Care,Private Contractors,Third Party Prov - Private,PH101,15/06/2021,677674,3302.7,REVENUE,AK PAYROLL SERIVCES LTD,145114
North East Lincolnshire Council,http://statistics.data.gov.uk/id/local-authority/00FC),Childrens Services,Childrens Trust,Palliative / Complex Care,Private Contractors,Third Party Prov - Private,PH101,15/06/2021,677675,966.7,REVENUE,AK PAYROLL SERIVCES LTD,145113
North East Lincolnshire Council,http://statistics.data.gov.uk/id/local-authority/00FC),Childrens Services,Childrens Trust,Palliative / Complex Care,Private Contractors,Third Party Prov - Private,PH101,15/06/2021,677672,1901.1,REVENUE,AK PAYROLL SERIVCES LTD,145112
North East Lincolnshire Council,http://statistics.data.gov.uk/id/local-authority/00FC),Childrens Services,Childrens Trust,Palliative / Complex Care,Private Contractors,Third Party Prov - Private,PH101,15/06/2021,677673,592.94,REVENUE,AK PAYROLL SERIVCES LTD,145108
North East Lincolnshire Council,http://statistics.data.gov.uk/id/local-authority/00FC),Childrens Services,Childrens Trust,Palliative / Complex Care,Private Contractors,Third Party Prov - Private,PH101,15/06/2021,677678,990.06,REVENUE,AK PAYROLL SERIVCES LTD,145109
North East Lincolnshire Council,http://statistics.data.gov.uk/id/local-authority/00FC),Childrens Services,Childrens Trust,Childrens Mental & Emot Health,Health Authorities,Third Pp - Health Auth,PD101,01/06/2021,675144,600,REVENUE,FORTIS THERAPY & TRAINING,120445
North East Lincolnshire Council,http://statistics.data.gov.uk/id/local-authority/00FC),Childrens Services,Childrens Trust,Childrens Mental & Emot Health,Private Contractors,Contract Payments,PH105,08/06/2021,675894,248705.75,REVENUE,LINCOLNSHIRE PARTNERSHIP NHS FOUNDATION TRUST,105021
North East Lincolnshire Council,http://statistics.data.gov.uk/id/local-authority/00FC),Childrens Services,Childrens Trust,Childrens Mental & Emot Health,Other Agencies,Top Up,PJ123,14/06/2021,677149,27599.82,REVENUE,LINCOLNSHIRE PARTNERSHIP NHS FOUNDATION TRUST,105021
North East Lincolnshire Council,http://statistics.data.gov.uk/id/local-authority/00FC),Childrens Services,Childrens Trust,Childrens Mental & Emot Health,Health Authorities,Third Pp - Health Auth,PD101,14/06/2021,677181,4667.55,REVENUE,NHS NORTH EAST LINCOLNSHIRE CCG,121549
North East Lincolnshire Council,http://statistics.data.gov.uk/id/local-authority/00FC),Childrens Services,Childrens Trust,Childrens Mental & Emot Health,Private Contractors,Contract Payments,PH105,15/06/2021,677110,6249.71,REVENUE,KOOTH DIGITAL HEALTH LIMITED,135941
North East Lincolnshire Council,http://statistics.data.gov.uk/id/local-authority/00FC),Childrens Services,Childrens Trust,Childrens Mental & Emot Health,Private Contractors,Contract Payments,PH105,15/06/2021,677109,6249.71,REVENUE,KOOTH DIGITAL HEALTH LIMITED,135941
North East Lincolnshire Council,http://statistics.data.gov.uk/id/local-authority/00FC),Childrens Services,Childrens Trust,Childrens Mental & Emot Health,Private Contractors,Contract Payments,PH105,03/06/2021,673845,90689.5,REVENUE,COMPASS SERVICES TO IMPROVE HEALTH,145810
North East Lincolnshire Council,http://statistics.data.gov.uk/id/local-authority/00FC),Childrens Services,Childrens Trust,Childrens Mental & Emot Health,Private Contractors,Contract Payments,PH105,29/06/2021,675597,90689.5,REVENUE,COMPASS SERVICES TO IMPROVE HEALTH,145810
North East Lincolnshire Council,http://statistics.data.gov.uk/id/local-authority/00FC),Childrens Services,Director - Children / Fam Serv,Budget Envelope Challenges,Direct Employee Expenses,Superannuation,EA301,22/06/2021,677976,27016.01,REVENUE,NHS PENSIONS,145442
North East Lincolnshire Council,http://statistics.data.gov.uk/id/local-authority/00FC),Childrens Services,Director - Children / Fam Serv,Director Children & Fam Serv,Private Contractors,Contract Payments,PH105,03/06/2021,675333,825,REVENUE,SIGNIS LTD,145139
North East Lincolnshire Council,http://statistics.data.gov.uk/id/local-authority/00FC),Childrens Services,Director - Children / Fam Serv,Director Children & Fam Serv,Consultancy,Consultancy,PL101,01/06/2021,674935,2500,REVENUE,GRAVITAS RECRUITMENT GROUP LTD,143484
North East Lincolnshire Council,http://statistics.data.gov.uk/id/local-authority/00FC),Childrens Services,Director - Children / Fam Serv,Director Children & Fam Serv,Consultancy,Consultancy,PL101,01/06/2021,674943,2500,REVENUE,GRAVITAS RECRUITMENT GROUP LTD,143484
North East Lincolnshire Council,http://statistics.data.gov.uk/id/local-authority/00FC),Childrens Services,Safeguard & Early Help,Childrens Health,Private Contractors,Third Party Prov - Private,PH101,09/06/2021,675691,3800,REVENUE,UNICEF UK BABY FRIENDLY INITIATIVE,148684
North East Lincolnshire Council,http://statistics.data.gov.uk/id/local-authority/00FC),Childrens Services,Safeguard & Early Help,Childrens Health,Indirect Employee Expenses,Staff Training,EB122,24/06/2021,678675,375,REVENUE,SAFEGUARDING ASSOCS FOR EXCELLENCE (SAFE) LTD,148948
North East Lincolnshire Council,http://statistics.data.gov.uk/id/local-authority/00FC),Childrens Services,Safeguard & Early Help,Childrens Health,Indirect Employee Expenses,Staff Training,EB122,17/06/2021,677998,461,REVENUE,UNIVERSITY OF HULL,135789
North East Lincolnshire Council,http://statistics.data.gov.uk/id/local-authority/00FC),Childrens Services,Safeguard & Early Help,Childrens Health,Equip / Furniture / Materials,Equipment - Purchase,LA101,16/06/2021,677184,259.98,REVENUE,FINDEL EDUCATION LTD,101237
North East Lincolnshire Council,http://statistics.data.gov.uk/id/local-authority/00FC),Childrens Services,Safeguard & Early Help,Childrens Health,Equip / Furniture / Materials,Equipment - Purchase,LA101,09/06/2021,675524,979.2,REVENUE,ARDO MEDICAL LTD,107756
North East Lincolnshire Council,http://statistics.data.gov.uk/id/local-authority/00FC),Childrens Services,Safeguard & Early Help,Head Of Child Resource & Reg,Other Agencies,Additional Cost,PJ114,01/06/2021,928482,1107,REVENUE,REDACTED PERSONAL INFORMATION,REDACTED PERSONAL INFORMATION
North East Lincolnshire Council,http://statistics.data.gov.uk/id/local-authority/00FC),Childrens Services,Safeguard & Early Help,Head Of Child Resource & Reg,Other Agencies,Additional Cost,PJ114,21/06/2021,934337,350,REVENUE,REDACTED PERSONAL INFORMATION,REDACTED PERSONAL INFORMATION
North East Lincolnshire Council,http://statistics.data.gov.uk/id/local-authority/00FC),Childrens Services,Safeguard & Early Help,Head Of Child Resource & Reg,Other Agencies,Child Care Payments,PJ104,01/06/2021,928069,364,REVENUE,REDACTED PERSONAL INFORMATION,REDACTED PERSONAL INFORMATION
North East Lincolnshire Council,http://statistics.data.gov.uk/id/local-authority/00FC),Childrens Services,Safeguard & Early Help,Head Of Child Resource & Reg,Other Agencies,Child Care Payments,PJ104,01/06/2021,928143,364,REVENUE,REDACTED PERSONAL INFORMATION,REDACTED PERSONAL INFORMATION
North East Lincolnshire Council,http://statistics.data.gov.uk/id/local-authority/00FC),Childrens Services,Safeguard & Early Help,Head Of Child Resource & Reg,Other Agencies,Child Care Payments,PJ104,01/06/2021,927926,364,REVENUE,REDACTED PERSONAL INFORMATION,REDACTED PERSONAL INFORMATION
North East Lincolnshire Council,http://statistics.data.gov.uk/id/local-authority/00FC),Childrens Services,Safeguard & Early Help,Head Of Child Resource & Reg,Other Agencies,Child Care Payments,PJ104,01/06/2021,927954,364,REVENUE,REDACTED PERSONAL INFORMATION,REDACTED PERSONAL INFORMATION
North East Lincolnshire Council,http://statistics.data.gov.uk/id/local-authority/00FC),Childrens Services,Safeguard & Early Help,Head Of Child Resource & Reg,Other Agencies,Child Care Payments,PJ104,08/06/2021,929824,364,REVENUE,REDACTED PERSONAL INFORMATION,REDACTED PERSONAL INFORMATION
North East Lincolnshire Council,http://statistics.data.gov.uk/id/local-authority/00FC),Childrens Services,Safeguard & Early Help,Head Of Child Resource & Reg,Other Agencies,Child Care Payments,PJ104,08/06/2021,929939,364,REVENUE,REDACTED PERSONAL INFORMATION,REDACTED PERSONAL INFORMATION
North East Lincolnshire Council,http://statistics.data.gov.uk/id/local-authority/00FC),Childrens Services,Safeguard & Early Help,Head Of Child Resource & Reg,Other Agencies,Child Care Payments,PJ104,08/06/2021,930013,364,REVENUE,REDACTED PERSONAL INFORMATION,REDACTED PERSONAL INFORMATION
North East Lincolnshire Council,http://statistics.data.gov.uk/id/local-authority/00FC),Childrens Services,Safeguard & Early Help,Head Of Child Resource & Reg,Other Agencies,Child Care Payments,PJ104,08/06/2021,929795,364,REVENUE,REDACTED PERSONAL INFORMATION,REDACTED PERSONAL INFORMATION
North East Lincolnshire Council,http://statistics.data.gov.uk/id/local-authority/00FC),Childrens Services,Safeguard & Early Help,Head Of Child Resource & Reg,Other Agencies,Child Care Payments,PJ104,15/06/2021,932337,364,REVENUE,REDACTED PERSONAL INFORMATION,REDACTED PERSONAL INFORMATION
North East Lincolnshire Council,http://statistics.data.gov.uk/id/local-authority/00FC),Childrens Services,Safeguard & Early Help,Head Of Child Resource & Reg,Other Agencies,Child Care Payments,PJ104,15/06/2021,932364,364,REVENUE,REDACTED PERSONAL INFORMATION,REDACTED PERSONAL INFORMATION
North East Lincolnshire Council,http://statistics.data.gov.uk/id/local-authority/00FC),Childrens Services,Safeguard & Early Help,Head Of Child Resource & Reg,Other Agencies,Child Care Payments,PJ104,15/06/2021,932480,364,REVENUE,REDACTED PERSONAL INFORMATION,REDACTED PERSONAL INFORMATION
North East Lincolnshire Council,http://statistics.data.gov.uk/id/local-authority/00FC),Childrens Services,Safeguard & Early Help,Head Of Child Resource & Reg,Other Agencies,Child Care Payments,PJ104,15/06/2021,932555,364,REVENUE,REDACTED PERSONAL INFORMATION,REDACTED PERSONAL INFORMATION
North East Lincolnshire Council,http://statistics.data.gov.uk/id/local-authority/00FC),Childrens Services,Safeguard & Early Help,Head Of Child Resource & Reg,Other Agencies,Child Care Payments,PJ104,21/06/2021,934138,364,REVENUE,REDACTED PERSONAL INFORMATION,REDACTED PERSONAL INFORMATION
North East Lincolnshire Council,http://statistics.data.gov.uk/id/local-authority/00FC),Childrens Services,Safeguard & Early Help,Head Of Child Resource & Reg,Other Agencies,Child Care Payments,PJ104,21/06/2021,934213,364,REVENUE,REDACTED PERSONAL INFORMATION,REDACTED PERSONAL INFORMATION
North East Lincolnshire Council,http://statistics.data.gov.uk/id/local-authority/00FC),Childrens Services,Safeguard & Early Help,Head Of Child Resource & Reg,Other Agencies,Child Care Payments,PJ104,21/06/2021,933998,364,REVENUE,REDACTED PERSONAL INFORMATION,REDACTED PERSONAL INFORMATION
North East Lincolnshire Council,http://statistics.data.gov.uk/id/local-authority/00FC),Childrens Services,Safeguard & Early Help,Head Of Child Resource & Reg,Other Agencies,Child Care Payments,PJ104,21/06/2021,934025,364,REVENUE,REDACTED PERSONAL INFORMATION,REDACTED PERSONAL INFORMATION
North East Lincolnshire Council,http://statistics.data.gov.uk/id/local-authority/00FC),Childrens Services,Safeguard & Early Help,Head Of Child Resource & Reg,Other Agencies,Child Care Payments,PJ104,29/06/2021,936136,364,REVENUE,REDACTED PERSONAL INFORMATION,REDACTED PERSONAL INFORMATION
North East Lincolnshire Council,http://statistics.data.gov.uk/id/local-authority/00FC),Childrens Services,Safeguard & Early Help,Head Of Child Resource & Reg,Other Agencies,Child Care Payments,PJ104,29/06/2021,936164,364,REVENUE,REDACTED PERSONAL INFORMATION,REDACTED PERSONAL INFORMATION
North East Lincolnshire Council,http://statistics.data.gov.uk/id/local-authority/00FC),Childrens Services,Safeguard & Early Help,Head Of Child Resource & Reg,Other Agencies,Child Care Payments,PJ104,29/06/2021,936278,364,REVENUE,REDACTED PERSONAL INFORMATION,REDACTED PERSONAL INFORMATION
North East Lincolnshire Council,http://statistics.data.gov.uk/id/local-authority/00FC),Childrens Services,Safeguard & Early Help,Head Of Child Resource & Reg,Other Agencies,Child Care Payments,PJ104,29/06/2021,936353,364,REVENUE,REDACTED PERSONAL INFORMATION,REDACTED PERSONAL INFORMATION
North East Lincolnshire Council,http://statistics.data.gov.uk/id/local-authority/00FC),Childrens Services,Safeguard & Early Help,Head Of Child Resource & Reg,Other Agencies,Child Care Payments,PJ104,01/06/2021,928367,304,REVENUE,REDACTED PERSONAL INFORMATION,REDACTED PERSONAL INFORMATION
North East Lincolnshire Council,http://statistics.data.gov.uk/id/local-authority/00FC),Childrens Services,Safeguard & Early Help,Head Of Child Resource & Reg,Other Agencies,Child Care Payments,PJ104,01/06/2021,928261,290,REVENUE,REDACTED PERSONAL INFORMATION,REDACTED PERSONAL INFORMATION
North East Lincolnshire Council,http://statistics.data.gov.uk/id/local-authority/00FC),Childrens Services,Safeguard & Early Help,Head Of Child Resource & Reg,Other Agencies,Child Care Payments,PJ104,01/06/2021,928265,477,REVENUE,REDACTED PERSONAL INFORMATION,REDACTED PERSONAL INFORMATION
North East Lincolnshire Council,http://statistics.data.gov.uk/id/local-authority/00FC),Childrens Services,Safeguard & Early Help,Head Of Child Resource & Reg,Other Agencies,Child Care Payments,PJ104,08/06/2021,930239,304,REVENUE,REDACTED PERSONAL INFORMATION,REDACTED PERSONAL INFORMATION
North East Lincolnshire Council,http://statistics.data.gov.uk/id/local-authority/00FC),Childrens Services,Safeguard & Early Help,Head Of Child Resource & Reg,Other Agencies,Child Care Payments,PJ104,08/06/2021,930131,290,REVENUE,REDACTED PERSONAL INFORMATION,REDACTED PERSONAL INFORMATION
North East Lincolnshire Council,http://statistics.data.gov.uk/id/local-authority/00FC),Childrens Services,Safeguard & Early Help,Head Of Child Resource & Reg,Other Agencies,Child Care Payments,PJ104,08/06/2021,930135,477,REVENUE,REDACTED PERSONAL INFORMATION,REDACTED PERSONAL INFORMATION
North East Lincolnshire Council,http://statistics.data.gov.uk/id/local-authority/00FC),Childrens Services,Safeguard & Early Help,Head Of Child Resource & Reg,Other Agencies,Child Care Payments,PJ104,15/06/2021,932673,290,REVENUE,REDACTED PERSONAL INFORMATION,REDACTED PERSONAL INFORMATION
North East Lincolnshire Council,http://statistics.data.gov.uk/id/local-authority/00FC),Childrens Services,Safeguard & Early Help,Head Of Child Resource & Reg,Other Agencies,Child Care Payments,PJ104,15/06/2021,932677,477,REVENUE,REDACTED PERSONAL INFORMATION,REDACTED PERSONAL INFORMATION
North East Lincolnshire Council,http://statistics.data.gov.uk/id/local-authority/00FC),Childrens Services,Safeguard & Early Help,Head Of Child Resource & Reg,Other Agencies,Child Care Payments,PJ104,15/06/2021,932782,304,REVENUE,REDACTED PERSONAL INFORMATION,REDACTED PERSONAL INFORMATION
North East Lincolnshire Council,http://statistics.data.gov.uk/id/local-authority/00FC),Childrens Services,Safeguard & Early Help,Head Of Child Resource & Reg,Other Agencies,Child Care Payments,PJ104,21/06/2021,934508,315.43,REVENUE,REDACTED PERSONAL INFORMATION,REDACTED PERSONAL INFORMATION
